{"text_format":"1","workbook":"xlsx","n_sheets":52,"sheets":["Leveransplan","Anvisningar","Kontaktuppgifter","Definitioner","Leveranstider","Lathund - BISobjekt","Arkivservice - Analog leverans","Projektuppgifter","Leveranshistorik","0 Erfarenhetsdrift","0 3D-modell","0 Väg","0 JNB","0 Tågplan","0 Geografiska modellfiler","4.1 Bankropp","5.1 Bro","5.2 Tunnel o bergslänt","5.3 Övriga byggnadsverk","6.1 GELD inkl RTU","6.2 Hjälpkraftssystem","6.3 Kontaktledningssystem","6.4 Kraftförsörjningsanläggning","6.5 Lågspänningssystem","6.6 Matarledningssystem","7.1 Resenärsstation","7.2 Teknikbyggnad","7.3 Tillträdesskydd o brandlarm","8.1 Signalsystem","9.1 Banöverbyggnad","9.2 Geodetiskt stomnät","9.3 Sidoanläggning","10.1 Radio och telefoni","10.2 Siter och kabelanl","11.1 Trafikinformationsanl","12.1 Övrig BIS-leverans","13.1 Trafikstyrningssystem","14.1 Fordonsöverv. detektor","15.1 Admin. o funkt. företeelse","15.2 Baskarta","15.3 Byggnad","15.4 Mark","15.5 Miljö","15.6 Plankorsning","15.7 Pumpsystem","15.8 Rangerbangård","15.10 Underlag till linjeboken","15.11 Underlag till säk.plan","Tillkomna dok.","Levererat till extern part ","Ändringslogg","Ändra inte!"],"not_rendered":{"charts":0,"images":6,"macros":0,"external_links":3,"defined_names":40,"comments":39,"pivot_tables":0},"unopened":[],"bounds":{"document_bytes":16777216,"sheet_cells":100000,"rows_first":2000,"rows_last":500,"rows_between":2000,"halvings":0,"cell_chars":16384,"cell_head_chars":4096},"cells_cut":0,"cells_raw":0,"read":"whole","date_system":"1900"}

{"sheet":"Leveransplan","index":0,"n_rows":12,"n_cols":1,"rows_kept":12,"cut":false,"hidden":false,"merged":[[5,0,5,1]]}
[]
["TMALL 0344 Data om anläggningen - Leveransplan - Järnväg"]
["Version 25.0"]
["Datum: 2024-05-01"]
[]
["Leveransplanen bygger på kravdokumentet TDOK 2016:0407 Data om anläggningen - Data och dokumentation till förvaltande system - Järnväg, Version 22.\n\nLeveranstiderna i projektuppgiftsflikens kolumn E, avser när leverans senast ska ske från projekt till mottagande förvaltning."]
[]
[" -- Projekt som redan börjat använda en tidigare version av leveransplan behöver inte byta till denna version. Är du osäker, kontakta din indatakoordinator. Kontollera däremot med senare versioner, om krav tillkommit/slopats. Detta ser man lättas i ändringsloggen i den senaste versionen av leveransplanen eller i TDOK 2016:0407."]
[" -- Projekt ska leverera samtliga data/dokument som gäller vid ett tidskrav. Undantag för dokumentation till ProjectWise/Förvaltning Järnväg och Ebba som levereras per teknikslag."]
[" -- Leveranstidkrav till mottagande förvaltning är det senaste datum när mottagande förvaltning eller IT-system behöver data. Leveransen genomförs av projektet enligt Trafikverkets fastställda krav. Leveranstidkraven ställs på projektet, inte mot extern leverantör, enligt TDOK 2016:0411."]
[" -- De krav och riktlinjer som hänvisas till i denna mall ska endast betraktas som stöd för projektet. Det är projektets ansvar att hålla sig uppdaterad med aktuella krav i TDOK 2016:0407 Data om anläggningen - Data och dokumentation till förvaltande system - Järnväg."]
[" -- Det finns ca 40 flikar i leveransplanen. Det gör att alla flikar inte är synliga längst ner på skärmen samtidigt. Istället är man tvungen att använda pilen längst ner till vänster på sidan för att stega sig igenom alla flikar eller högerklicka på pilen för att få fram en vallista över samtliga filkar."]

{"sheet":"Anvisningar","index":1,"n_rows":43,"n_cols":3,"rows_kept":43,"cut":false,"hidden":false,"merged":[[2,1,2,2],[4,1,4,2],[40,1,40,2],[42,1,42,2],[13,1,13,2],[14,1,14,2],[17,1,17,2]]}
[null,"Tips för hur projektet bör använda leveransplanen"]
[]
[null,"För att redigera i leveransplanen - Klicka på Redigera arbetsbok, gör ändringarna och spara och stäng filen sedan. Om man väljer att checka ut filen ska ny version väljas när man checkar in dokumentet igen. Var uppmärksam på om dokumentet är utcheckat innan du öppnar det. Vänta tills filen checkats in innan du öppnar den. Detta för att undvika att en kopia skapas. "]
[]
[null," - Även uppgift om slopning av anläggning ska levereras till mottagande förvaltning.\n - Dokumentation över GOP (Godkännandeprocessen) ska inte levereras till mottagande förvaltning, utan ska enbart levereras  till diariet."]
[null,"OBS! Relevant data/dokumentation kopplat till miljö ska levereras enligt flik 15.5 Miljö"]
[]
[null,"1.","En initial leveransplan, där fliken Projektuppgifter i leveransplanen ska vara ifylld med projektuppgifter, datum, roller samt planerade ingående teknikområden ska tas fram enligt GÅ-processen. Observera! Den här fliken måste uppdateras när det sker förändringar i nästkommande flikar."]
[null,"2.","Dölj flikar som inte berör projektet.  Ställa dig på flikens namn, högerklicka och välj \"Dölj\". Ångrar du dig,ställa dig på valfritt fliknamn och välja \"Ta fram\"."]
[null,"3.","Öppna valda flikar och sätt JA/NEJ för samtliga rader i kolumnen \"Aktuellt att uppdateras av projektet\", för  dokument som projektet ska leverera. "]
[null,"4.","Skicka epost med en länk till var i Projektportalen leveransplanen ligger till indatakoordinering@trafikverket.se. Dessa uppgifter behöver indatakoordineringen tidigt."]
[null,"5.","Kontakta er indatakoordinator om ni har frågor kring ifyllandet av leveransplanen eller dess användning."]
[null,"6.","Projektet bestämmer hur leveransplanen lämpligast fylls i. Eftersom projekt är olika kan det variera vem som är bäst lämpad att fylla i den. Projektledare ansvarar för att det sker.  För mindre projekt räcker det med en leveransplan. För större projekt kan flera leveransplaner med fördel upprättas, tex en per etapp eller entreprenad. Möjlighet finns också att duplicera flikar, tex vid olika inkopplingsdatum, enligt bilden nedan. \nVid behov tag stöd av din indatakoordinator eller indatakoordinering@trafikverket.se. "]
[null,"Mer information om förvaltningsdata finns här (länken fungerar bara internt inom Trafikverket): "]
[null,"Samlad information om in- och utleverans av förvaltningsdata."]
[]
[]
[null,"Projektet måste hämta/beställa befintlig förvaltningsdata ur respektive förvaltande system och uppdatera dessa. Detta beskrivs i TDOK 2016:0411 Data om anläggningen - Hantering av data och dokumentation till/från förvaltande system - Järnväg. \nOBS! Nulägeslista (BIS) som utgör underlag för slopnings- och ändringslistor ska beställas för leverans så sent inpå framtagandet av listorna som möjligt, detta för att minimera risken att underlagen innehåller inaktuell data.\n"]
[]
[]
[null,null," Grå fält ska inte fyllas i."]
[]
[]
[]
[null,"Flikarnas numrering motsvarar kapitelnumreringen i TDOK 2016:0407."]
[]
[]
[]
[null,"Hantering av filnamn och länk till levererad fil"]
[null,"Här ska man lägga en länk till leverad fil."]
[]
[null,"Men det finns undantag!!"]
[null,"* Flera blad i samma ritningsserie kan med fördel läggas in på samma rad enligt nedan om det är samma dokumenttyper på handlingarna."]
[]
[]
[]
[]
[]
[null,"* Signal: Här räcker det med en rad per ä-not och anläggning"]
[null,"* Kraftförsörjningsanläggning: En separat ritningsförteckning kan bifogas leveransplanen"]
[null,"* Special för riktigt stora projekt: För stora mängder filer till Ebba och PW/FJ accepteras dokument-set i leveransplanen i det fall det finns en dokumentförteckning i dokument-setet."]
[]
[null,"Har du frågor, kontakta projektets indatakoordinator."]

{"sheet":"Kontaktuppgifter","index":2,"n_rows":37,"n_cols":4,"rows_kept":37,"cut":false,"hidden":false,"merged":[[20,0,20,2],[22,1,22,2],[23,0,23,2],[24,0,36,0],[29,1,29,2],[36,1,36,2],[33,1,33,2],[34,1,34,2],[21,1,21,2],[25,1,25,2],[26,1,26,2],[27,1,27,2],[32,1,32,2],[35,1,35,2],[19,0,19,2],[7,0,7,2],[8,0,10,2],[11,0,12,0],[12,1,12,2],[15,0,18,0],[15,1,15,2],[16,1,17,2],[18,1,18,2],[13,1,13,2],[14,1,14,2]]}
["Kontaktuppgifter"]
[]
["Kontaktuppgift för frågor om leveranser \n(TDOK 2016:0407, TDOK 2016:0411, TMALL 0344): ",null,null,"indatakoordinering@trafikverket.se "]
[]
["Kontaktuppgift för frågor inom ett visst teknikområde kontakta: "]
["Teknikområdesgrupp","Teknikområde","Delområde","Kontaktuppgift - Innehåll i data/dokumentation"]
["Bankropp",null,null,"byggnadsverk.jvg_batman@trafikverket.se"]
["Byggnadsverk",null,null,"byggnadsverk.jvg_batman@trafikverket.se"]
["Elkraftssystem",null,null,"elkraft@trafikverket.se"]
[null,null,null,"kopplingsschema@trafikverket.se "]
[null,null,null,"geld.systemforvaltning@trafikverket.se "]
["Fastighetsinstallationer","Fastighetsteknik"," Plattformsutrustning","UHdss (Adress saknas)"]
[null,"Passagesystem",null,"tilltrade@trafikverket.se "]
["Signalsystem","Ställverksdokumentation för ställverk 85, 95 och 11",null,"signalsystem.datorstallverk@trafikverket.se"]
[null,null,null,"teknisk.sakerhetsstyrning.iv@trafikverket.se "]
["Spårsystem","Geodetiskt stomnät",null,"geodesi.jarnvagsdata@trafikverket.se "]
[null,"Banöverbyggnad",null,"tillstandspar@trafikverket.se "]
[null,null,null,"teknisk.sakerhetsstyrning.iv@trafikverket.se "]
[null,"Bangårds- och sidoanläggning",null,"tillstandspar@trafikverket.se "]
["Telekominfrastruktur",null,null,"Kontakta utsedd Uppdragsledare IKT se TDOK 2015:0015"]
["Trafikinformationsanläggning",null,null,"akj.trafikinformation@trafikverket.se "]
["Trafiknät","Spårnät",null,"forvaltningsdata.jarnvag@trafikverket.se"]
["Tågledningssystem","Trafikstyrningssystem",null,"inlasningssamordnare@trafikverket.se "]
["Övervakningssystem",null,null,"roger.bystrom@trafikverket.se"]
["Övrigt","Administrativ och funktionell företeelse","Funktionell företeelse","forvaltningsdata.jarnvag@trafikverket.se"]
[null,"Baskarta",null,"indatakoordinering@trafikverket.se"]
[null,"Byggnad",null,"lev.forvaltningsdata.byggnad@trafikverket.se"]
[null,"Geografiska modellfiler",null,"indatakoordinering@trafikverket.se"]
[null,"JNB",null,"jnb.infrastruktur@trafikverket.se"]
[null,"Mark",null,"tillstandspar@trafikverket.se"]
[null,"Miljö","Övrigt om miljö","jarnvag_anlaggningmiljo@trafikverket.se"]
[null,"Miljö","Förorenade områden","fororenade.omraden@trafikverket.se "]
[null,"Plankorsning",null,"plankorsning@trafikverket.se "]
[null,"Rangerbangård"]
[null,"Tågplan",null,"trafikplanering.anlaggningsforandringar@trafikverket.se"]
[null,"Underlag till linjeboken",null,"linjeboken@trafikverket.se"]
[null,"Underlag till säkerhetsplan, driftplats",null,"forvalta.sakerhetsdok@trafikverket.se"]

{"sheet":"Definitioner","index":3,"n_rows":19,"n_cols":2,"rows_kept":19,"cut":false,"hidden":false,"merged":[[3,0,3,1],[8,0,8,1],[14,0,14,1]]}
["Definitioner"]
[]
["Begrepp","Definition/förklaring"]
["Roller"]
["Indatakoordinator","Bistår projekten med svar på frågor om data och dokumentation till förvaltande system. Koordinerar mottagandet av förvaltningsdata samt gör uppföljning av planerade och genomförda leveranser."]
["Mottagande förvaltning","Den organisation som tar emot leveranser till sitt förvaltande system."]
["Mottagandekoordinator (MK)","Avser den person som är ansvarig för att koordinera mottagandet av ansvar, anläggning och förvaltningsdata vid ny eller förändrad infrastruktur. \nSe TDOK 2012:1198 Mottagandekoordinator - Rollbeskrivning."]
["Överlämnandekoordinator (ÖK)","Avser den person som koordinerar överlämnandet av ansvar, anläggning och förvaltningsdata vid ny eller förändrad infrastruktur. Se TDOK 2012:1170 Överlämnandekoordinator - Rollbeskrivning"]
["Förvaltande system"]
["Förvaltande system","De system/databaser/lagringsplatser där data om anläggningen förvaltas/lagras."]
["MWL","Miljöwebb Landskap"]
["PW/FJ","ProjectWise/Förvaltning järnväg"]
["PW/FU","ProjectWise/Förvaltning underhåll"]
["PW/ICT","ProjectWise/ICT"]
["Leveranstider"]
["Bygghandling","Handling som fastställts att gälla som underlag för utförande. Bygghandlingen utgör en redovisning för hur ett projekt ska genomföras och innefattar alla handlingar som är nödvändiga för produktion av byggnaden eller anläggningen."]
["Inkoppling","Aktivitet som utgör det sista skedet vid ibruktagande och som innebär att anläggningen slutligen kan upplåtas för trafik"]
["Inläsning","Tidpunkten då den nya och/eller förändrade järnvägsanläggningens anläggningsdata läses in i tågledningssystemet med förändrad funktionalitet och godkänt överlämnande till respektive TC."]
["Slutbesiktning","Vid en slutbesiktning besiktas att arbetet är slutfört enligt kontrakt. En slutbesiktning ska om inte parterna avtalat om annat, verkställas vid kontraktstidens utgång, eller om entreprenaden färdigställs senare, utan dröjsmål efter det att entreprenaden anmälts vara fastställd. "]

{"sheet":"Leveranstider","index":4,"n_rows":27,"n_cols":22,"rows_kept":27,"cut":false,"hidden":false,"merged":[[11,18,12,18],[13,18,14,18],[17,18,19,18],[20,18,21,18]]}
[]
[null,null,null,null,null,null,null,null,null,null,null,null,null,null,null,null,null,null,"Leveranstid järnvägsanläggning","Teknikområde","Bakgrund till tidskravet","System"]
[null,null,null,null,null,null,null,null,null,null,null,null,null,null,null,null,null,null,"Senast 30 april 20-32 månader före inkoppling","Övrigt\n","Tågtrafik planeras i tågplan med 8 till 20 månaders framförhållning\nFör att sammanställa planeringsförutsättningarna behöver uppgifter komma till JNB ytterligare 12 månader före, dvs 20 till 32 månader. \nJNB är Trafikverkets produktkatalog, dvs vilka tjänster vi tillhandahåller.\n","Järnvägsnätsbeskrivningen (JNB)"]
[null,null,null,null,null,null,null,null,null,null,null,null,null,null,null,null,null,null,"Senast 30 september 15-27 månader före inkoppling","Övrigt\n","Tiden ”Senast 30 september 15-27 månader före inkoppling” bygger på att vi skall kunna leverera en anläggningsmodell i februari dels för vårt eget planeringssystem men även som underlag inför ansökan för järnvägsföretagen. För det behöver vi några månader för att hinna analysera de uppgifter vi fått in, ställa eventuella kompletterande frågor samt bygga det i vår anläggningsmodell.\n","Tågplan"]
[null,null,null,null,null,null,null,null,null,null,null,null,null,null,null,null,null,null,"2 veckor efter utjämningsberäkning av stompunktsetablering ","Geodetiskt stomnät","Det geodetiska stomnätet är referensen för lägesbestämning av spår och spårnära objekt i Trafikverkets järnvägsanläggning. Om någon förändrar stomnätet är det därför av yttersta vikt att den nya information kan nå ut till samtliga som har ett behov av att använda stomnätet i det aktuella området. Därför ska den som har förändrat stomnätet leverera den nya stomnätsberäkningen (enligt TMALL 0344) till förvaltningen för Trafikverkets geodetiska stomnät senast två veckor efter att man har utfört utjämningsberäkningen.  \nI ett och samma område kan flera olika aktörer utföra åtgärder samtidigt och för olika projekt. Därför räcker det inte att endast hantera ny stompunktsinformation inom det projekt som har förändrat informationen utan den behöver levereras skyndsamt (inom två veckor) till förvaltningen, som är ”spindeln i nätet” i distributionen/hanteringen av denna information.\n\n","ProjectWise, Förvaltning järnväg"]
[null,null,null,null,null,null,null,null,null,null,null,null,null,null,null,null,null,null,"Vid färdig bygghandling, senast 6 månader före inkoppling","Radio och telefoni\nSiter och kabelanläggning","Informationen behövs för att kunna planera inför kommande tjänster som behövs vid driftsättning av våra olika kommunikationsnät. Informationen behövs för att kunna bygga upp infrastruktur i vårt planerings och inventarie system IVAR. När vi har siter, kablar, elförsörjning 48V m.m. så kan vi planera för vår utrustning och tjänster som behövs för att kunna driftsätta anläggningen.\n\nAtt informationen behövs vid vad man kallar ”färdig bygghandling, senast 6 månader för inkoppling” är för att det ska vara så nära den slutliga anläggningen som möjligt. Några exempel på tjänster är för signalanläggningen, växelvärme, GELD, plattformsnät mm för  järnväg. För väg är det främst i komplexa anläggningar olika styr och säkerhetssystem mm. Alla dessa funktioner behöver kommunikation så utan den blir det ingen driftsättning av anläggningen.\n\n\n","ProjectWise, Förvaltning järnväg"]
[null,null,null,null,null,null,null,null,null,null,null,null,null,null,null,null,null,null,"Vid färdig bygghandling, senast 6 månader före inkoppling \n(OBS! Missvisande tidskrav!)","Trafikinformation","Just nu är tidskravet som det är, det kommer att ses över till kommande revideringar. Trafikinformation behöver få information om anläggningen INNAN BYGGSTART. Detta för att hinna kontrollera om anläggningen är projekterad på rätt sätt INNAN byggstart. (Tyvärr händer det att man projekterat på fel sätt och det har lett till fördyringar i projektet.)","ProjectWise/Förvaltning Järnväg/Förvaltningsdata Leveranser/ _Resenärsinformation (BH)/ Bandel, projektnamn"]
[null,null,null,null,null,null,null,null,null,null,null,null,null,null,null,null,null,null,"6 månader före inkoppling","Bro\nTunnel och bergslänt\nBanöverbyggnad\nSpårnät\nSidoanläggning\nAdministrativ och funktionell företeelse\nLågspänningssystem\nSignalsystem\nFordonsövervakande detektorer\n","Informationen används för att skapa upp spårnätet i Trafikverkets baninformations- och geografiska informationssystem, systemen BIS och GAD. I BIS läggs också tillhörande signalanläggning in. Resultatet används senare i processen för trafikplanering/trafikstyrning respektive kapacitetsplanering (görs i systemen SNTL respektive MPK). \nTrafiknätet, som det är upplagt i BIS, är också referens för att relatera anläggningsobjekten till rätt position i förhållande till spårnätet. \nDen främsta orsaken till leveranstidkravet -6m (6 månader innan inkoppling) är kravet på att hinna förbereda Trafikledningssystem (dagens samt kommande system) inför inkoppling. Därför är det endast trafikledningspåverkande leveransobjekt som ingår i -6 månader (se nedan). Övriga leveransobjekt lämnas till leveranser efter inkoppling.\nDet är ett antal olika arbetssteg efter dataleverans som måste hinna genomföras innan inkoppling. Utförande av dessa delas mellan VO Underhåll (Järnvägsdata) och VO Trafik.\n\nProcessen ser ut enligt följande: \n-6m innan inkoppling –> Leverans/Mottagning kontroll (10 dgr)\n-6m - -2m innan inkoppling –>  Ärendehandläggning. Uppdatering spårnät, Signalanläggning, ATC, RoS, OI, samt uppdatering av vissa, för trafikering, nödvändiga objekt och indelningar.\n- 2m innan inkoppling -> Leverans till Trafik för deras handläggning \nDag för Inkoppling – förutom aktiviteter kopplade till trafikledning uppdateras även BIS (nuBIS) – BIS projektet checkas in -  för att återspegla den fysiska anläggningen som den ser ut efter inkoppling. ","BIS / NTL / MPK"]
[null,null,null,null,null,null,null,null,null,null,null,null,null,null,null,null,null,null,"6 månader före inkoppling","Plankorsning","Aktiviteten Ny plankorsning reserverar det femsiffriga id-numret i BIS och är det allra första steget för att skapa en ny plankorsning. I aktiviteten behöver preliminära geografiska data anges så att den blivande plankorsningen kan visas på en karta. Dessa data kommer senare att skrivas över när det exakta läget är fastställt. Först då kommer plankorsningen att visas i andra it-system.\n\nDenna aktivitet behöver ske för att leveranser 6 mån före inkoppling ska kunna registreras i BIS.","PLK web"]
[null,null,null,null,null,null,null,null,null,null,null,null,null,null,null,null,null,null,"4 månader före inläsning","Trafikstyrningssystem","Informationen behövs tidigt för att hinna utföra granskning av underlag, bildremisser och FAT-tester etc. Informationen används i dagens tågledningssystem för att kunna styra trafik.","Tågledningssystemet"]
[null,null,null,null,null,null,null,null,null,null,null,null,null,null,null,null,null,null,"4 månader före plankorsningen tagits i bruk för vägtrafik","Plankorsning","Informationen behövs för att myndighetsbeslut ska hinna handläggas och beslutas innan förändring tagits i bruk.\n","PLK web"]
[null,null,null,null,null,null,null,null,null,null,null,null,null,null,null,null,null,null,"10 veckor före inkoppling","Signalsystem","Informationen används för att projektera order och indikering och för att bygga trafikledningsystemets trafikbilder.\n(Ställverksuppgifter till BIS som behövs för NTL och MPK)\n","BIS"]
[null,null,null,null,null,null,null,null,null,null,null,null,null,null,null,null,null,null,null,"Siter och kabelanläggning","Informationen används för att kunna planera förvaltning och driftsättning av kommunikationsnäten. \n10 v före inkoppling ska kabeln vara inmätt med koordinater och det ska finnas protokoll på mätningar av kabeln. Det är information som inte finns vid färdig bygghandling men som vi behöver för förvaltning av kabeln när anläggningen tas i drift. Var den ligger i backen behövs för kabelutsättningar så att kabeln inte grävs av. Protokoll som ex verifierar att kabeln är inte är skadad samt att den inte har för hög dämpning som gör dem obrukbara för de flesta kommunikationssystem, bifogas.\n","ProjectWise, ICT"]
[null,null,null,null,null,null,null,null,null,null,null,null,null,null,null,null,null,null,"2 månader före inkoppling","Underlag till linjeboken","Informationen behövs för att kunna planera datum för versionsändring. Ändringen läggs ut på Trafikverkets webbsida tre veckor före inkoppling. \n\nLinjebokens två månader inkoppling är satt för att kunna planera tidpunkt för versionsändring. Oftast har information om inkopplingar angetts tidigare men uppgifterna som ligger till grund för ändringarna behövs två månader före inkoppling. \n","Underlag till linjeboken"]
[null,null,null,null,null,null,null,null,null,null,null,null,null,null,null,null,null,null,null,"Underlag till säkerhetsplan","Informationen behövs för att framställa en säkerhetsplan för trafikledning och järnvägsföretag, där vissa villkor finns för trafikering.\n\nLeverans 2 månader före inkoppling behövs för att ha förutsättningar för att uppdatera säkerhetsplaner i god tid och få dom publicerade i dokumentcenter, samt ge verksamheten en chans att implementera ev förändringar i god tid innan förändringen träder i kraft.\n","Underlag till säkerhetsplan, driftplats"]
[null,null,null,null,null,null,null,null,null,null,null,null,null,null,null,null,null,null,"1 månad före inkoppling\n","Bro\nTunnel \nÖvriga byggnadsverk\nBankropp","För att teknikspecialist/ teknikingenjör ska ha tid att genomföra aktivitet 1 enligt Rutinbeskrivning TDOK 2018:0200. Kontrollera att: \n\n• Konstruktionsredovisning är kopplad i BaTMan\n• Tekniska uppgifter är registrerade och skickade för fastställelse\n• Uppgifter om konstruktiv indelning är registrerade och skickade för fastställelse\n• Bärighet är registrerad och skickad för fastställelse\n• Passager, exkl. vägnätsanknytning, är registrerade och skickade för fastställelse.  \n\nDärmed har teknikspecialist/ teknikingenjör chans att hinna göra aktivitet 2 (fastställa tekniska uppgifter) enligt TDOK 2018:0200 senast 2 veckor före inkoppling.\nUnderhåll ska fastställa bärighet och uppgifter om konstruktiv indelning senast dagen före inkoppling. För att hinna detta måste övriga tekniska uppgifter vara fastställda senast två veckor före inkoppling.\n","BaTMan"]
[null,null,null,null,null,null,null,null,null,null,null,null,null,null,null,null,null,null,"2 veckor före inkoppling","Kontaktledningssystem","Informationen behövs för att kunna ta elanläggning i drift efter ombyggnation eller nybyggnation. Eldriftledningens geldsystem kan behöva uppdateras och ev ritas om samt att kopplingsschemor för felavhjälpning och underhåll ska finnas tillgängliga så fort anläggningen tas i bruk. \n\nKopplings- och grupp-schema (kontaktledning) behövs 14 dagar före inkoppling för att kopplingsschemafunktionen ska ha en rimlig tid för att rita om kopplingsschemat, och därefter GELD systemförvaltning ska hinna uppdatera sin Geld-bild. Samtidigt som man ska hinna fånga upp eventuella sena ändringar i projekten.\n","ProjectWise, Förvaltning järnväg"]
[null,null,null,null,null,null,null,null,null,null,null,null,null,null,null,null,null,null,"Dagen för inkoppling","Bro\nTunnel \nÖvriga byggnadsverk\n","Huvudinspektioner för bro, tunnel och övriga byggnadsverk måste vara registrerad.\n","BaTMan"]
[null,null,null,null,null,null,null,null,null,null,null,null,null,null,null,null,null,null,null,"Signalsystem","Datorställverksdokumentation behövs för akut felavhjälpning.\nEnligt TRVINFRA 00301, bilaga 4, paket 3 (Ställverk 95): Detta är filer som används för att ladda på mjukvara på signalställverket och eventuell radioblockscentral.\nOm exempelvis hårdvaran går sönder så behöver ny mjukvara läsas på och därav måste vi ha detta tillgängligt dagen för inkoppling.\n\nEnligt TRVINFRA 00301, bilaga 4, paket 6 (Ställverk 95): Detta är filer som används för att läsa på data på Eurobaliser som finns ute i spåret.\n\n ","EBBA samt fysiskt lagrat i anläggningen."]
[null,null,null,null,null,null,null,null,null,null,null,null,null,null,null,null,null,null,null,"Fordonsövervakande detektorer","Informationen (installationsprotokoll) behövs för att skapa/uppdatera detektorer i RFID-systemet, vilket måste finnas på plats vid inkoppling. \nRFID-systemet = Detektorsystem för identifiering av enskilt fordonsnummer.\n","EBBA"]
[null,null,null,null,null,null,null,null,null,null,null,null,null,null,null,null,null,null,"1 vecka efter inkoppling","Bro\nÖvriga byggnadsverk\nBanöverbyggnad\nBankropp\nSidoanläggning\nAdministrativ och funktionell företeelse\nHjälpkraftssystem\nKontaktledningssystem\nLågspänningssystem\nKraftförsörjningsanläggning\nSignalsystem\n","Informationen behövs för besiktning, felanmälan. För att UH bandata ska kunna ajorhålla anläggningen inför slutbesiktning.","BIS"]
[null,null,null,null,null,null,null,null,null,null,null,null,null,null,null,null,null,null,null,"Signalsystem","Programfiler för signalanläggningen behövs tillgängliga för UH-entreprenören egentligen direkt efter att trafik tillåts på anläggningen efter en inkoppling. I händelse av utbyte av ATC-kodare, RTU, ställverks- eller manöverdator måste signalteknikerna kunna ladda utrustningen med gällande programfiler.\nAtt levanskravet är satt till 1 vecka efter inkoppling är p.g.a eventuella ändringar i samband med ibruktagandet.\n","EBBA"]
[null,null,null,null,null,null,null,null,null,null,null,null,null,null,null,null,null,null,"3 veckor efter inkoppling","Bankropp\nÖvriga byggnadsverk\nBanöverbyggnad\nRadio och telefoni\nSignalsystem\nTrafikinformationsanläggning (Teknikgrupp)\nAdministrativa och funktionell företeelse\nRangerbangård\n","Informationen används för publik information om anläggningen, samt data ej omfattad av besiktningskrav.","BIS"]
[null,null,null,null,null,null,null,null,null,null,null,null,null,null,null,null,null,null,"1 månad efter plankorsningen tagits i bruk för vägtrafik","Plankorsning","Informationen behövs för att information om plankorsningens skyddsalternativ, driftstatus och andra egenskaper ska vara korrekta. Om plankorsningen blivit stängd eller slopad ska också uppdaterad information levereras.\n","PLK web"]
[null,null,null,null,null,null,null,null,null,null,null,null,null,null,null,null,null,null,"3 månader efter slutbesiktning","Bro\nTunnel och bergslänt\nÖvriga byggnadsverk\nBankropp","Hanteringen av inrapportering till BaTMan bygger på rutinbeskrivningen TDOK 2018:0200\n”Förvaltningsdata och uppgifter i BaTMan”. Här finns uppgift om när aktiviteterna senast ska vara utförda. \n","BaTMan"]
[null,null,null,null,null,null,null,null,null,null,null,null,null,null,null,null,null,null,"3 månader efter slutbesiktning","Bankropp\nÖvriga byggnadsverk\nGELD inklusive RTU:er\nHjälpkraftssystem\nKontaktledningssystem\nLågspänningssystem\nKraftförsörjningsanläggning\nFastighetsteknik\nPassagesystem\nRadio och telefoni\nSiter och kabelanläggning\nSignalsystem\nSidoanläggning\nBanöverbyggnad\nTrafikinformationsanläggning (Teknikgrupp)\nFordonsövervakande detektorer\nBaskarta\nByggnad\nMark\nPumpsystem\nRangerbangård\nSamtliga teknikområden (Geografiska modellfiler)\nGeodetiskt stomnät\nMiljö\nMatarledningssystem (32 och 132 kV)\n","Leveranstidskravet är satt utifrån att projektet ska ha rimlig tid på sig för att kunna ta fram handlingar av rätt kvalitet. Arbetet med att ta fram dokumentationen behöver påbörjas tidigare och vara väl förankrat i underhålls organisation i god tid inför leverans.\nInformationen behövs för drift och underhåll av anläggningen.","EBBA / ProjectWise, Förvaltning järnväg / ABBA-FT "]
[null,null,null,null,null,null,null,null,null,null,null,null,null,null,null,null,null,null,"1 månad efter Transportstyrelsens godkännande","Signalsystem\nBanöverbyggnad","Det finns krav på att säkerhetsbevisningen måste lagras under hela anläggningens livscykel. Därför begärs dokumentationen in senast 1 månad efter Transportstyrelsens godkännande. Transportstyrelsens godkännande är det sista steget i säkerhetsbevisningen.\n\n"," ProjectWise Förvaltning järnväg "]

{"sheet":"Lathund - BISobjekt","index":5,"n_rows":129,"n_cols":7,"rows_kept":129,"cut":false,"hidden":false,"merged":[[3,2,3,3],[2,1,2,4],[1,0,1,4]]}
["Lathund - BISobjekt"]
["Objekten i BIS har i tidigare leveransplaner haft en egen flik, så är det inte längre. Nu är alla BIS-objekten insorterade under den nya teknikområdesgrupperingen. För att underlätta övergången mellan den gamla strukturen och den nya finns nu denna lathund. "]
["Länk till BIS-mallar (Följ länken och klicka på mappen \"BIS\". Undantaget TMALL 0341 som återfinns i mappen \"Banöverbyggnad\"):","https://bransch.trafikverket.se/tjanster/publikationer-och-styrande-dokument/trafikverkets-styrande-dokument/blanketter-och-mallar-tillhorande-styrande-dokument/"]
[null,null,"NY STRUKTUR",null,"GAMMAL STRUKTUR"]
["BIS-objekt (Bokstavsordning)","BIS-mall","Teknikområdesgrupp","Teknikområde","Anläggningsstruktur i BIS","Leveranstid","Flik i leveransplan"]
["50 Hz-Frånskiljare","TMALL 0612","Elkraftssystem","Hjälpkraftssystem","Elanläggning","1 vecka efter inkoppling","6.2"]
["50 Hz-Hjälpkraftledning","TMALL 0613","Elkraftssystem","Hjälpkraftssystem","Elanläggning","1 vecka efter inkoppling","6.2"]
["50 Hz-Hjälpkrafttransformator","TMALL 0614","Elkraftssystem","Hjälpkraftssystem","Elanläggning","1 vecka efter inkoppling","6.2"]
["Avhängardäck","TMALL 1335","Övrigt","Rangerbangård"," --","3 veckor efter inkoppling","15.7"]
["Balisgrupp ERTMS","TMALL 0631","Signalsystem","Signalsystem","Signalanläggning","6 månader före inkoppling","8.1"]
["Ballast","TMALL 0599","Spårsystem","Banöverbyggnad","Banöverbyggnad","1 vecka efter inkoppling","9.1"]
["Bank","TMALL 0576","Bankropp","Bankropp","Banunderbyggnad","1 vecka efter inkoppling","4.1"]
["Befästning","TMALL 0600","Spårsystem","Banöverbyggnad","Banöverbyggnad","1 vecka efter inkoppling","9.1"]
["Belysning - Bangård","TMALL 1301","Elkraftssystem","Lågspänningssystem","Elanläggning","1 vecka efter inkoppling","6.5"]
["Belysning - Plattform","TMALL 0615","Elkraftssystem","Lågspänningssystem","Elanläggning","1 vecka efter inkoppling","6.5"]
["Brandvattenförsörjning","TMALL 1326","Övrigt","Rangerbangård","Övriga objekttyper","3 veckor efter inkoppling","15.7"]
["Bromsprovsanläggning","TMALL 1334","Övrigt","Rangerbangård"," --","3 veckor efter inkoppling","15.7"]
["Bullerskydd","TMALL 0653","Byggnadsverk","Övriga byggnadsverk","Övriga anläggningar","1 vecka efter inkoppling","5.3"]
["Detektor","TMALL 0644","Övervakningssystem","Detektor","Teleanläggning","6 månader före inkoppling","14.1"]
["Dilatationsanordning","TMALL 0962","Spårsystem","Banöverbyggnad","Banöverbyggnad","1 vecka efter inkoppling","9.1"]
["Dränering","TMALL 0577","Bankropp","Bankropp","Banunderbyggnad","1 vecka efter inkoppling","4.1"]
["Dynamisk skylt","TMALL 0649","Trafikinformationsanläggning","Trafikinformationsanläggning","Teleanläggning","3 veckor efter inkoppling","11.1"]
["ELC","TMALL 1322","Signalsystem","Signalsystem"," --","3 veckor efter inkoppling","8.1"]
["Erosionsskydd","TMALL 0578","Bankropp","Bankropp","Banunderbyggnad","1 vecka efter inkoppling","4.1"]
["ERTMS Hastighetsprofil Normalhuvudspår ","TMALL 1295","Övrigt","Funktionell företeelse","Övriga anläggningar","6 månader före inkoppling","15.1"]
["ERTMS Hastighetsprofil Övriga spår","TMALL 1296","Övrigt","Funktionell företeelse","Övriga anläggningar","6 månader före inkoppling","4.1"]
["FOMUL-rapport (enstaka objekt)","TMALL 0341","Övrigt","Funktionell företeelse"," --","1 vecka efter inkoppling","15.1"]
["Frostskyddsisolering","TMALL 0579","Bankropp","Bankropp","Banunderbyggnad","3 veckor efter inkoppling","4.1"]
["Fördelningsstation","TMALL 0616","Elkraftssystem","Kraftförsörjningsanläggning","Elanläggning","1 vecka efter inkoppling","6.4"]
["Fördröjningsmagasin","TMALL 0660","Bankropp","Bankropp","Övriga objekttyper","3 veckor efter inkoppling","4.1"]
["Geotekniska händelser","TMALL 0661","Bankropp","Bankropp","Övriga objekttyper","3 veckor efter inkoppling","4.1"]
["Glacismur","TMALL 0580","Bankropp","Bankropp","Banunderbyggnad","1 vecka efter inkoppling","4.1"]
["Gångbana","TMALL 1337","Övrigt","Rangerbangård"," --","3 veckor efter inkoppling","15.7"]
["Hastighetsindikeringssystem","TMALL 0632","Signalsystem","Signalsystem","Signalanläggning","1 vecka efter inkoppling","8.1"]
["Huvudur","TMALL 0645","Trafikinformationsanläggning","Trafikinformationsanläggning","Teleanläggning","3 veckor efter inkoppling","11.1"]
["Hållplats, hållställe, övrig plats","TMALL 0662","Spårnät","Spårnät","Spårnät","6 månader före inkoppling","12.1"]
["Hägnad","TMALL 0654","Spårsystem","Sidoanläggning","Övriga anläggningar","1 vecka efter inkoppling","9.3"]
["Högtalare","TMALL 0651","Trafikinformationsanläggning","Trafikinformationsanläggning","Teleanläggning","3 veckor efter inkoppling","11.1"]
["Högtalare-PC","TMALL 0851","Trafikinformationsanläggning","Trafikinformationsanläggning","Teleanläggning","3 veckor efter inkoppling","11.1"]
["Isolerskarv","TMALL 0608","Spårsystem","Banöverbyggnad","Banöverbyggnad","6 månader före inkoppling","9.1"]
["Jordarmering","TMALL 0581","Bankropp","Bankropp","Banunderbyggnad","3 veckor efter inkoppling","4.1"]
["Jordspikning","TMALL 0582","Bankropp","Bankropp","Banunderbyggnad","3 veckor efter inkoppling","4.1"]
["Järnvägsbro","TMALL 0583","Byggnadsverk","Bro","Banunderbyggnad","6 månader före inkoppling","5.2"]
["Kalkcementpelare","TMALL 0584","Bankropp","Bankropp","Banunderbyggnad","3 veckor efter inkoppling","4.1"]
["Kanalisation","TMALL 0655","Byggnadsverk","Övriga byggnadsverk","Övriga anläggningar","3 veckor efter inkoppling","5.3"]
["Kopplingscentral","TMALL 0617","Elkraftssystem","Kraftförsörjningsanläggning","Elanläggning","1 vecka efter inkoppling","6.4"]
["Ktl U/L-område","TMALL 0876","Övrigt","Funktionell företeelse","Elanläggning","6 månader före inkoppling","15.1"]
["Ktl-Brygga/övrig upph.","TMALL 0618","Elkraftssystem","Kontaktledningssystem","Elanläggning","1 vecka efter inkoppling","6.3"]
["Ktl-Driftjord","TMALL 0619","Elkraftssystem","Kontaktledningssystem","Elanläggning","1 vecka efter inkoppling","6.3"]
["Ktl-Frånskiljare","TMALL 0620","Elkraftssystem","Kontaktledningssystem","Elanläggning","1 vecka efter inkoppling","6.3"]
["Ktl-Ledning","TMALL 0621","Elkraftssystem","Kontaktledningssystem","Elanläggning","1 vecka efter inkoppling","6.3"]
["Ktl-Sektion","TMALL 0622","Elkraftssystem","Kontaktledningssystem","Elanläggning","1 vecka efter inkoppling","6.3"]
["Ktl-Sektionsisolator","TMALL 0623","Elkraftssystem","Kontaktledningssystem","Elanläggning","1 vecka efter inkoppling","6.3"]
["Ktl-Skyddsektion","TMALL 0624","Elkraftssystem","Kontaktledningssystem","Elanläggning","1 vecka efter inkoppling","6.3"]
["Ktl-Stolpe","TMALL 0625","Elkraftssystem","Kontaktledningssystem","Elanläggning","1 vecka efter inkoppling","6.3"]
["Ktl-Transformator","TMALL 0626","Elkraftssystem","Kontaktledningssystem","Elanläggning","1 vecka efter inkoppling","6.3"]
["Lastplats","TMALL 0561","Spårsystem","Sidoanläggning","Bangårdsanläggning","6 månader före inkoppling","9.3"]
["Linjeblockeringssystem","TMALL 0633","Signalsystem","Signalsystem","Signalanläggning","3 veckor efter inkoppling","8.1"]
["Ljudanläggning","TMALL 0852","Trafikinformationsanläggning","Trafikinformationsanläggning","Teleanläggning","3 veckor efter inkoppling","11.1"]
["Lättfyllning","TMALL 0585","Bankropp","Bankropp","Banunderbyggnad","3 veckor efter inkoppling","4.1"]
["Nedpressning","TMALL 1166","Bankropp","Bankropp","Banunderbyggnad","3 veckor efter inkoppling","4.2"]
["Nätstation","TMALL 0627","Elkraftssystem","Kraftförsörjningsanläggning","Elanläggning","1 vecka efter inkoppling","6.4"]
["Nödlägesskåp","TMALL 0571","Övrigt","Rangerbangård","Övriga objekttyper","3 veckor efter inkoppling","5.1"]
["Omformarstation","TMALL 0628","Elkraftssystem","Kraftförsörjningsanläggning","Elanläggning","1 vecka efter inkoppling","6.4"]
["Plankorsning (Avser främst vägskyddsanl.)","TMALL 0634","Signalsystem","Signalsystem","Signalanläggning","6 månader före inkoppling","8.1"]
["Plattform","TMALL 0562","Spårsystem","Sidoanläggning","Bangårdsanläggning","6 månader före inkoppling","9.3"]
["Positioneringssystem","TMALL 0635","Signalsystem","Signalsystem","Signalanläggning","1 vecka efter inkoppling","8.1"]
["Prator","TMALL 0652","Trafikinformationsanläggning","Trafikinformationsanläggning","Teleanläggning","3 veckor efter inkoppling","11.1"]
["Pyramidmatta","TMALL 1267","Spårsystem","Banöverbyggnad"," --","3 veckor efter inkoppling","9.1"]
["Påldäck/bankpålning","TMALL 0586","Bankropp","Bankropp","Banunderbyggnad","3 veckor efter inkoppling","4.1"]
["Radio Block Center (ERTMS)","TMALL 0691","Signalsystem","Signalsystem","Signalanläggning","10 veckor före inkoppling","8.1"]
["Rangerbromssystem","TMALL 0564","Spårsystem","Banöverbyggnad","Bangårdsanläggning","3 veckor efter inkoppling","9.1"]
["Ras- och skredvarnings-system","TMALL 0810","Övervakningssystem","Detektor","Övriga anläggningar","6 månader före inkoppling","14.1"]
["RTU Siemens S7","TMALL 1157","Signalsystem","Signalsystem","Signalanläggning","6 månader före inkoppling","8.1"]
["RTU EBISAT 890","TMALL 1158","Signalsystem","Signalsystem","Signalanläggning","10 veckor före inkoppling","8.1"]
["Rustbädd","TMALL 0587","Bankropp","Bankropp","Banunderbyggnad","3 veckor efter inkoppling","4.1"]
["Räl","TMALL 0606","Spårsystem","Banöverbyggnad","Banöverbyggnad","1 vecka efter inkoppling","9.1"]
["Rälskontakt","TMALL 0636","Signalsystem","Signalsystem","Signalanläggning","1 vecka efter inkoppling","8.1"]
["Rälssmörjningsapparat","TMALL 0656","Spårsystem","Banöverbyggnad","Övriga anläggningar","3 veckor efter inkoppling","9.1"]
["Rälsvandringshinder","TMALL 0607","Spårsystem","Banöverbyggnad","Banöverbyggnad","1 vecka efter inkoppling","9.1"]
["Rör","TMALL 0668","Bankropp","Bankropp","Övriga objekttyper","3 veckor efter inkoppling","4.1"]
["Sektioneringsstation","TMALL 0629","Elkraftssystem","Kraftförsörjningsanläggning","Elanläggning","1 vecka efter inkoppling","6.4"]
["Service och räddningstunnel","TMALL 0588","Byggnadsverk","Tunnel och bergslänt","Banunderbyggnad","6 månader före inkoppling","5.2"]
["Signal (ej ATC)","TMALL 0637","Signalsystem","Signalsystem","Signalanläggning","6 månader före inkoppling","8.1"]
["Signalpunktstavla ERTMS","TMALL 0638","Signalsystem","Signalsystem","Signalanläggning","6 månader före inkoppling","8.1"]
["Signalställverk","TMALL 0639","Signalsystem","Signalsystem","Signalanläggning","10 veckor före inkoppling","8.1"]
["Skarv öppningsbar bro","TMALL 0963","Spårsystem","Banöverbyggnad","Banöverbyggnad","1 vecka efter inkoppling","9.1"]
["Skyddsräl","TMALL 0669","Spårsystem","Banöverbyggnad","Övriga objekttyper","3 veckor efter inkoppling","9.1"]
["Skärning","TMALL 0589","Bankropp","Bankropp","Banunderbyggnad","1 vecka efter inkoppling","4.1"]
["Sliper","TMALL 0609","Spårsystem","Banöverbyggnad","Banöverbyggnad","1 vecka efter inkoppling","9.1"]
["Snögalleri","TMALL 0657","Byggnadsverk","Övriga byggnadsverk","Övriga anläggningar","1 vecka efter inkoppling","5.3"]
["Snöskärm","TMALL 0658","Byggnadsverk","Övriga byggnadsverk","Övriga anläggningar","1 vecka efter inkoppling","5.3"]
["Spillplatta","TMALL 0573","Övrigt","Rangerbangård","Övriga objekttyper","3 veckor efter inkoppling","15.7"]
["Spont","TMALL 0590","Bankropp","Bankropp","Banunderbyggnad","3 veckor efter inkoppling","4.1"]
["Spårkors","TMALL 0610","Spårsystem","Banöverbyggnad","Banöverbyggnad","6 månader före inkoppling","9.1"]
["Spårledning (Fysisk)","TMALL 0640","Signalsystem","Signalsystem","Signalanläggning","6 månader före inkoppling","8.1"]
["Spårspärr","TMALL 0565","Spårsystem","Banöverbyggnad","Bangårdsanläggning","6 månader före inkoppling","9.1"]
["Spårväxel 3V","TMALL 0603","Spårsystem","Banöverbyggnad","Banöverbyggnad","6 månader före inkoppling","9.1"]
["Spårväxel EV/EVR","TMALL 0601","Spårsystem","Banöverbyggnad","Banöverbyggnad","6 månader före inkoppling","9.1"]
["Spårväxel EVK/DKV","TMALL 0602","Spårsystem","Banöverbyggnad","Banöverbyggnad","6 månader före inkoppling","9.1"]
["Spänningsfri temperatur","TMALL 0672","Spårsystem","Banöverbyggnad","Övriga objekttyper","3 veckor efter inkoppling","9.1"]
["Stationsdator SL","TMALL 0647","Trafikinformationsanläggning","Trafikinformationsanläggning","Teleanläggning","3 veckor efter inkoppling","11.1"]
["Statisk skylt*","TMALL 0650","Trafikinformationsanläggning","Trafikinformationsanläggning","Teleanläggning","3 veckor efter inkoppling","11.1"]
["STH A_B_S-tåg (ERTMS)","TMALL 0812","Övrigt","Funktionell företeelse","Övriga objekttyper","6 månader före inkoppling","15.1"]
["Stoppbock","TMALL 0568","Spårsystem","Banöverbyggnad","Bangårdsanläggning","6 månader före inkoppling","9.1"]
["Stödmur","TMALL 0591","Byggnadsverk","Övriga byggnadsverk","Banunderbyggnad","1 vecka efter inkoppling","5.3"]
["Tavla (ej ATC)","TMALL 0641","Signalsystem","Signalsystem","Signalanläggning","6 månader före inkoppling","8.1"]
["Tavla (främst ATC)","TMALL 1297","Signalsystem","Signalsystem"," --","6 månader före inkoppling","8.2"]
["Teknikbyggnad","TMALL 0659","Elkraftssystem","Lågspänningssystem","Övriga anläggningar","1 vecka efter inkoppling","6.5"]
["Telefon","TMALL 0643","Telekominfrastruktur","Radio och telefoni","Teleanläggning","3 veckor efter inkoppling","10.1"]
["Transformatorstation","TMALL 0630","Elkraftssystem","Kraftförsörjningsanläggning","Elanläggning","1 vecka efter inkoppling","6.4"]
["Trumma","TMALL 0592","Bankropp","Bankropp","Banunderbyggnad","1 vecka efter inkoppling","4.1"]
["Tryckbank/stödbank","TMALL 0593","Bankropp","Bankropp","Banunderbyggnad","1 vecka efter inkoppling","4.1"]
["Tryckluftsanläggning","TMALL 1336","Övrigt","Rangerbangård"," --","3 veckor efter inkoppling","15.7"]
["Tunnel","TMALL 0594","Byggnadsverk","Tunnel och bergslänt","Banunderbyggnad","6 månader före inkoppling","5.2"]
["Tåg och lokvärmeanläggning","TMALL 0566","Elkraftssystem","Lågspänningssystem","Bangårdsanläggning","6 månader före inkoppling","6.5"]
["Underballast","TMALL 0595","Bankropp","Bankropp","Banunderbyggnad","1 vecka efter inkoppling","4.1"]
["Uppställningsspår","TMALL 0813","Övrigt","Funktionell företeelse","Övriga objekttyper","3 veckor efter inkoppling","15.1"]
["Ur","TMALL 0648","Trafikinformationsanläggning","Trafikinformationsanläggning","Teleanläggning","3 veckor efter inkoppling","11.1"]
["Urgrävning/utskiftning","TMALL 0596","Bankropp","Bankropp","Banunderbyggnad","3 veckor efter inkoppling","4.1"]
["Urspårningsslinga","TMALL 0642","Övervakningssystem","Detektor","Signalanläggning","6 månader före inkoppling","14.1"]
["Utdelsenhet","TMALL 1321","Signalsystem","Signalsystem"," --","3 veckor efter inkoppling","8.1"]
["Varningssystem","TMALL 0574","Övrigt","Rangerbangård","Övriga objekttyper","3 veckor efter inkoppling","15.7"]
["Väderobservationsutrustning","TMALL 0575","Övrigt","Rangerbangård","Övriga objekttyper","3 veckor efter inkoppling","15.7"]
["Vägbro","TMALL 0597","Byggnadsverk","Bro","Banunderbyggnad","1 vecka efter inkoppling","5.1"]
["Vändskiva","TMALL 0567","Byggnadsverk","Övriga byggnadsverk","Bangårdsanläggning","1 vecka efter inkoppling","5.3"]
["Växelvärmeskåp","TMALL 0611","Elkraftssystem","Lågspänningssystem","Banöverbyggnad","1 vecka efter inkoppling","6.5"]
["Åtkomlighet och nödlägesinformation","TMALL 0570","Övrigt","Rangerbangård"," --","3 veckor efter inkoppling","15.7"]
["Öppet dike","TMALL 0598","Bankropp","Bankropp","Banunderbyggnad","1 vecka efter inkoppling","4.1"]

{"sheet":"Arkivservice - Analog leverans","index":6,"n_rows":22,"n_cols":2,"rows_kept":22,"cut":false,"hidden":false,"merged":[[8,0,8,1],[21,0,21,1]]}
["Arkivservice"]
[]
["Kontaktuppgift"]
["Trafikverket\nArkivservice\nBox 111\n431 22 Mölndal\nMejl: arkivservice@trafikverket.se \nTel: 010-1239055"]
[]
["Leverera dokument"]
["Till Arkivservice ska det bara levereras analoga handlingar som saknar CAD-underlag. Det gäller alla teknikområden, nu även signal."]
[]
["Paket ska skickas med Postnord och tjänsten REK EXTRA. OBS! Inte som företagspaket eller annan vanlig post. Arkivservice ansvarar inte för paket som skickats på fel sätt, till exempel om fel adress använts eller fel postleverantör."]
[]
["Avisering om inleverans av de analoga ritningarna sker via Ebba."]
[]
["Packningsinstruktion"]
[]
["Det är viktigt att det är ordning och reda i paketen som skickas till Arkivservice, detta för att underlätta uppackningen av handlingarna."]
[]
["Innehåll:"]
[]
["Följesedel (gäller signal)","Pricka av alla gulmarkerade ritningar i listan och signera.\nFöljesedeln utgör en egenkontroll där projekten kontrollerar att alla de analoga ritningarna som förväntas finnas i leveransen till Arkivservice verkligen är med i leveransen."]
["Ritningar","Alla ritningar ska sorteras i nummerordning och per storlek (A3, rullar och övriga format för sig). Respektive anläggning ska separeras från varandra. "]
[]
["Om analoga dokument slopas eller ersätts av digitalt CAD-underlag ska de analoga dokumenten återsändas till Arkivservice som kasserar dem. \n\nProjektet ska INTE själv kassera analoga ritningar på väv eller ritfilm som slopas. \n"]

{"sheet":"Projektuppgifter","index":7,"n_rows":143,"n_cols":14,"rows_kept":143,"cut":false,"hidden":false,"merged":[[13,1,13,2],[18,2,18,3],[3,4,3,5],[4,4,4,5],[5,4,5,5],[6,4,6,5],[7,4,7,5],[8,4,8,5],[10,4,10,5],[6,1,6,2],[7,1,7,2],[9,4,9,5],[16,0,16,4],[5,7,10,7],[2,4,2,6],[2,0,2,2],[3,1,3,2],[4,1,4,2],[5,1,5,2],[8,1,8,2],[9,1,9,2]]}
["Projektuppgifter"]
[null,"Fylls i av projekt:",null,null,null,null,"Fylls i av projekt:"]
["Projektuppgifter",null,null,null,"Tider i projektet (Endast ett datum i varje cell, i formatet ÅÅÅÅ-MM-DD) \nEndast ett datum kan skrivas i fältet."]
["Åtgärdsnummer:",null,null,null,"Projektets startdatum:"]
["Uppdragsnummer:",null,null,null,"Projektets slutdatum:"]
["Projektnamn:",null,null,null,"Datum för utjämningsberäkning av stompunktsetablering:",null,null,"De datum som anges här ligger till grund för de datum som automatiskt genereras i respektive flik. \n\nMan kan sedan ändra datumet i respektive flik, så att det stämmer med rätt datum per teknikområde och inkoppling.\n\nOm flera inkopplingsdatum finns, kan med fördel fler rader/flikar läggas till (en för varje bro ex.) "]
["Bandel, trafikplats:",null,null,null,"Datum då plankorsning tas i eller ur bruk för vägtrafik:"]
["Start km - Slut km",null,null,null,"Inläsningsdatum till tågledningssystem:"]
["Projektledare:",null,null,null,"Inkopplingsdatum:"]
["Kort beskrivning om projektet:",null,null,null,"Slutbesiktningsdatum: "]
["Länk till AKJ",null,null,null,"Datum för Transportstyrelsens godkännande:"]
["Överlämnandekoordinator (ÖK):"]
["Mottagningskoordinator (MK):"]
["Indatakoordinator (IK):"]
[]
[]
["Länk till alla TMALL:ar som ska levereras enligt denna leveransplan återfinns här, i mappen BIS och Förvaltningsdata:"]
["Länkar till TMALLar"]
["Fylls i av:","Projekt","Leverantör",null,"Projekt",null,null,null,null,null,null,null,null,"ÖK"]
["Leveranstid","Påverkas av projektet","Leverans från leverantör (E/K) till leveransyta enl. kolumn L eller annan överenskommen yta, för granskning senast: ","Levererat av \n(namn + datum) ","Levereransen ska vara levererad till mottagande förvaltning senast:","Teknikområdesgrupp","Teknikområde","Delområde","Data/ Dokument","Avsnitt i TDOK 2016:0407","Flik i leverans-planen","Projektet ska leverera till","Förvaltande system","Status på leveransen?"]
["01. 30 april 32-20 månader före inkoppling",null,null,null,"Projektet får fylla i tid själv","Övrigt"," --"," --","Dokument"," --","0 JNB","jnb.infrastruktur@trafikverket.se ","JNB"]
["02. 30 september 27-15 månader före inkoppling",null,null,null,"Projektet får fylla i tid själv","Övrigt"," --"," --","Dokument"," --","0 Tågplan","Projektets lagringsyta","Tågplan"]
["03. 2 veckor efter utjämningsberäkning av stompunktsetablering","Ja",{"$f":"IF(E23=\"\",\"\",E23-14)","v":""},null,{"$f":"IF($G$6=\"\",\"\",DATE(YEAR('9.2 Geodetiskt stomnät'!B2),MONTH('9.2 Geodetiskt stomnät'!B2),DAY('9.2 Geodetiskt stomnät'!B2)+14))","v":""},"Spårsystem","Geodetiskt stomnät",null,"Dokument","9.2.1","9.2","PW/FJ/Förvaltningsdata Leveranser","PW/FJ"]
["04. Vid färdig bygghandling, senast 6 månader före inkoppling",null,{"$f":"IF(E24=\"\",\"\",E24-14)","v":""},null,{"$f":"IF(G9=\"\",\"\",EDATE('10.1 Radio och telefoni'!B2,-6))","v":""},"Telekominfrastruktur","Radio och telefoni","Radio","Dokument","10.1.2.1","10.1","Projektets lagringsyta","PW/ICT"]
["04. Vid färdig bygghandling, senast 6 månader före inkoppling",null,{"$f":"IF(E25=\"\",\"\",E25-14)","v":""},null,{"$f":"IF(G9=\"\",\"\",EDATE('10.2 Siter och kabelanl'!B2,-6))","v":""},"Telekominfrastruktur","Siter och kabelanläggning","Kabelanläggning","Dokument","10.2.2.1","10.2","Projektets lagringsyta","PW/ICT"]
["04. Vid färdig bygghandling, senast 6 månader före inkoppling",null,"",null,{"$f":"IF(G9=\"\",\"\",EDATE('10.2 Siter och kabelanl'!B2,-6))","v":""},"Telekominfrastruktur","Siter och kabelanläggning","Kraft - Tele","Dokument","10.2.2.2","10.2","Projektets lagringsyta","PW/ICT"]
["04. Vid färdig bygghandling, senast 6 månader före inkoppling",null,"",null,{"$f":"IF(G9=\"\",\"\",EDATE('10.2 Siter och kabelanl'!B2,-6))","v":""},"Telekominfrastruktur","Siter och kabelanläggning","Nödfrånkopplingsslinga - Kopparkabel","Dokument","10.2.2.3","10.2","Projektets lagringsyta","PW/ICT"]
["04. Vid färdig bygghandling, senast 6 månader före inkoppling",null,"",null,{"$f":"IF(G9=\"\",\"\",EDATE('10.2 Siter och kabelanl'!B2,-6))","v":""},"Telekominfrastruktur","Siter och kabelanläggning","Teletransmission","Dokument","10.2.2.4","10.2","Projektets lagringsyta","PW/ICT"]
["04. Vid färdig bygghandling, senast 6 månader före inkoppling",null,"",null,{"$f":"IF(G9=\"\",\"\",EDATE('11.1 Trafikinformationsanl'!B2,-6))","v":""},"Trafikinformationsanläggning"," --"," --","Dokument","11.1.2","11.1","Ebbas leveransyta","Ebba"]
["05. 6 månader före inkoppling",null,{"$f":"IF(E30=\"\",\"\",E30-60)","v":""},null,{"$f":"IF($G$9=\"\",\"\",EDATE('5.1 Bro'!B2,-6))","v":""},"Byggnadsverk","Bro"," --","Data","5.1.1","5.1","Projektets lagringsyta","BIS"]
["05. 6 månader före inkoppling",null,{"$f":"IF(E31=\"\",\"\",E31-60)","v":""},null,{"$f":"IF($G$9=\"\",\"\",EDATE('5.2 Tunnel o bergslänt'!B2,-6))","v":""},"Byggnadsverk","Tunnel och bergslänt"," --","Data","5.2.1","5.2","Projektets lagringsyta","BIS"]
["05. 6 månader före inkoppling",null,"",null,{"$f":"IF($G$9=\"\",\"\",EDATE('9.1 Banöverbyggnad'!C2,-6))","v":""},"Spårsystem","Banöverbyggnad"," --","Data","9.1.1","9.1","Projektets lagringsyta","BIS"]
["05. 6 månader före inkoppling","Ja","",null,{"$f":"IF($G$9=\"\",\"\",EDATE('12.1 Övrig BIS-leverans'!B2,-6))","v":""},"Trafiknät","Övrig BIS leverans"," --","Data","12.1.1","12.1","Projektets lagringsyta","BIS och GAD"]
["05. 6 månader före inkoppling",null,"",null,{"$f":"IF($G$9=\"\",\"\",EDATE('9.3 Sidoanläggning'!C2,-6))","v":""},"Spårsystem","Sidoanläggning"," --","Data","9.3.1","9.3","Projektets lagringsyta","BIS"]
["05. 6 månader före inkoppling",null,"",null,{"$f":"IF($G$9=\"\",\"\",EDATE('15.1 Admin. o funkt. företeelse'!B2,-6))","v":""},"Övrigt","Administrativ och funktionell företeelse","Funktionell företeelse","Data","15.1.1.1","15.1","Projektets lagringsyta","BIS"]
["05. 6 månader före inkoppling",null,"",null,{"$f":"IF($G$9=\"\",\"\",EDATE('6.5 Lågspänningssystem'!C2,-6))","v":""},"Elkraftssystem","Lågspänningssystem"," --","Data","6.5.1","6.5","Projektets lagringsyta","BIS"]
["05. 6 månader före inkoppling",null,"",null,{"$f":"IF($G$9=\"\",\"\",EDATE('8.1 Signalsystem'!C2,-6))","v":""},"Signalsystem","Signalsystem"," --","Data","8.1.1","8.1","Projektets lagringsyta","BIS"]
["05. 6 månader före inkoppling",null,"",null,{"$f":"IF($G$9=\"\",\"\",EDATE('14.1 Fordonsöverv. detektor'!B2,-6))","v":""},"Övervakningssystem","Fordonsövervakande detektorer"," --","Data","14.1.1","14.1","Projektets lagringsyta","BIS"]
["05. 6 månader före inkoppling ",null,"",null,{"$f":"IF($G$9=\"\",\"\",EDATE('15.6 Plankorsning'!C2,-6))","v":""},"Övrigt","Plankorsning"," --","Data","15.6.1","15.6","Plk webb","Plk webb"]
["07. 4 månader före inläsning",null,null,null,{"$f":"IF($G$8=\"\",\"\",EDATE('13.1 Trafikstyrningssystem'!B2,-4))","v":""},"Tågledningssystem","Trafikstyrningssystem"," --","Data","13.1.1","13.1","Registreras i inläsningsportalen","Tågledningssystemet"]
["08. 4 månader före plankorsningen tas i eller ur bruk för vägtrafik",null,{"$f":"IF(E41=\"\",\"\",E41-7)","v":""},null,{"$f":"IF($G$7=\"\",\"\",EDATE('15.6 Plankorsning'!C3,-4))","v":""},"Övrigt","Plankorsning"," --","Data","15.6.1","15.6","Plk webb","Plk webb"]
["09. 10 veckor före inkoppling",null,{"$f":"IF(E42=\"\",\"\",E42-60)","v":""},null,{"$f":"IF($G$9=\"\",\"\",DATE(YEAR('8.1 Signalsystem'!C2),MONTH('8.1 Signalsystem'!C2),DAY('8.1 Signalsystem'!C2)-70))","v":""},"Signalsystem","Signalsystem"," --","Dokument","8.1.2","8.1","Inte aktuellt","PW/FU"]
["09. 10 veckor före inkoppling",null,{"$f":"IF(E43=\"\",\"\",E43-60)","v":""},null,{"$f":"IF($G$9=\"\",\"\",DATE(YEAR('8.1 Signalsystem'!C2),MONTH('8.1 Signalsystem'!C2),DAY('8.1 Signalsystem'!C2)-70))","v":""},"Signalsystem","Signalsystem"," --","Data","8.1.1","8.1","Projektets lagringsyta","BIS"]
["09. 10 veckor före inkoppling",null,{"$f":"IF(E44=\"\",\"\",E44-60)","v":""},null,{"$f":"IF($G$9=\"\",\"\",DATE(YEAR('10.2 Siter och kabelanl'!B2),MONTH('10.2 Siter och kabelanl'!B2),DAY('10.2 Siter och kabelanl'!B2)-70))","v":""},"Telekominfrastruktur","Siter och kabelanläggning","Kabelanläggning","Dokument","10.2.2.1","10.2","Projektets lagringsyta","PW/ICT"]
["10. 2 månader före inkoppling",null,{"$f":"IF(E45=\"\",\"\",E45-14)","v":""},null,{"$f":"IF($G$9=\"\",\"\",EDATE('15.10 Underlag till linjeboken'!B2,-2))","v":""},"Övrigt","Underlag till linjeboken"," --","Dokument","15.10.1","15.10","linjeboken@trafikverket.se","Underlag till linjeboken"]
["10. 2 månader före inkoppling",null,{"$f":"IF(E46=\"\",\"\",E46-14)","v":""},null,{"$f":"IF($G$9=\"\",\"\",EDATE('15.11 Underlag till säk.plan'!B2,-2))","v":""},"Övrigt","Underlag till säkerhetsplan"," --","Dokument","15.11.1","15.11","forvalta.sakerhetsdok@trafikverket.se","Underlag till säkerhetsplan, driftplats"]
["11. 1 månad före inkoppling",null,{"$f":"IF(E47=\"\",\"\",E47-14)","v":""},null,{"$f":"IF($G$9=\"\",\"\",EDATE('5.1 Bro'!B2,-1))","v":""},"Byggnadsverk","Bro"," --","Data","5.1.1","5.1","BaTMan","BaTMan"]
["11. 1 månad före inkoppling",null,{"$f":"IF(E48=\"\",\"\",E48-14)","v":""},null,{"$f":"IF($G$9=\"\",\"\",EDATE('5.1 Bro'!B2,-1))","v":""},"Byggnadsverk","Bro"," --","Dokument","5.1.2","5.1","BaTMan","BaTMan"]
["11. 1 månad före inkoppling",null,"",null,{"$f":"IF($G$9=\"\",\"\",EDATE('5.2 Tunnel o bergslänt'!B2,-1))","v":""},"Byggnadsverk","Tunnel och bergslänt"," --","Data","5.2.1","5.2","BaTMan","BaTMan"]
["11. 1 månad före inkoppling",null,"",null,{"$f":"IF($G$9=\"\",\"\",EDATE('5.2 Tunnel o bergslänt'!B2,-1))","v":""},"Byggnadsverk","Tunnel och bergslänt"," --","Dokument","5.2.2","5.2","BaTMan","BaTMan"]
["11. 1 månad före inkoppling",null,"",null,{"$f":"IF($G$9=\"\",\"\",EDATE('5.3 Övriga byggnadsverk'!B3,-1))","v":""},"Byggnadsverk","Övriga byggnadsverk"," --","Data","5.3.1","5.3","BaTMan","BaTMan"]
["11. 1 månad före inkoppling",null,"",null,{"$f":"IF($G$9=\"\",\"\",EDATE('5.3 Övriga byggnadsverk'!B3,-1))","v":""},"Byggnadsverk","Övriga byggnadsverk"," --","Dokument","5.3.2","5.3","BaTMan","BaTMan"]
["11. 1 månad före inkoppling",null,"",null,{"$f":"IF($G$9=\"\",\"\",EDATE('5.3 Övriga byggnadsverk'!B3,-1))","v":""},"Bankropp","Bankropp","Trumma, påldäck och magasin för dagvatten","Data","4.1.2.1","4.1","BaTMan","BaTMan"]
["11. 1 månad före inkoppling",null,"",null,{"$f":"IF($G$9=\"\",\"\",EDATE('5.3 Övriga byggnadsverk'!B3,-1))","v":""},"Bankropp","Bankropp","Trumma, påldäck och magasin för dagvatten","Dokument","4.1.2.1","4.1","BaTMan","BaTMan"]
["12. 2 veckor före inkoppling",null,{"$f":"IF(E55=\"\",\"\",E55-7)","v":""},null,{"$f":"IF($G$9=\"\",\"\",DATE(YEAR('6.3 Kontaktledningssystem'!B2),MONTH('6.3 Kontaktledningssystem'!B2),DAY('6.3 Kontaktledningssystem'!B2)-14))","v":""},"Elkraftssystem","Kontaktledningssystem"," --","Dokument","6.3.2","6.3","PW/FJ/Förvaltningsdata Leveranser","PW/FJ"]
["13. Dagen för inkoppling",null,{"$f":"E56","v":""},null,{"$f":"IF($G$9=\"\",\"\",'14.1 Fordonsöverv. detektor'!B2)","v":""},"Övervakningssystem","Fordonsövervakande detektorer","RFID-detektor","Dokument","14.1.2.1","14.1","Ebbas leveransyta","Ebba"]
["13. Dagen för inkoppling",null,{"$f":"E57","v":""},null,{"$f":"IF($G$9=\"\",\"\",'8.1 Signalsystem'!C2)","v":""},"Signalsystem","Signalsystem"," --","Dokument","8.1.2","8.1","Ebbas leveransyta","Ebba"]
["13. Dagen för inkoppling",null,"",null,{"$f":"IF($G$9=\"\",\"\",'5.1 Bro'!B2)","v":""},"Byggnadsverk","Bro"," --","Data","5.1.1","5.1","BaTMan","BaTMan"]
["13. Dagen för inkoppling",null,"",null,{"$f":"IF($G$9=\"\",\"\",'5.2 Tunnel o bergslänt'!B2)","v":""},"Byggnadsverk","Tunnel och bergslänt"," --","Data","5.2.1","5.2","BaTMan","BaTMan"]
["13. Dagen för inkoppling",null,"",null,{"$f":"IF($G$9=\"\",\"\",'5.3 Övriga byggnadsverk'!B3)","v":""},"Byggnadsverk","Övriga byggnadsverk"," --","Data","5.3.1","5.3","BaTMan","BaTMan"]
["14. 1 vecka efter inkoppling",null,{"$f":"IF(E61=\"\",\"\",E61-4)","v":""},null,{"$f":"IF($G$9=\"\",\"\",DATE(YEAR('5.1 Bro'!B2),MONTH('5.1 Bro'!B2),DAY('5.1 Bro'!B2)+7))","v":""},"Byggnadsverk","Bro"," --","Data","5.1.1","5.1","Projektets lagringsyta","BIS"]
["14. 1 vecka efter inkoppling",null,{"$f":"IF(E62=\"\",\"\",E62-4)","v":""},null,{"$f":"IF($G$9=\"\",\"\",DATE(YEAR('5.3 Övriga byggnadsverk'!B3),MONTH('5.3 Övriga byggnadsverk'!B3),DAY('5.3 Övriga byggnadsverk'!B3)+7))","v":""},"Byggnadsverk","Övriga byggnadsverk"," --","Data","5.3.1","5.3","Projektets lagringsyta","BIS"]
["14. 1 vecka efter inkoppling",null,"",null,{"$f":"IF($G$9=\"\",\"\",DATE(YEAR('9.1 Banöverbyggnad'!C2),MONTH('9.1 Banöverbyggnad'!C2),DAY('9.1 Banöverbyggnad'!C2)+7))","v":""},"Spårsystem","Banöverbyggnad"," --","Data","9.1.1","9.1","Projektets lagringsyta","BIS"]
["14. 1 vecka efter inkoppling",null,"",null,{"$f":"IF($G$9=\"\",\"\",DATE(YEAR('4.1 Bankropp'!C2),MONTH('4.1 Bankropp'!C2),DAY('4.1 Bankropp'!C2)+7))","v":""},"Bankropp","Bankropp"," --","Data","4.1.1","4.1","Projektets lagringsyta","BIS"]
["14. 1 vecka efter inkoppling",null,"",null,{"$f":"IF($G$9=\"\",\"\",DATE(YEAR('9.3 Sidoanläggning'!C2),MONTH('9.3 Sidoanläggning'!C2),DAY('9.3 Sidoanläggning'!C2)+7))","v":""},"Spårsystem","Sidoanläggning"," --","Data","9.3.1","9.3","Projektets lagringsyta","BIS"]
["14. 1 vecka efter inkoppling",null,{"$f":"IF(E66=\"\",\"\",E66-4)","v":""},null,{"$f":"IF($G$9=\"\",\"\",DATE(YEAR('15.1 Admin. o funkt. företeelse'!B2),MONTH('15.1 Admin. o funkt. företeelse'!B2),DAY('15.1 Admin. o funkt. företeelse'!B2)+7))","v":""},"Övrigt","Administrativ och funktionell företeelse","Funktionell företeelse","Data","15.1.1.1","15.1","Projektets lagringsyta","BIS"]
["14. 1 vecka efter inkoppling",null,"",null,{"$f":"IF($G$9=\"\",\"\",DATE(YEAR('15.7 Pumpsystem'!B2),MONTH('15.7 Pumpsystem'!B2),DAY('15.7 Pumpsystem'!B2)+7))","v":""},"Övrigt","Pumpsystem"," --","Data","15.7.1","15.7","Projektets lagringsyta","BIS"]
["14. 1 vecka efter inkoppling",null,{"$f":"IF(E68=\"\",\"\",E68-4)","v":""},null,{"$f":"IF($G$9=\"\",\"\",DATE(YEAR('6.2 Hjälpkraftssystem'!B2),MONTH('6.2 Hjälpkraftssystem'!B2),DAY('6.2 Hjälpkraftssystem'!B2)+7))","v":""},"Elkraftssystem","Hjälpkraftssystem"," --","Data","6.2.1","6.2","Projektets lagringsyta","BIS"]
["14. 1 vecka efter inkoppling",null,{"$f":"IF(E69=\"\",\"\",E69-4)","v":""},null,{"$f":"IF($G$9=\"\",\"\",DATE(YEAR('6.3 Kontaktledningssystem'!B2),MONTH('6.3 Kontaktledningssystem'!B2),DAY('6.3 Kontaktledningssystem'!B2)+7))","v":""},"Elkraftssystem","Kontaktledningssystem"," --","Data","6.3.1","6.3","Projektets lagringsyta","BIS"]
["14. 1 vecka efter inkoppling",null,"",null,{"$f":"IF($G$9=\"\",\"\",DATE(YEAR('6.5 Lågspänningssystem'!C2),MONTH('6.5 Lågspänningssystem'!C2),DAY('6.5 Lågspänningssystem'!C2)+7))","v":""},"Elkraftssystem","Lågspänningssystem"," --","Data","6.5.1","6.5","Projektets lagringsyta","BIS"]
["14. 1 vecka efter inkoppling",null,"",null,{"$f":"IF($G$9=\"\",\"\",DATE(YEAR('6.4 Kraftförsörjningsanläggning'!B2),MONTH('6.4 Kraftförsörjningsanläggning'!B2),DAY('6.4 Kraftförsörjningsanläggning'!B2)+7))","v":""},"Elkraftssystem","Kraftförsörjningsanläggning"," --","Data","6.4.1","6.4","Projektets lagringsyta","BIS"]
["14. 1 vecka efter inkoppling",null,"",null,{"$f":"IF($G$9=\"\",\"\",DATE(YEAR('8.1 Signalsystem'!C2),MONTH('8.1 Signalsystem'!C2),DAY('8.1 Signalsystem'!C2)+7))","v":""},"Signalsystem","Signalsystem"," --","Data","8.1.1","8.1","Projektets lagringsyta","BIS"]
["14. 1 vecka efter inkoppling",null,{"$f":"IF(E73=\"\",\"\",E73-4)","v":""},null,{"$f":"IF($G$9=\"\",\"\",DATE(YEAR('8.1 Signalsystem'!C2),MONTH('8.1 Signalsystem'!C2),DAY('8.1 Signalsystem'!C2)+7))","v":""},"Signalsystem","Signalsystem"," --","Dokument","8.1.2","8.1","Inte aktuellt","Arbetsrum"]
["14. 1 vecka efter inkoppling",null,{"$f":"IF(E74=\"\",\"\",E74-4)","v":""},null,{"$f":"IF($G$9=\"\",\"\",DATE(YEAR('8.1 Signalsystem'!C2),MONTH('8.1 Signalsystem'!C2),DAY('8.1 Signalsystem'!C2)+7))","v":""},"Signalsystem","Signalsystem"," --","Dokument","8.1.2","8.1","Ebbas leveransyta","Ebba"]
["15. 3 veckor efter inkoppling",null,{"$f":"IF(E75=\"\",\"\",E75-14)","v":""},null,{"$f":"IF($G$9=\"\",\"\",DATE(YEAR('4.1 Bankropp'!C2),MONTH('4.1 Bankropp'!C2),DAY('4.1 Bankropp'!C2)+21))","v":""},"Bankropp","Bankropp"," --","Data","4.1.1","4.1","Projektets lagringsyta","BIS"]
["15. 3 veckor efter inkoppling",null,{"$f":"IF(E76=\"\",\"\",E76-14)","v":""},null,{"$f":"IF($G$9=\"\",\"\",DATE(YEAR('5.3 Övriga byggnadsverk'!B3),MONTH('5.3 Övriga byggnadsverk'!B3),DAY('5.3 Övriga byggnadsverk'!B3)+21))","v":""},"Byggnadsverk","Övriga byggnadsverk"," --","Data","5.3.1","5.3","Projektets lagringsyta","BIS"]
["15. 3 veckor efter inkoppling",null,"",null,{"$f":"IF($G$9=\"\",\"\",DATE(YEAR('9.1 Banöverbyggnad'!C2),MONTH('9.1 Banöverbyggnad'!C2),DAY('9.1 Banöverbyggnad'!C2)+21))","v":""},"Spårsystem","Banöverbyggnad"," --","Data","9.1.1","9.1","Projektets lagringsyta","BIS"]
["15. 3 veckor efter inkoppling",null,"",null,{"$f":"IF($G$9=\"\",\"\",DATE(YEAR('10.1 Radio och telefoni'!B2),MONTH('10.1 Radio och telefoni'!B2),DAY('10.1 Radio och telefoni'!B2)+21))","v":""},"Telekominfrastruktur","Radio och telefoni","Telefoni","Data","10.1.1","10.1","Projektets lagringsyta","BIS"]
["15. 3 veckor efter inkoppling",null,"",null,{"$f":"IF($G$9=\"\",\"\",DATE(YEAR('8.1 Signalsystem'!C2),MONTH('8.1 Signalsystem'!C2),DAY('8.1 Signalsystem'!C2)+21))","v":""},"Signalsystem","Signalsystem"," --","Data","8.1.1","8.1","Projektets lagringsyta","BIS"]
["15. 3 veckor efter inkoppling",null,"",null,{"$f":"IF($G$9=\"\",\"\",DATE(YEAR('11.1 Trafikinformationsanl'!B2),MONTH('11.1 Trafikinformationsanl'!B2),DAY('11.1 Trafikinformationsanl'!B2)+21))","v":""},"Trafikinformationsanläggning"," --"," --","Data","11.1.1","11.1","Projektets lagringsyta","BIS"]
["15. 3 veckor efter inkoppling",null,"",null,{"$f":"IF($G$9=\"\",\"\",DATE(YEAR('15.1 Admin. o funkt. företeelse'!B2),MONTH('15.1 Admin. o funkt. företeelse'!B2),DAY('15.1 Admin. o funkt. företeelse'!B2)+21))","v":""},"Övrigt","Administrativ och funktionell företeelse","Funktionell företeelse","Data","15.1.1.1","15.1","Projektets lagringsyta","BIS"]
["15. 3 veckor efter inkoppling",null,"",null,{"$f":"IF($G$9=\"\",\"\",DATE(YEAR('15.8 Rangerbangård'!B2),MONTH('15.8 Rangerbangård'!B2),DAY('15.8 Rangerbangård'!B2)+21))","v":""},"Övrigt","Rangerbangård"," --","Data","15.8.1","15.8","Projektets lagringsyta","BIS"]
["17. 1 månad efter att plankorsningen tas i eller ur bruk för vägtrafik",null,{"$f":"IF(E83=\"\",\"\",E83-7)","v":""},null,{"$f":"IF($G$7=\"\",\"\",EDATE('15.6 Plankorsning'!C3,1))","v":""},"Övrigt","Plankorsning"," --","Data","15.6.1","15.6","Plk webb","Plk webb"]
["20. 3 månader efter slutbesiktning",null,{"$f":"IF(E84=\"\",\"\",E84-28)","v":""},null,{"$f":"IF($G$10=\"\",\"\",EDATE('6.4 Kraftförsörjningsanläggning'!$B$3,3))","v":""},"Elkraftssystem","Kraftförsörjningsanläggning","Fördelningsstation","Dokument","6.4.2.2","6.4","Ebbas leveransyta","Ebba"]
["20. 3 månader efter slutbesiktning",null,{"$f":"IF(E85=\"\",\"\",E85-28)","v":""},null,{"$f":"IF($G$10=\"\",\"\",EDATE('6.4 Kraftförsörjningsanläggning'!$B$3,3))","v":""},"Elkraftssystem","Kraftförsörjningsanläggning","Kopplingscentral","Dokument","6.4.2.3","6.4","Ebbas leveransyta","Ebba"]
["20. 3 månader efter slutbesiktning",null,"",null,{"$f":"IF($G$10=\"\",\"\",EDATE('6.4 Kraftförsörjningsanläggning'!$B$3,3))","v":""},"Elkraftssystem","Kraftförsörjningsanläggning","Omformarstation","Dokument","6.4.2.5","6.4","PW/FJ/Förvaltningsdata Leveranser","PW/FJ"]
["20. 3 månader efter slutbesiktning",null,"",null,{"$f":"IF($G$10=\"\",\"\",EDATE('6.4 Kraftförsörjningsanläggning'!$B$3,3))","v":""},"Elkraftssystem","Kraftförsörjningsanläggning","Sektioneringsstation","Dokument","6.4.2.6","6.4","Ebbas leveransyta","Ebba"]
["20. 3 månader efter slutbesiktning",null,"",null,{"$f":"IF($G$10=\"\",\"\",EDATE('6.4 Kraftförsörjningsanläggning'!$B$3,3))","v":""},"Elkraftssystem","Kraftförsörjningsanläggning","Transformatorstation","Dokument","6.4.2.7","6.4","PW/FJ/Förvaltningsdata Leveranser","PW/FJ"]
["20. 3 månader efter slutbesiktning",null,"",null,{"$f":"IF($G$10=\"\",\"\",EDATE('6.6 Matarledningssystem'!$B$2,3))","v":""},"Elkraftssystem","Matarledningssystem (32 och 132 kV)"," --","Dokument","6.6.1","6.6","Ebbas leveransyta","Ebba"]
["20. 3 månader efter slutbesiktning",null,{"$f":"IF(E90=\"\",\"\",E90-30)","v":""},null,{"$f":"IF($G$10=\"\",\"\",EDATE('5.1 Bro'!B3,3))","v":""},"Byggnadsverk","Bro"," --","Dokument","5.1.2","5.1","BaTMan","BaTMan"]
["20. 3 månader efter slutbesiktning",null,{"$f":"IF(E91=\"\",\"\",E91-30)","v":""},null,{"$f":"IF($G$10=\"\",\"\",EDATE('5.2 Tunnel o bergslänt'!B3,3))","v":""},"Byggnadsverk","Tunnel och bergslänt"," --","Dokument","5.2.2","5.2","BaTMan","BaTMan"]
["20. 3 månader efter slutbesiktning",null,"",null,{"$f":"IF($G$10=\"\",\"\",EDATE('5.3 Övriga byggnadsverk'!B4,3))","v":""},"Byggnadsverk","Övriga byggnadsverk"," --","Dokument","5.3.2","5.3","BaTMan","BaTMan"]
["20. 3 månader efter slutbesiktning",null,"",null,{"$f":"IF($G$10=\"\",\"\",EDATE('15.5 Miljö'!C2,3))","v":""},"Övrigt","Miljö","Förorenade områden","Data","15.5.1.1","15.5","LEB","LEB"]
["20. 3 månader efter slutbesiktning",null,"",null,{"$f":"IF($G$10=\"\",\"\",EDATE('15.5 Miljö'!C2,3))","v":""},"Övrigt","Miljö","Övrigt om miljö","Data","15.5.1.2","15.5","MWL","MWL"]
["20. 3 månader efter slutbesiktning",null,"",null,{"$f":"IF($G$10=\"\",\"\",EDATE('15.5 Miljö'!C2,3))","v":""},"Övrigt","Miljö","Övrigt om miljö","Data","15.5.1.2","15.5","Mail till buller.vibrationer@trafikverket.se","Projektnav"]
["20. 3 månader efter slutbesiktning",null,"",null,{"$f":"IF($G$10=\"\",\"\",EDATE('15.5 Miljö'!C2,3))","v":""},"Övrigt","Miljö","Förorenade områden","Dokument","15.5.2.1","15.5","Diariet alt. PW/FU med länk till LEB","Diariet alt. PW/FU med länk till LEB"]
["20. 3 månader efter slutbesiktning","Ja","",null,{"$f":"IF($G$10=\"\",\"\",EDATE('15.5 Miljö'!C2,3))","v":""},"Övrigt","Miljö","Övrigt om miljö","Dokument","15.5.2.2","15.5","Ebbas leveransyta","Ebba"]
["20. 3 månader efter slutbesiktning",null,"",null,{"$f":"IF($G$10=\"\",\"\",EDATE('4.1 Bankropp'!C3,3))","v":""},"Bankropp","Bankropp","Avvattning","Dokument","4.1.2.1","4.1","Ebbas leveransyta","Ebba"]
["20. 3 månader efter slutbesiktning",null,"",null,{"$f":"IF($G$10=\"\",\"\",EDATE('4.1 Bankropp'!C3,3))","v":""},"Bankropp","Bankropp","Dammanläggning","Dokument","4.1.2.2","4.1","Ebbas leveransyta","Ebba"]
["20. 3 månader efter slutbesiktning",null,{"$f":"IF(E100=\"\",\"\",E100-30)","v":""},null,{"$f":"IF($G$10=\"\",\"\",EDATE('4.1 Bankropp'!C3,3))","v":""},"Bankropp","Bankropp","Geoteknik","Dokument","4.1.2.3","4.1","PW/FJ/Förvaltningsdata Leveranser","PW/FJ"]
["20. 3 månader efter slutbesiktning",null,{"$f":"IF(E101=\"\",\"\",E101-30)","v":""},null,{"$f":"IF($G$10=\"\",\"\",EDATE('4.1 Bankropp'!C3,3))","v":""},"Bankropp","Bankropp","Påldäck och magasin för dagvatten","Dokument","4.1.2.4","4.1","BaTMan","BaTMan"]
["20. 3 månader efter slutbesiktning",null,{"$f":"IF(E102=\"\",\"\",E102-30)","v":""},null,{"$f":"IF($G$10=\"\",\"\",EDATE('4.1 Bankropp'!C3,3))","v":""},"Bankropp","Bankropp","Trumma","Dokument","4.1.2.5","4.1","BaTMan","BaTMan"]
["20. 3 månader efter slutbesiktning",null,"",null,{"$f":"IF($G$10=\"\",\"\",EDATE('4.1 Bankropp'!C3,3))","v":""},"Bankropp","Bankropp","Vattenskydd","Dokument","4.1.2.6","4.1","PW/FJ/Förvaltningsdata Leveranser","Ebba"]
["20. 3 månader efter slutbesiktning",null,"",null,{"$f":"IF($G$10=\"\",\"\",EDATE('5.3 Övriga byggnadsverk'!B4,3))","v":""},"Byggnadsverk","Övriga byggnadsverk","Bullerskydd (undantaget bullerskyddsskärm)","Dokument","5.3.2.1","5.3","Ebbas leveransyta","Ebba"]
["20. 3 månader efter slutbesiktning",null,"",null,{"$f":"IF($G$10=\"\",\"\",EDATE('5.3 Övriga byggnadsverk'!B4,3))","v":""},"Byggnadsverk","Övriga byggnadsverk","Kanalisation","Dokument","5.3.2.2","5.3","Ebbas leveransyta","Ebba"]
["20. 3 månader efter slutbesiktning",null,"",null,{"$f":"IF($G$10=\"\",\"\",EDATE('6.1 GELD inkl RTU'!B2,3))","v":""},"Elkraftssystem","GELD inklusive RTU:er"," --","Dokument","6.1.1","6.1","Ebbas leveransyta","Ebba"]
["20. 3 månader efter slutbesiktning",null,"",null,{"$f":"IF($G$10=\"\",\"\",EDATE('6.2 Hjälpkraftssystem'!B3,3))","v":""},"Elkraftssystem","Hjälpkraftssystem"," --","Dokument","6.2.2","6.2","Ebbas leveransyta","Ebba"]
["20. 3 månader efter slutbesiktning",null,"",null,{"$f":"IF($G$10=\"\",\"\",EDATE('6.3 Kontaktledningssystem'!B3,3))","v":""},"Elkraftssystem","Kontaktledningssystem"," --","Dokument","6.3.2","6.3","Ebbas leveransyta","Ebba"]
["20. 3 månader efter slutbesiktning",null,"",null,{"$f":"IF($G$10=\"\",\"\",EDATE('6.5 Lågspänningssystem'!C3,3))","v":""},"Elkraftssystem","Lågspänningssystem","Belysning","Dokument","6.5.2.1","6.5","Ebbas leveransyta","Ebba"]
["20. 3 månader efter slutbesiktning",null,"",null,{"$f":"IF($G$10=\"\",\"\",EDATE('6.5 Lågspänningssystem'!C3,3))","v":""},"Elkraftssystem","Lågspänningssystem","Distributionsnät mindre än 1000V","Dokument","6.5.2.2","6.5","Ebbas leveransyta","Ebba"]
["20. 3 månader efter slutbesiktning",null,"",null,{"$f":"IF($G$10=\"\",\"\",EDATE('6.5 Lågspänningssystem'!C3,3))","v":""},"Elkraftssystem","Lågspänningssystem","Elanläggning - Teknikbyggnad","Dokument","6.5.2.3","6.5","Ebbas leveransyta","Ebba"]
["20. 3 månader efter slutbesiktning",null,{"$f":"IF(E112=\"\",\"\",E112-30)","v":""},null,{"$f":"IF($G$10=\"\",\"\",EDATE('6.5 Lågspänningssystem'!C3,3))","v":""},"Elkraftssystem","Lågspänningssystem","Kraftförsörjning - Datorhall","Dokument","6.5.2.4","6.5","Ebbas leveransyta","Ebba"]
["20. 3 månader efter slutbesiktning",null,"",null,{"$f":"IF($G$10=\"\",\"\",EDATE('6.5 Lågspänningssystem'!C3,3))","v":""},"Elkraftssystem","Lågspänningssystem","Kraftförsörjning - Trafikledningscentral","Dokument","6.5.2.5","6.5","Ebbas leveransyta","Ebba"]
["20. 3 månader efter slutbesiktning",null,"",null,{"$f":"IF($G$10=\"\",\"\",EDATE('6.5 Lågspänningssystem'!C3,3))","v":""},"Elkraftssystem","Lågspänningssystem","Mobila reservelverk","Dokument","6.5.2.6","6.5","Ebbas leveransyta","Ebba"]
["20. 3 månader efter slutbesiktning",null,"",null,{"$f":"IF($G$10=\"\",\"\",EDATE('6.5 Lågspänningssystem'!C3,3))","v":""},"Elkraftssystem","Lågspänningssystem","Tåg och lokvärme","Dokument","6.5.2.7","6.5","Ebbas leveransyta","Ebba"]
["20. 3 månader efter slutbesiktning",null,"",null,{"$f":"IF($G$10=\"\",\"\",EDATE('6.5 Lågspänningssystem'!C3,3))","v":""},"Elkraftssystem","Lågspänningssystem","Växelvärme","Dokument","6.5.2.8","6.5","Ebbas leveransyta","Ebba"]
["20. 3 månader efter slutbesiktning",null,"",null,{"$f":"IF($G$10=\"\",\"\",EDATE('6.4 Kraftförsörjningsanläggning'!B3,3))","v":""},"Elkraftssystem","Kraftförsörjningsanläggning","Frånskiljarstation","Dokument","6.4.2.1","6.4","Ebbas leveransyta","Ebba"]
["20. 3 månader efter slutbesiktning",null,"",null,{"$f":"IF($G$10=\"\",\"\",EDATE('6.4 Kraftförsörjningsanläggning'!B3,3))","v":""},"Elkraftssystem","Kraftförsörjningsanläggning","Nätstation","Dokument","6.4.2.4","6.4","Ebbas leveransyta","Ebba"]
["20. 3 månader efter slutbesiktning",null,{"$f":"IF(E119=\"\",\"\",E119-30)","v":""},null,{"$f":"IF($G$10=\"\",\"\",EDATE('7.1 Resenärsstation'!B2,3))","v":""},"Fastighetsinstallationer","Resenärsstation"," --","Dokument","7.1.1","7.1","Ebbas leveransyta","Ebba"]
["20. 3 månader efter slutbesiktning",null,{"$f":"IF(E120=\"\",\"\",E120-30)","v":""},null,{"$f":"IF($G$10=\"\",\"\",EDATE('7.2 Teknikbyggnad'!B3,3))","v":""},"Fastighetsinstallationer","Teknikbyggnad"," --","Dokument","7.2.2","7.2","Ebbas leveransyta","Ebba"]
["20. 3 månader efter slutbesiktning",null,"",null,{"$f":"IF($G$10=\"\",\"\",EDATE('7.3 Tillträdesskydd o brandlarm'!B2,3))","v":""},"Fastighetsinstallationer","Passagesystem","Passagekontroll- inbrottslarm- och brandvarningssystem","Dokument","7.3.1.1","7.3","PW/FJ/Förvaltningsdata Leveranser","PW/FJ"]
["20. 3 månader efter slutbesiktning",null,{"$f":"IF(E122=\"\",\"\",E122-30)","v":""},null,{"$f":"IF($G$10=\"\",\"\",EDATE('7.3 Tillträdesskydd o brandlarm'!B2,3))","v":""},"Fastighetsinstallationer","Passagesystem","Elektromekaniskt låssystem med loggfunktion","Data","7.3.1.1","7.3","ABBA-FT","ABBA-FT"]
["20. 3 månader efter slutbesiktning",null,"",null,{"$f":"IF($G$10=\"\",\"\",EDATE('10.1 Radio och telefoni'!B3,3))","v":""},"Telekominfrastruktur","Radio och telefoni","Radio","Dokument","10.1.2.1","10.1","Projektets lagringsyta","PW/ICT"]
["20. 3 månader efter slutbesiktning",null,"",null,{"$f":"IF($G$10=\"\",\"\",EDATE('10.2 Siter och kabelanl'!B3,3))","v":""},"Telekominfrastruktur","Siter och kabelanläggning","Kabelanläggning","Dokument","10.2.2.1","10.2","Projektets lagringsyta","PW/ICT"]
["20. 3 månader efter slutbesiktning",null,"",null,{"$f":"IF($G$10=\"\",\"\",EDATE('10.2 Siter och kabelanl'!B3,3))","v":""},"Telekominfrastruktur","Siter och kabelanläggning","Kraft - Tele","Dokument","10.2.2.2","10.2","Projektets lagringsyta","PW/ICT"]
["20. 3 månader efter slutbesiktning",null,"",null,{"$f":"IF($G$10=\"\",\"\",EDATE('10.2 Siter och kabelanl'!B3,3))","v":""},"Telekominfrastruktur","Siter och kabelanläggning","Nödfrånkopplingsslinga - Kopparkabel","Dokument","10.2.2.3","10.2","Projektets lagringsyta","PW/ICT"]
["20. 3 månader efter slutbesiktning",null,"",null,{"$f":"IF($G$10=\"\",\"\",EDATE('10.2 Siter och kabelanl'!B3,3))","v":""},"Telekominfrastruktur","Siter och kabelanläggning","Teletransmission","Dokument","10.2.2.4","10.2","Projektets lagringsyta","PW/ICT"]
["20. 3 månader efter slutbesiktning",null,"",null,{"$f":"IF($G$10=\"\",\"\",EDATE('8.1 Signalsystem'!C3,3))","v":""},"Signalsystem","Signalsystem"," --","Dokument","8.1.2","8.1","Ebbas leveransyta","Ebba"]
["20. 3 månader efter slutbesiktning",null,"",null,{"$f":"IF($G$10=\"\",\"\",EDATE('8.1 Signalsystem'!C3,3))","v":""},"Signalsystem","Signalsystem"," --","Dokument","8.1.2","8.1","Inte aktuellt","PW/FU"]
["20. 3 månader efter slutbesiktning",null,"",null,{"$f":"IF($G$10=\"\",\"\",EDATE('9.3 Sidoanläggning'!C3,3))","v":""},"Spårsystem","Sidoanläggning","Hägnad","Dokument","9.3.2.1","9.3","Ebbas leveransyta","Ebba"]
["20. 3 månader efter slutbesiktning",null,"",null,{"$f":"IF($G$10=\"\",\"\",EDATE('9.1 Banöverbyggnad'!C3,3))","v":""},"Spårsystem","Banöverbyggnad"," --","Dokument","9.1.2","9.1","Ebbas leveransyta","Ebba"]
["20. 3 månader efter slutbesiktning",null,"",null,{"$f":"IF($G$10=\"\",\"\",EDATE('11.1 Trafikinformationsanl'!B3,3))","v":""},"Trafikinformationsanläggning"," --"," --","Dokument","11.1.2","11.1","Ebbas leveransyta","Ebba"]
["20. 3 månader efter slutbesiktning",null,"",null,{"$f":"IF($G$10=\"\",\"\",EDATE('14.1 Fordonsöverv. detektor'!B3,3))","v":""},"Övervakningssystem","Fordonsövervakande detektorer","Detektor","Dokument","14.1.2.2","14.1","Ebbas leveransyta","Ebba"]
["20. 3 månader efter slutbesiktning",null,"",null,{"$f":"IF($G$10=\"\",\"\",EDATE('15.2 Baskarta'!B2,3))","v":""},"Övrigt","Baskarta"," --","Dokument","15.2.1","15.2","Ebbas leveransyta","Ebba"]
["20. 3 månader efter slutbesiktning",null,"",null,{"$f":"IF($G$10=\"\",\"\",EDATE('15.3 Byggnad'!B2,3))","v":""},"Övrigt","Byggnad"," --","Dokument","15.3.1","15.3","PW/FJ/Förvaltningsdata Leveranser","PW/FU"]
["20. 3 månader efter slutbesiktning",null,"",null,{"$f":"IF($G$10=\"\",\"\",EDATE('15.4 Mark'!C2,3))","v":""},"Övrigt","Mark"," --","Dokument","15.4.1","15.4","Ebbas leveransyta","Ebba"]
["20. 3 månader efter slutbesiktning",null,"",null,{"$f":"IF($G$10=\"\",\"\",EDATE('15.7 Pumpsystem'!B3,3))","v":""},"Övrigt","Pumpsystem"," --","Dokument","15.7.2","15.7","Ebbas leveransyta","Ebba"]
["20. 3 månader efter slutbesiktning",null,"",null,{"$f":"IF($G$10=\"\",\"\",EDATE('15.8 Rangerbangård'!B3,3))","v":""},"Övrigt","Rangerbangård"," --","Dokument","15.8.1","15.8","Ebbas leveransyta","Ebba"]
["20. 3 månader efter slutbesiktning",null,{"$f":"IF(E139=\"\",\"\",E139-30)","v":""},null,{"$f":"IF($G$10=\"\",\"\",EDATE('0 Geografiska modellfiler'!C2,3))","v":""},"Övrigt","Samtliga teknikområden (ej signal)","Geografiska modellfiler","Dokument"," --","0 Modellfiler","PW/FJ/Förvaltningsdata Leveranser","PW/FJ"]
["20. 3 månader efter slutbesiktning",null,{"$f":"IF(E140=\"\",\"\",E140-30)","v":""},null,{"$f":"IF($G$10=\"\",\"\",EDATE('0 Geografiska modellfiler'!C2,3))","v":""},"Övrigt","Signalsystem","Geografiska modellfiler","Dokument"," --","0 Modellfiler","Ebbas leveransyta","Ebba"]
["20. 3 månader efter slutbesiktning","Ja","",null,{"$f":"IF($G$10=\"\",\"\",EDATE('9.2 Geodetiskt stomnät'!B3,3))","v":""},"Spårsystem","Geodetiskt stomnät"," --","Dokument","9.2.1","9.2","PW/FJ/Förvaltningsdata Leveranser","PW/FJ"]
["21. 1 månad efter Transportstyrelsens godkännande",null,{"$f":"IF(E142=\"\",\"\",E142-7)","v":""},null,{"$f":"IF($G$11=\"\",\"\",EDATE('8.1 Signalsystem'!C4,1))","v":""},"Signalsystem","Signalsystem"," --","Dokument","8.1.2","8.1","PW/FJ/Förvaltningsdata Leveranser","PW/FJ"]
["21. 1 månad efter Transportstyrelsens godkännande",null,{"$f":"IF(E143=\"\",\"\",E143-7)","v":""},null,{"$f":"IF($G$11=\"\",\"\",EDATE('9.1 Banöverbyggnad'!C4,1))","v":""},"Spårsystem","Banöverbyggnad"," --","Dokument","9.1.2","9.1","PW/FJ/Förvaltningsdata Leveranser","PW/FJ"]

{"sheet":"Leveranshistorik","index":8,"n_rows":6,"n_cols":2,"rows_kept":6,"cut":false,"hidden":false,"merged":[]}
["Leveranshistorik - Projekt"]
["Valfri att använda."]
[]
["Tabellen nedan kan användas som ett stöd för projektet att beskriva framdriften av leveranser."]
[]
["Datum","Beskrivning"]

{"sheet":"0 Erfarenhetsdrift","index":9,"n_rows":3,"n_cols":1,"rows_kept":3,"cut":false,"hidden":false,"merged":[]}
["Erfarenhetsdrift"]
[]
["I de fall då anläggningsprojektet får i uppdrag av ett utvecklingsprojekt (som drivs av tekniskt ansvarig, ofta på UHt eller IKT) att utföra en första installation av en ny teknisk lösning som ännu inte är Tekniskt Godkänt Material (TGM) kan det vara förenat med krav på leverans av annan förvaltningsdata/ standarddokumentation. Hur och vad för dokumentation som ska levereras står i uppdragsbeskrivningen från tekniskt ansvarig."]

{"sheet":"0 3D-modell","index":10,"n_rows":41,"n_cols":1,"rows_kept":41,"cut":false,"hidden":false,"merged":[]}
["3D-modell"]
[]
["Projekten kan nu lämna över framtagna 3D-modeller till UH. Tillsvidare är 3D-modellerna endast ett komplement till den normala leveransen som fortfarande ska följa dagens krav i TDOK 2016:0407."]
[]
["Leveransen ska innehålla följande:"]
["Modellfiler A,B enligt TDOK 2015:0181"]
["RFM, RFÄ (redogörelse för modell, ämnesområdesmodell)"]
["Handlingsförteckning över levererade modeller, stödfiler samt inställningsfiler"]
[]
["Överlämning till UH ska ske enligt TDOK 2016:0411, kap 6.5.1."]
[]
["Specifika modellkrav"]
["3D-modeller ska innehålla en uppdaterad modellstämpel (gäller endast dwg/dgn)"]
[" - Uppdaterad metadata enligt förteckning ska fyllas i"]
[]
[]
["Namngivning"]
["För 3D-modeller gäller att filnamn från bygghandlingsskedet behålls med följande tillägg:"]
[" - Teknikområde ska framgå i klartext i filnamnet vilket innebär att eventuell BSAB-kod"]
["kompletteras med teknikområde utskrivet i klartext."]
[" - Redovisningssätt (V, P osv) ska framgå av filnamn."]
[" - För järnvägsprojekt ska längdmätning framgå av filnamn."]
[]
["Exempel på namngivning:"]
["Alt 1: BAN_V_188-202"]
["Alt 2: 51-00-V-KANALISATION_BAN_188-202"]
[]
["Metadata"]
["Följande metadata ska anges vid leverans av 3D-modeller:"]
[" - Anläggningsdel"]
[" - Anläggningstyp"]
[" - Bandel/Sträcka"]
[" - Beskrivning"]
[" - Datum"]
[" - Höjdsystem"]
[" - Koordinatsystem"]
[" - Projektionszon"]
[" - Startkm"]
[" - Startm"]
[" - Slutkm"]
[" - Slutm"]

{"sheet":"0 Väg","index":11,"n_rows":3,"n_cols":1,"rows_kept":3,"cut":false,"hidden":false,"merged":[]}
["Väg"]
[]
["Om ett projekt påverkar väganläggning ska projektet även ta fram en leveransplan för väg, TMALL 0343 ”Data om anläggningen – Leveransplan – Väg”, samt ansöka om en mottagandekoordinator även för vägleveranserna. \nKraven på data för väganläggningen beskrivs i TDOK 2019:0210 ”Data om anläggningen – Data och dokumentation till förvaltande system – Väg”."]

{"sheet":"0 JNB","index":12,"n_rows":8,"n_cols":12,"rows_kept":8,"cut":false,"hidden":false,"merged":[[3,8,3,10],[5,0,5,11],[3,3,3,6]]}
["JNB"]
["Inkoppling",{"$f":"IF(Projektuppgifter!G9=\"\",\"Fyll i datum\",Projektuppgifter!G9)","v":"Fyll i datum"},null,"Länk till flik Projektuppgifter"]
[]
[null,null,"Fylls i av:","Projekt",null,null,null,"Information till projektet","Mottagande förvaltning",null,null,"Alla"]
[null,"Filformat\nvisningsfil","Filformat\nunderlagsfil","Aktuellt att upprättas av projektet","Levereras av:\n- E (Entreprenör)\n- K (Konsult)\n- B (Beställare)\n(datum + namn)","Levererat till förvaltande system och aviserat leveransen till mottagande förvaltning, enligt TDOK 2016:0411\n(datum + namn+ ärendenr.)","Eventuella ändringar av tidigare levererad dokumentation\n(Länk till leveransen)","Leveransyta till förvaltande system","Förvaltande system","Leveranskontrollerat\n(namn +  datum + ärendenummer)","Inläst och godkänt \n(namn +  datum + ärendenummer)","Eventuella kommentar"]
["30 april 32-20 månader före inkoppling"]
["Leverans till mottagande förvaltning senast: Projektet får själv räkna ut detta"]
["TMALL 0479 Leverans till JNB, kapitel 2"," --","xlsx",null,"B",null,null,"Ifylld TMALL bifogas i aviseringsmailet.","JNB"]

{"sheet":"0 Tågplan","index":13,"n_rows":9,"n_cols":11,"rows_kept":9,"cut":false,"hidden":false,"merged":[[3,4,3,6],[5,0,5,10],[6,0,6,10],[7,0,7,10],[3,8,3,9]]}
["Tågplan"]
["Inkoppling",{"$f":"IF(Projektuppgifter!G9=\"\",\"Fyll i datum\",Projektuppgifter!G9)","v":"Fyll i datum"},null,"Länk till flik Projektuppgifter"]
[]
[null,null,null,"Fylls i av:","Projekt",null,null,"Information till projektet","Mottagande förvaltning",null,"Alla"]
[null,null,"Filformat\nvisningsfil","Filformat\nunderlagsfil","Aktuellt att upprättas av projektet","Levereras av:\n- E (Entreprenör)\n- K (Konsult)\n- B (Beställare)\n(datum + namn)","Levererat till förvaltande system och aviserat leveransen till mottagande förvaltning, enligt TDOK 2016:0411\n(datum + namn)","Leveransyta till förvaltande system","Förvaltande system","Inläst och godkänt ","Eventuella kommentarer"]
["30 september 27-15 månader före inkoppling"]
["Leverans till mottagande förvaltning senast: Projektet får själv räkna ut detta"]
["Teknisk dokumentation"]
["Tågplan","TMALL 0480 Leverans till Tågplan"," --","xlsx",null,"B",null,"Projektets lagringsyta","Tågplan","Ingen kvittens"]

{"sheet":"0 Geografiska modellfiler","index":14,"n_rows":23,"n_cols":15,"rows_kept":23,"cut":false,"hidden":false,"merged":[[21,10,22,10],[1,0,1,1],[6,4,6,9],[6,11,6,13],[8,0,8,3],[11,0,22,0],[21,11,22,11],[9,0,9,3],[10,10,20,10],[10,11,20,11]]}
["Geografiska modellfiler"]
["Slutbesiktning:",null,{"$f":"IF(Projektuppgifter!G10=\"\",\"Fyll i datum\",Projektuppgifter!G10)","v":"Fyll i datum"},null,"Länk till flik Projektuppgifter"]
[]
[null,"Fylls i av:","Projekt"]
["Koordinatsystem plan:"]
[]
[null,null,null,"Fylls i av:","Projekt",null,null,null,null,null,"Information till projektet","Mottagande förvaltning",null,null,"Alla"]
[null,null,"Prefix","Filformat\nunderlagsfil","Aktuellt att upprättas av projektet","Status på levererad data","Om era ändringar är inmätta i höjd, vilket höjdsystem har använts","Filnamn","Levereras av:\n- E (Entreprenör)\n- K (Konsult)\n- B (Beställare)\n(datum + namn)","Levererat till förvaltande system  och aviserat leveransen till mottagande förvaltning, enligt TDOK 2016:0411\n(datum + namn + ärendenr.)","Leveransyta till förvaltande system","Förvaltande system","Leveranskontrollerat\n(datum + namn + ärendenr.)","Inläst och godkänt \n(datum + namn + ärendenr.)","Eventuella kommentarer"]
["3 månader efter slutbesiktning"]
[{"$f":"\"Leverans till mottagande förvaltning senast: \"&IF(C2=\"Fyll i datum\",\"Fyll i datum\",TEXT(EDATE(C2,3),\"ÅÅÅÅ-MM-DD\"))","v":"Leverans till mottagande förvaltning senast: Fyll i datum"}]
["Ritningsutsnitt",null,null,"dgn",null,null,null,null,null,null,"ProjectWise/Förvaltning Järnväg/Förvaltningsdata Leveranser/ _Anläggningsmodeller/Bandel","PW/FJ"]
["Modellfil","Ban","BAN","dgn"]
[null,"Mark","MARK","dgn"]
[null,"El, kontaktledning","EL_KTL","dgn"]
[null,"El, lågspänning","EL_LÅGSP","dgn"]
[null,"El, jordning","EL_JORD","dgn"]
[null,"El, fjärrstyrning","EL_FJR","dgn"]
[null,"Geoteknik","GEO","dgn, dwg"]
[null,"Kanalisation","KANAL","dgn"]
[null,"Tele","TELE","dgn"]
[null,"Tele, trafikinformation","TELE_TI","dgn"]
[null,"Signal, plan","anl.nr - SIGNAL","dgn",null,null,null,null,null,null,"Ebbas leveransyta","Ebba"]
[null,"Signal, isol","anl.nr - ISOL","dgn"]

{"sheet":"4.1 Bankropp","index":15,"n_rows":102,"n_cols":16,"rows_kept":102,"cut":false,"hidden":false,"merged":[[84,12,88,12],[84,11,88,11],[89,12,96,12],[90,1,90,2],[91,1,91,2],[93,1,93,2],[94,1,94,2],[96,1,96,2],[95,1,95,2],[92,1,92,2],[89,11,96,11],[77,0,83,0],[77,11,83,11],[1,0,1,1],[2,0,2,1],[4,6,4,10],[82,1,82,2],[83,1,83,2],[78,1,78,2],[79,1,79,2],[80,1,80,2],[41,0,41,1],[7,0,7,4],[52,12,76,12],[52,0,76,0],[52,1,61,1],[62,1,76,1],[9,0,9,4],[10,0,10,4],[12,0,20,1],[40,0,40,15],[23,0,23,4],[38,0,38,4],[39,0,39,4],[24,12,37,12],[42,0,51,1],[41,12,51,12],[41,11,51,11],[77,12,83,12],[89,0,96,0],[89,1,89,2],[4,12,4,14],[11,0,11,15],[12,12,21,12],[6,0,6,5],[8,2,8,5],[8,0,8,1],[12,11,21,11],[41,2,41,5],[24,0,36,1],[24,11,37,11],[52,11,76,11],[81,1,81,2],[77,1,77,2],[84,0,88,0],[84,1,84,2],[85,1,85,2],[86,1,86,2],[87,1,87,2],[88,1,88,2]]}
["Bankropp"]
["Inkoppling:",null,{"$f":"IF(Projektuppgifter!G9=\"\",\"Fyll i datum\",Projektuppgifter!G9)","v":"Fyll i datum"},null,"Länk till flik Projektuppgifter"]
["Slutbesiktning:",null,{"$f":"IF(Projektuppgifter!G10=\"\",\"Fyll i datum\",Projektuppgifter!G10)","v":"Fyll i datum"}]
[]
[null,null,null,null,null,"Fylls i av:","Projekt",null,null,null,null,"Information till projektet","Mottagande förvaltning",null,null,"Alla"]
[null,null,null,"Filformat\nvisningsfil","Filformat\nunderlagsfil","Uppbyggd av modellfil","Aktuellt att upprättas av projektet","Status på levererad data","Filnamn alt länk till levererad fil","Levereras av:\n- E (Entreprenör)\n- K (Konsult)\n- B (Beställare)\n(datum + namn)","Levererat till förvaltande system och aviserat leveransen till mottagande förvaltning, enligt TDOK 2016:0411\n(datum + namn + ärendenr.)","Leveransyta till förvaltande system","Förvaltande system","Mottaget\n(datum + namn + ärendenr.)","Godkänt \n(datum + namn + ärendenr.)","Eventuella kommentarer"]
["1 månad före inkoppling"]
[{"$f":"\"Leverans till mottagande förvaltning senast: \"&IF(C2=\"Fyll i datum\",\"Fyll i datum\",TEXT(EDATE(C2,-1),\"ÅÅÅÅ-MM-DD\"))","v":"Leverans till mottagande förvaltning senast: Fyll i datum"}]
["Trumma, påldäck, magasin för dagvatten",null,"Trumma, påldäck och magasin för dagvatten utgör en del av bankroppen, men ska redovisas som ett Övrigt byggnadsverk i flik 5.3.",null,null,null,null,null,null,null,null,null,"BaTMan"]
["1 vecka efter inkoppling",null,null,null,null,null,"Ja"]
[{"$f":"\"Leverans till mottagande förvaltning senast: \"&IF(C2=\"Fyll i datum\",\"Fyll i datum\",TEXT(DATE(YEAR(C2),MONTH(C2),DAY(C2)+7),\"ÅÅÅÅ-MM-DD\"))","v":"Leverans till mottagande förvaltning senast: Fyll i datum"},null,null,null,null,null,"Ja"]
["Data för lagring i databas"]
["Nytt objekt:",null,"TMALL 0576 Bank"," --","xlsx",null,null,null,null,null,null,"Projektets lagringsyta","BIS"]
[null,null,"TMALL 0577 Dränering"," --","xlsx"]
[null,null,"TMALL 0578 Erosionsskydd"," --","xlsx"]
[null,null,"TMALL 0580 Glacismur"," --","xlsx"]
[null,null,"TMALL 0589 Skärning"," --","xlsx"]
[null,null,"TMALL 0592 Trumma"," --","xlsx"]
[null,null,"TMALL 0593 Tryckbank/stödbank"," --","xlsx"]
[null,null,"TMALL 0595 Underballast"," --","xlsx"]
[null,null,"TMALL 0598 Öppet dike"," --","xlsx"]
["Ändrat/slopat objekt:",null,"Slopnings- och ändringslista av objekten ovan"," --","xlsx"]
["3 veckor efter inkoppling",null,null,null,null,null,"Ja"]
[{"$f":"\"Leverans till mottagande förvaltning senast: \"&IF(C2=\"Fyll i datum\",\"Fyll i datum\",TEXT(DATE(YEAR(C2),MONTH(C2),DAY(C2)+21),\"ÅÅÅÅ-MM-DD\"))","v":"Leverans till mottagande förvaltning senast: Fyll i datum"},null,null,null,null,null,"Ja"]
["Nytt objekt:",null,"TMALL 0579 Frostskyddsisolering"," --","xlsx",null,null,null,null,null,null,"Projektets lagringsyta","BIS"]
[null,null,"TMALL 0660 Fördröjningsmagasin"," --","xlsx"]
[null,null,"TMALL 0661 Geotekniska händelser"," --","xlsx"]
[null,null,"TMALL 0581 Jordarmering"," --","xlsx"]
[null,null,"TMALL 0582 Jordspikning"," --","xlsx"]
[null,null,"TMALL 0584 Kalkcementpelare"," --","xlsx"]
[null,null,"TMALL 1166 Nedpressning"," --","xlsx"]
[null,null,"TMALL 0585 Lättfyllning"," --","xlsx"]
[null,null,"TMALL 0586 Påldäck/bankpålning"," --","xlsx"]
[null,null,"TMALL 0587 Rustbädd"," --","xlsx"]
[null,null,"TMALL 0668 Rör"," --","xlsx"]
[null,null,"TMALL 0590 Spont"," --","xlsx"]
[null,null,"TMALL 0596 Urgrävning/utskiftning"," --","xlsx"]
["Ändrat/slopat objekt:",null,"Slopnings- och ändringslista av objekten ovan"," --","xlsx"]
["3 månader efter slutbesiktning",null,null,null,null,null,"x"]
[{"$f":"\"Leverans till mottagande förvaltning senast: \"&IF(C3=\"Fyll i datum\",\"Fyll i datum\",TEXT(EDATE(C3,3),\"ÅÅÅÅ-MM-DD\"))","v":"Leverans till mottagande förvaltning senast: Fyll i datum"},null,null,null,null,null,"x"]
["Teknisk dokumentation"]
["Påldäck, magasin för dagvatten",null,"Påldäck och magasin för dagvatten utgör en del av bankroppen, men ska redovisas som ett Övrigt byggnadsverk i flik 5.3.",null,null,null,null,null,null,null,null,"Registreras direkt i BaTMan","BaTMan"]
["Trumma (under järnväg) \n\nTrumma längs med järnvägen ska redovisas i flik 15.4 Mark",null,"Anläggningsskiss","pdf/a"," --"]
[null,null,"Ritningar","pdf/a"," --"]
[null,null,"Avvattning/Mark/Geotekniskt PM","pdf/a"," --"]
[null,null,"Slopad trumma","pdf/a"," --"]
[null,null,"Avtal","pdf/a"," --"]
[null,null,"Miljödom","pdf/a"," --"]
[null,null,"Beslut om anmäld vattenverksamhet","pdf/a"," --"]
[null,null,"Övriga myndighetsbeslut","pdf/a"," --"]
[null,null,"Kontrollprogram (miljö)","pdf/a"," --"]
[null,null,"Skötselbeskrivning","pdf/a"," --"]
["Geoteknik","Undersökning**","Rgeo/MUR","pdf","docx",null,null,null,null,null,null,"ProjectWise/Förvaltning Järnväg/Förvaltningsdata Leveranser/ _resp. teknikområde/Bandel","PW/FJ"]
[null,null,"Plan - Geologisk kartering","pdf","dgn, dwg"]
[null,null,"Profil - Geologisk prognos","pdf","dgn, dwg"]
[null,null,"Plan - Geoteknisk undersökning","pdf","dgn, dwg"]
[null,null,"Profil - Geoteknisk undersökning","pdf","dgn, dwg"]
[null,null,"Tvärsektion - Geoteknisk undersökning","pdf","dgn, dwg"]
[null,null,"Plan - Geohydrologisk undersökning","pdf","dgn, dwg"]
[null,null,"Uppföljning, kontrollprogram","pdf","dgn, dwg"]
[null,null,"Borrhålsritning","pdf","dgn, dwg"]
[null,null,"Geosuiteprojekt","zip (komplett databasfil)"," --"]
[null,"Anläggning","TB/OTB/TBGeo/TPM","pdf"," -- "]
[null,null,"PM Geohydrologi","pdf"," -- "]
[null,null,"Beräkning","pdf"," -- "]
[null,null,"Masstabilisering*","pdf","docx, dgn, dwg","GEO"]
[null,null,"Erosionsskydd*","pdf","docx, dgn, dwg","GEO"]
[null,null,"Bankpålning*","pdf","docx, dgn, dwg","GEO"]
[null,null,"Tryck-/stödbank*","pdf","docx, dgn, dwg","GEO"]
[null,null,"Kalkcementpelare*","pdf","xlsx, dgn, dwg","GEO***"]
[null,null,"Vertikaldränering*","pdf","docx, dgn, dwg","GEO"]
[null,null,"Lättfyllning*","pdf","docx, dgn, dwg","GEO"]
[null,null,"Urgrävning, nedpressning*","pdf","docx, dgn, dwg","GEO"]
[null,null,"Stödkonstruktion*","pdf","docx, dgn, dwg","GEO"]
[null,null,"Frostskydd*","pdf","docx, dgn, dwg","GEO"]
[null,null,"Jordarmering*","pdf","docx, dgn, dwg","GEO"]
[null,null,"Jordspikning*","pdf","docx, dgn, dwg","GEO"]
["Avvattning","Anläggningsskiss",null,"pdf"," --"," --",null,null,null,null,null,"Ebbas leveransyta","Ebba"]
[null,"Anläggningsritning",null,"pdf"," --"," --"]
[null,"Beskrivning",null,"pdf"," --"," --"]
[null,"Teknisk beskrivning",null,"pdf"," --"," --"]
[null,"Rapport",null,"pdf"," --"," --"]
[null,"Garantibesiktningsprotokoll",null,"pdf"," --"," --"]
[null,"Kontrollprogram (miljö)",null,"pdf"," --"," --"]
["Dammanläggning","Anläggnings- och funktionsbeskrivning",null,"pdf"," --"," --",null,null,null,null,null,"Ebbas leveransyta","Ebba"]
[null,"Anläggningsritning",null,"pdf"," --"," --"]
[null,"Beräkning",null,"pdf"," --"," --"]
[null,"Kontrollprogram (miljö)",null,"pdf"," --"," --"]
[null,"TMALL 1433 Skötselbeskrivning vattenskyddsanläggning järnväg",null,"pdf"," --"," --"]
["Vattenskydds-anläggning","Anläggnings- och funktionsbeskrivning",null,"pdf"," --"," --",null,null,null,null,null,"Ebbas leveransyta","Ebba"]
[null,"Anläggningsritning",null,"pdf"," --"," --"]
[null,"Beräkning",null,"pdf"," --"," --"]
[null,"Riskbedömning",null,"pdf"," --"," --"]
[null,"Teknisk beskrivning",null,"pdf"," --"," --"]
[null,"Kontrollprogram (miljö)",null,"pdf"," --"," --"]
[null,"TMALL 1452 Åtgärdsrutin vid olycka med utsläpp järnväg",null,"pdf"," --"," --"]
[null,"TMALL 1433 Skötselbeskrivning vattenskyddsanläggning järnväg",null,"pdf"," --"," --"]
["* Kan redovisas på samma planritning. Denna kallas då Plan - Geotekniska förstärkningar."]
["** Teknisk dokumentation för Geoteknik/ Undersökning kan med fördel levereras redan efter slutförd undersökningen i respektive skede, dock senast 3 månader efter slutbesiktning."]
["*** Befintliga objekt redovisades tidigare i modellfil MARK och återfinns fortfarande i modellfil MARK. Nya objekt ska redovisas i modellfil GEO. Gäller från 2021-11-01."]
[]
["OBS! Relevant data/dokumentation kopplat till miljö ska levereras enligt flik 15.5 Miljö"]

{"sheet":"5.1 Bro","index":16,"n_rows":62,"n_cols":16,"rows_kept":62,"cut":false,"hidden":false,"merged":[[53,0,57,0],[43,0,50,0],[42,11,58,11],[42,10,58,10],[58,0,58,3],[51,0,52,0],[14,11,15,11],[19,0,19,1],[20,0,20,1],[24,11,29,11],[24,10,29,10],[40,0,40,3],[39,0,39,3],[42,0,42,1],[34,0,34,3],[17,0,17,3],[19,2,22,3],[3,0,3,1],[11,0,11,3],[33,2,33,3],[21,0,21,1],[22,0,22,1],[29,0,29,1],[25,0,25,1],[26,0,26,1],[27,0,27,1],[28,0,28,1],[24,0,24,1],[9,4,9,9],[9,11,9,14],[37,10,38,10],[19,11,22,11],[14,10,15,10],[19,10,22,10],[36,0,36,15],[37,11,38,11],[35,0,35,3],[30,0,30,3],[31,0,31,3],[32,0,32,15],[33,0,33,1],[23,0,23,1],[12,0,12,3],[16,0,16,3]]}
["Bro"]
["Inkoppling:",{"$f":"IF(Projektuppgifter!G9=\"\",\"Fyll i datum\",Projektuppgifter!G9)","v":"Fyll i datum"},null,"Länk till flik Projektuppgifter"]
["Slutbesiktning:",{"$f":"IF(Projektuppgifter!G10=\"\",\"Fyll i datum\",Projektuppgifter!G10)","v":"Fyll i datum"}]
["Se även rutinbeskrivning TDOK 2018:0200 \"Förvaltningsdata och uppgifter i BaTMan\" och TDOK 2023:0079  \"Handlägga och fastställa bärighetsuppgifter \nför byggnadsverk\". Dessa rutiner kompletterar kravdokumentet TDOK 2016:0407."]
[]
["Konstruktionsnummer:"]
[]
["Vid rivning, meddela byggnadsverk.jvg_batman@trafikverket.se. "]
[]
[null,null,null,"Fylls i av:","Projekt",null,null,null,null,null,"Information till projektet","1. Mottagande förvaltning (BIS)\n2. Kontroll av överlämnandeorganisationens teknikspecialist/teknikingenjör (BaTMan)\n3. Mottagande förvaltning BaTMan",null,null,null,"Alla"]
[null,null,"Filformat\nvisningsfil","Filformat\nunderlagsfil","Aktuellt att upprättas av projektet","Länk till levererad fil","Levereras av:\n- E (Entreprenör)\n- K (Konsult)\n- B (Beställare)\n(datum + namn)","Levererat till förvaltande system/registrerat och aviserat leveransen till mottagande förvaltning, enligt TDOK 2016:0411\n(datum + namn + ärendenr.)","BIS: Eventuella ändringar av tidigare levererade data \n(Länk till leveransen)\n\n","BIS: Levererat till förvaltande system och aviserat ändringar (datum + namn + ärendenr.)","Leveransyta till förvaltande system","Förvaltande system","Mottaget\n(datum + namn + ärendenr.)","1. För lev i BIS\nGodkänt \n(datum + namn + ärendenr.)\n\n2. För lev i BaTMan\nKontrollerat och/eller fastställt enl TDOK 2018:0200 (datum + namn (ej initialer) och org.tillhörighet)\n\n3. Rad 59 (datum + namn (ej initialer) och org.tillhörighet)","BIS: Godkänt ändring\n(datum + namn + ärendenr.)","Eventuella kommentarer"]
["6 månader före inkoppling ",null,null,null,"Ja"]
[{"$f":"\"Leverans till mottagande förvaltning senast: \"&IF(B2=\"Fyll i datum\",\"Fyll i datum\",TEXT(EDATE(B2,-6),\"ÅÅÅÅ-MM-DD\"))","v":"Leverans till mottagande förvaltning senast: Fyll i datum"},null,null,null,"Ja"]
["Data för lagring i databas"]
[null,"TMALL 0583 Järnvägsbro"," --","xlsx",null,null,null,null,null,null,"Projektets lagringsyta","BIS"]
["Ändrat/slopat objekt:","Slopnings- och ändringslista av objektet ovan"," --","xlsx"]
["1 månad före inkoppling",null,null,null,"Ja"]
[{"$f":"\"Leverans till mottagande förvaltning senast: \"&IF(B2=\"Fyll i datum\",\"Fyll i datum\",TEXT(EDATE(B2,-1),\"ÅÅÅÅ-MM-DD\"))","v":"Leverans till mottagande förvaltning senast: Fyll i datum"},null,null,null,"Ja"]
["Data för lagring i databas"]
["Tekniska uppgifter",null,"Registreras direkt i BaTMan",null,null,null,null,null,null,null,"Registreras direkt i BaTMan","BaTMan"]
["Konstruktiv indelning"]
["Passage/Överfart"]
["Passage/Underfart"]
["Teknisk dokumentation"]
["Anläggningsskiss",null,"pdf/a"," --",null,null,null,null,null,null,"Registreras direkt i BaTMan","BaTMan"]
["Bärighetsberäkning",null,"pdf/a"," --"]
["Ritningar",null,"pdf/a"," --"]
["Beskrivningar",null,"pdf/a"," --"]
["Redogörelse för konstruktionens förutsättningar och metoder (RKFM)",null,"pdf/a"," --"]
["Konstruktionsberäkningar",null,"pdf/a"," --"]
["Dagen för inkoppling ",null,null,null,"Ja"]
[{"$f":"\"Leverans till mottagande förvaltning senast: \"&IF(B2=\"Fyll i datum\",\"Fyll i datum\",TEXT(DATE(YEAR(B2),MONTH(B2),DAY(B2)),\"ÅÅÅÅ-MM-DD\"))","v":"Leverans till mottagande förvaltning senast: Fyll i datum"},null,null,null,"Ja"]
["Data för lagring i databas"]
["Huvudinspektion",null,"Registreras direkt i BaTMan",null,null,null,null,null,null,null,"Registreras direkt i BaTMan","BaTMan"]
["1 vecka efter inkoppling ",null,null,null,"Ja"]
[{"$f":"\"Leverans till mottagande förvaltning senast: \"&IF(B2=\"Fyll i datum\",\"Fyll i datum\",TEXT(DATE(YEAR(B2),MONTH(B2),DAY(B2)+7),\"ÅÅÅÅ-MM-DD\"))","v":"Leverans till mottagande förvaltning senast: Fyll i datum"},null,null,null,"Ja"]
["Data för lagring i databas"]
["Nytt objekt:","TMALL 0597 Vägbro"," --","xlsx",null,null,null,null,null,null,"Projektets lagringsyta","BIS"]
["Ändrat/slopat objekt:","Slopnings- och ändringslista av objektet ovan"," --","xlsx"]
["3 månader efter slutbesiktning",null,null,null,"Ja"]
[{"$f":"\"Leverans till mottagande förvaltning senast: \"&IF(B3=\"Fyll i datum\",\"Fyll i datum\",TEXT(EDATE(B3,3),\"ÅÅÅÅ-MM-DD\"))","v":"Leverans till mottagande förvaltning senast: Fyll i datum"},null,null,null,"Ja"]
["Teknisk dokumentation"]
["Teknisk dokumentation från 1 mån före inkoppling har status relationshandling",null,"pdf/a"," --",null,null,null,null,null,null,"Registreras direkt i BaTMan","BaTMan"]
["Övriga dokument från en åtgärd","Betonggjutningsjournal","pdf/a"," --"]
[null,"Rapporter och tekniska utredningar från byggtiden","pdf/a"," --"]
[null,"Kvarstående avvikelserapporter efter slutbesiktning samt eventuella provningsintyg som hör till avvikelse.","pdf/a"," --"]
[null,"Protokoll från entreprenadbesiktningar. (förekommande besiktningstyper enl AB04/ABT06 kap 7)","pdf/a"," --"]
[null,"Avtal, exempelvis med kommun, annan väghållare, markägare.","pdf/a"," --"]
[null,"Reservdelsinformation","pdf/a"," --"]
[null,"Teknisk beskrivning avfuktningsanläggning","pdf/a"," --"]
[null,"Ev övriga dokument från åtgärd som är viktiga för framtida förvaltning av bro","pdf/a"," --"]
["Geoteknik","Geotekniskt PM","pdf/a"," --"]
[null,"Markundersökningsrapport","pdf/a"," --"]
["Miljö","Miljödom","pdf/a"," --"]
[null,"Beslut om anmäld vattenverksamhet","pdf/a"," --"]
[null,"Kontrollprogram miljö","pdf/a"," --"]
[null,"Övriga myndighetsbeslut","pdf/a"," --"]
[null,"Skötselbeskrivning","pdf/a"," --"]
["Data och dokumentation enligt TDOK 2016:0407 är komplett. \nAktivitet 1-5 enligt TDOK 2018:0200 är genomförd. \nBärighetsuppgifter enligt TDOK 2023:0079 är registrerade och fastställda."]
["Modellfilen för MARK ska uppdateras om man river/bygger en bro. Modellfilen ska registreras i flik 0. Geografiska modeller"]
[]
["OBS! Relevant data/dokumentation kopplat till miljö ska levereras enligt flik 15.5 Miljö"]

{"sheet":"5.2 Tunnel o bergslänt","index":17,"n_rows":64,"n_cols":16,"rows_kept":64,"cut":false,"hidden":false,"merged":[[48,0,55,0],[60,0,60,3],[24,11,39,11],[24,14,39,14],[23,0,23,1],[29,0,29,1],[30,0,30,1],[28,0,28,1],[25,0,25,1],[26,0,26,1],[24,0,24,1],[27,0,27,1],[24,10,39,10],[31,0,39,0],[11,0,11,3],[12,0,12,3],[17,0,17,3],[18,0,18,3],[20,0,20,1],[14,0,15,0],[14,11,16,11],[20,2,22,3],[22,0,22,1],[21,0,21,1],[14,10,16,10],[3,0,3,1],[56,0,59,0],[47,11,60,11],[47,10,60,10],[44,0,44,3],[45,0,45,3],[47,0,47,1],[40,0,40,3],[41,0,41,3],[42,0,42,15],[43,0,43,1],[43,2,43,3],[9,4,9,9],[9,11,9,14],[20,10,22,10],[20,11,22,11]]}
["Tunnel och bergslänt"]
["Inkoppling:",{"$f":"IF(Projektuppgifter!G9=\"\",\"Fyll i datum\",Projektuppgifter!G9)","v":"Fyll i datum"},null,"Länk till flik Projektuppgifter"]
["Slutbesiktning:",{"$f":"IF(Projektuppgifter!G10=\"\",\"Fyll i datum\",Projektuppgifter!G10)","v":"Fyll i datum"}]
["Se även rutinbeskrivning TDOK 2018:0200 \"Förvaltningsdata och uppgifter i BaTMan\" och TDOK 2023:0079  \"Handlägga och fastställa bärighetsuppgifter \nför byggnadsverk\". Dessa rutiner kompletterar kravdokumentet TDOK 2016:0407."]
[]
["Konstruktions-nummer:"]
[]
["Vid rivning, meddela byggnadsverk.jvg_batman@trafikverket.se. "]
[]
[null,null,null,"Fylls i av:","Projekt",null,null,null,null,null,"Information till projektet","1. Mottagande förvaltning (BIS)\n2. Kontroll av överlämnandeorganisationens teknikspecialist/teknikingenjör (BaTMan)\n3. Mottagande förvaltning BaTMan",null,null,null,"Alla"]
[null,null,"Filformat\nvisningsfil","Filformat\nunderlagsfil","Aktuellt att upprättas av projektet","Länk till levererad fil","Levereras av:\n- E (Entreprenör)\n- K (Konsult)\n- B (Beställare)\n(datum + namn)","Levererat till förvaltande system/registrerat och aviserat leveransen till mottagande förvaltning, enligt TDOK 2016:0411\n(datum + namn + ärendenr.)","BIS: Eventuella ändringar av tidigare levererade data \n(Länk till leveransen)\n\n","BIS: Levererat till förvaltande system  och aviserat ändringar (datum + namn + ärendenr.)","Leveransyta till förvaltande system","Förvaltande system","Mottaget\n(datum + namn + ärendenr.)","1. För lev i BIS\nGodkänt \n(datum + namn + ärendenr.)\n\n2. För lev i BaTMan\nKontrollerat och/eller fastställt enl TDOK 2018:0200 (datum + namn (ej initialer) och org.tillhörighet)\n\n3. Rad 61 (datum + namn (ej initialer) och org.tillhörighet)","BIS: Godkänt ändring\n(datum + namn + ärendenr.)","Eventuella kommentarer"]
["6 månader före inkoppling ",null,null,null,"Ja"]
[{"$f":"\"Leverans till mottagande förvaltning senast: \"&IF(B2=\"Fyll i datum\",\"Fyll i datum\",TEXT(EDATE(B2,-6),\"ÅÅÅÅ-MM-DD\"))","v":"Leverans till mottagande förvaltning senast: Fyll i datum"},null,null,null,"Ja"]
["Data för lagring i databas"]
[null,"TMALL 0594 Tunnel"," --","xlsx",null,null,null,null,null,null,"Projektets lagringsyta","BIS"]
[null,"TMALL 0588 Service och räddningstunnel"," --","xlsx"]
["Ändrat/slopat objekt:","Slopnings- och ändringslista av objektet ovan"," --","xlsx"]
["1 månad före inkoppling",null,null,null,"Ja"]
[{"$f":"\"Leverans till mottagande förvaltning senast: \"&IF(B2=\"Fyll i datum\",\"Fyll i datum\",TEXT(EDATE(B2,-1),\"ÅÅÅÅ-MM-DD\"))","v":"Leverans till mottagande förvaltning senast: Fyll i datum"},null,null,null,"Ja"]
["Data för lagring i databas"]
["Tekniska uppgifter",null,"Registreras direkt i BaTMan",null,null,null,null,null,null,null,"Registreras direkt i BaTMan","BaTMan"]
["Konstruktiv indelning"]
["Passage/Genomfart/Sidopassage"]
["Teknisk dokumentation"]
["Anläggningsskiss",null,"pdf/a"," --",null,null,null,null,null,null,"Registreras direkt i BaTMan","BaTMan"]
["Bärighetsberäkning",null,"pdf/a"," --"]
["Ritningar",null,"pdf/a"," --"]
["Beskrivningar",null,"pdf/a"," --"]
["Redogörelse för konstruktionens förutsättningar och metoder (RKFM)",null,"pdf/a"," --"]
["Utredningar och beräkningar",null,"pdf/a"," --"]
["Förundersökning",null,"pdf/a"," --"]
["Personsäkerhet i tunnlar","Konstruktionsredovisning","pdf/a"," --"]
[null,"EG-kontrollintyg","pdf/a"," --"]
[null,"Dokumentation för hantering av avvikelser, tillbud och olyckor","pdf/a"," --"]
[null,"Förundersökning","pdf/a"," --"]
[null,"Underhållsbestämmelser","pdf/a"," --"]
[null,"Räddnings- och insatsplan","pdf/a"," --"]
[null,"Tillsyn enligt lag (2003:778) om skydd mot olyckor","pdf/a"," --"]
[null,"Konstruktionsredovisning","pdf/a"," --"]
[null,"Uppgifter om utförd kontroll och underhåll","pdf/a"," --"]
["Dagen för inkoppling ",null,null,null,"Ja"]
[{"$f":"\"Leverans till mottagande förvaltning senast: \"&IF(B2=\"Fyll i datum\",\"Fyll i datum\",TEXT(DATE(YEAR(B2),MONTH(B2),DAY(B2)),\"ÅÅÅÅ-MM-DD\"))","v":"Leverans till mottagande förvaltning senast: Fyll i datum"},null,null,null,"Ja"]
["Data för lagring i databas"]
["Huvudinspektion",null,"Registreras direkt i BaTMan",null,null,null,null,null,null,null,"Registreras direkt i BaTMan","BaTMan"]
["3 månader efter slutbesiktning",null,null,null,"Ja"]
[{"$f":"\"Leverans till mottagande förvaltning senast: \"&IF(B3=\"Fyll i datum\",\"Fyll i datum\",TEXT(EDATE(B3,3),\"ÅÅÅÅ-MM-DD\"))","v":"Leverans till mottagande förvaltning senast: Fyll i datum"},null,null,null,"Ja"]
["Teknisk dokumentation"]
["Teknisk dokumentation från 1 mån före inkoppling har status relationshandling",null,"pdf/a"," --",null,null,null,null,null,null,"Registreras direkt i BaTMan","BaTMan"]
["Övriga dokument från en åtgärd","Betonggjutningsjournal","pdf/a"," --"]
[null,"Rapporter och tekniska utredningar från byggtiden","pdf/a"," --"]
[null,"Kvarstående avvikelserapporter efter slutbesiktning samt eventuella provningsintyg som hör till avvikelse.","pdf/a"," --"]
[null,"Protokoll från entreprenadbesiktningar. (förekommande besiktningstyper enl AB04/ABT06 kap 7)","pdf/a"," --"]
[null,"Avtal, exempelvis med kommun, annan väghållare, markägare.","pdf/a"," --"]
[null,"Reservdelsinformation","pdf/a"," --"]
[null,"Teknisk beskrivning avfuktningsanläggning","pdf/a"," --"]
[null,"Ev övriga dokument från åtgärd som är viktiga för framtida förvaltning av bro","pdf/a"," --"]
["Miljö","Miljödom","pdf/a"," --"]
[null,"Beslut om anmäld vattenverksamhet","pdf/a"," --"]
[null,"Övriga myndighetsbeslut","pdf/a"," --"]
[null,"Skötselbeskrivning","pdf/a"," --"]
["Data och dokumentation enligt TDOK 2016:0407 är komplett. \nAktivitet 1-5 enligt TDOK 2018:0200 är genomförd. \nBärighetsuppgifter enligt TDOK 2023:0079 är registrerade och fastställda."]
["Modellfilen för MARK ska uppdateras om man bygger en tunnel. Modellfilen ska registreras i flik 0. Geografiska modeller"]
[]
["OBS! Relevant data/dokumentation kopplat till miljö ska levereras enligt flik 15.5 Miljö"]

{"sheet":"5.3 Övriga byggnadsverk","index":18,"n_rows":74,"n_cols":15,"rows_kept":74,"cut":false,"hidden":false,"merged":[[70,0,70,3],[27,0,27,3],[16,0,16,1],[16,2,18,3],[17,0,17,1],[63,11,69,11],[67,0,69,0],[44,0,44,4],[45,0,45,4],[47,11,62,11],[56,0,57,0],[47,10,62,10],[63,10,69,10],[63,0,66,0],[47,0,47,1],[48,0,55,0],[58,0,62,0],[1,0,1,4],[13,0,13,4],[31,0,31,4],[20,11,25,11],[20,0,20,1],[21,0,21,1],[22,0,22,1],[23,0,23,1],[24,0,24,1],[25,0,25,1],[26,0,26,3],[16,11,18,11],[11,5,11,9],[14,0,14,4],[30,0,30,4],[18,0,18,1],[4,0,4,1],[33,11,38,11],[42,11,43,11],[33,10,38,10],[42,10,43,10],[40,0,40,4],[39,0,39,4],[33,0,37,0],[11,11,11,13],[19,0,19,1],[29,0,29,1],[29,2,29,3],[28,0,28,14],[16,10,18,10],[20,10,25,10]]}
["Övriga byggnadsverk"]
["Övriga byggnadsverk i järnvägsanläggningen som ska registreras i BaTMan är Färjeläge, Kaj (Båtbrygga), Stödkonstruktioner (nivåskillnad på ömse sidor större än 1,5 m, enligt TRVINFRA 00227), Tråg, Påldäck, Magasin för dagvatten utfört i stål eller betong, Anordningar för sjötrafik, Snögalleri, Vändskiva, Skärm vid järnväg samt Bergslänt (naturlig eller schaktad bergsskärning med nivåskillnad på ömse sidor större än 2,0 meter och släntfot belägen inom 20 meter från spårmitt)."]
["Inkoppling",{"$f":"IF(Projektuppgifter!G9=\"\",\"Fyll i datum\",Projektuppgifter!G9)","v":"Fyll i datum"},null,null,"Länk till flik Projektuppgifter"]
["Slutbesiktning:",{"$f":"IF(Projektuppgifter!G10=\"\",\"Fyll i datum\",Projektuppgifter!G10)","v":"Fyll i datum"}]
["Se även rutinbeskrivning TDOK 2018:0200 \"Förvaltningsdata och uppgifter i BaTMan\" och TDOK 2023:0079  \"Handlägga och fastställa bärighetsuppgifter för byggnadsverk\". Dessa rutiner kompletterar kravdokumentet TDOK 2016:0407."]
["Teknisk dokumentation för bullerskyddsskärmar lagras i BaTMan och för övriga bullerskydd (bullervallar och ballastmattor) i Ebba, enligt nedan.\n\n\n"]
["OBS! Även för bullerskyddsskärmar som ska lagras i BaTMan ska modellfil MARK uppdateras."]
[]
["Konstruktionsnummer:"]
[]
["Vid rivning, meddela byggnadsverk.jvg_batman@trafikverket.se. "]
[null,null,null,null,"Fylls i av:","Projekt",null,null,null,null,"Information till projektet","1. Mottagande förvaltning (BIS)\n2. Kontroll av överlämnandeorganisationens teknikspecialist/teknikingenjör (BaTMan)\n3. Mottagande förvaltning BaTMan",null,null,"Alla"]
[null,null,"Filformat\nvisningsfil","Filformat\nunderlagsfil","Uppbyggd av modellfil","Aktuellt att upprättas av projektet","Status på levererad data","Filnamn alt länk till levererad fil","Levereras av:\n- E (Entreprenör)\n- K (Konsult)\n- B (Beställare)\n(datum + namn)","Levererat till förvaltande system/registrerat och aviserat leveransen till mottagande förvaltning, enligt TDOK 2016:0411\n(datum + namn + ärendenr.)","Leveransyta till förvaltande system","Förvaltande system","Mottaget\n(datum + namn + ärendenr.)","1. För lev i BIS\nGodkänt \n(datum + namn + ärendenr.)\n\n2. För lev i BaTMan\nKontrollerat och/eller fastställt enl TDOK 2018:0200 (datum + namn (ej initialer) och org.tillhörighet)\n\n3. Rad 71 (datum + namn (ej initialer) och org.tillhörighet)","Eventuella kommentarer"]
["1 månad före inkoppling",null,null,null,null,"Ja"]
[null,null,null,null,null,"Ja"]
["Data för lagring i databas"]
["Tekniska uppgifter",null,"Registreras direkt i BaTMan",null," --",null,null,null,null,null,"Registreras direkt i BaTMan","BaTMan"]
["Konstruktiv indelning",null,null,null," --"]
["Passage/Sidopassage/Överfart",null,null,null," --"]
["Teknisk dokumentation"]
["Anläggningsskiss",null,"pdf/a"," --"," --",null,null,null,null,null,"Registreras direkt i BaTMan","BaTMan"]
["Bärighetsberäkning",null,"pdf/a"," --"," --"]
["Ritningar",null,"pdf/a"," --"," --"]
["Beskrivningar",null,"pdf/a"," --"," --"]
["Redogörelse för konstruktionens förutsättningar och metoder (RKFM)",null,"pdf/a"," --"," --"]
["Konstruktionsberäkningar",null,"pdf/a"," --"," --"]
["Dagen för inkoppling",null,null,null,"x","Ja"]
[{"$f":"\"Leverans till mottagande förvaltning senast: \"&IF(B3=\"Fyll i datum\",\"Fyll i datum\",TEXT(DATE(YEAR(B3),MONTH(B3),DAY(B3)),\"ÅÅÅÅ-MM-DD\"))","v":"Leverans till mottagande förvaltning senast: Fyll i datum"},null,null,null,"x","Ja"]
["Data för lagring i databas"]
["Huvudinspektion",null,"Registreras direkt i BaTMan",null," --",null,null,null,null,null,"Registreras direkt i BaTMan","BaTMan"]
["1 vecka efter inkoppling",null,null,null,null,"Ja"]
[{"$f":"\"Leverans till mottagande förvaltning senast: \"&IF(B3=\"Fyll i datum\",\"Fyll i datum\",TEXT(DATE(YEAR(B3),MONTH(B3),DAY(B3)+7),\"ÅÅÅÅ-MM-DD\"))","v":"Leverans till mottagande förvaltning senast: Fyll i datum"},null,null,null,null,"Ja"]
["Data för lagring i databas"]
["Nytt objekt:","TMALL 0653 Bullerskydd"," --","xlsx"," --",null,null,null,null,null,"Projektets lagringsyta","BIS"]
[null,"TMALL 0658 Snöskärm"," --","xlsx"," --"]
[null,"TMALL 0657 Snögalleri"," --","xlsx"," --"]
[null,"TMALL 0591 Stödmur"," --","xlsx"," --"]
[null,"TMALL 0567 Vändskiva"," --","xlsx"," --"]
["Ändrat/slopat objekt:","Slopnings- och ändringslista av objekten ovan"," --","xlsx"," --"]
["3 veckor efter inkoppling",null,null,null,null,"Ja"]
[{"$f":"\"Leverans till mottagande förvaltning senast: \"&IF(B3=\"Fyll i datum\",\"Fyll i datum\",TEXT(DATE(YEAR(B3),MONTH(B3),DAY(B3)+21),\"ÅÅÅÅ-MM-DD\"))","v":"Leverans till mottagande förvaltning senast: Fyll i datum"},null,null,null,null,"Ja"]
["Data för lagring i databas"]
["Nytt objekt:","TMALL 0655 Kanalisation"," --","xlsx"," --",null,null,null,null,null,"Projektets lagringsyta","BIS"]
["Ändrat/slopat objekt:","Slopnings- och ändringslista av objektet ovan"," --","xlsx"," --"]
["3 månader efter slutbesiktning",null,null,null,null,"Ja"]
[{"$f":"\"Leverans till mottagande förvaltning senast: \"&IF(B4=\"Fyll i datum\",\"Fyll i datum\",TEXT(EDATE(B4,3),\"ÅÅÅÅ-MM-DD\"))","v":"Leverans till mottagande förvaltning senast: Fyll i datum"},null,null,null,null,"Ja"]
["Teknisk dokumentation"]
["Teknisk dokumentation från 1 mån före inkoppling har status relationshandling",null,"pdf/a"," --"," --",null,null,null,null,null,"Registreras direkt i BaTMan","BaTMan"]
["Övriga dokument från en åtgärd","Betonggjutningsjournal","pdf/a"," --"," --"]
[null,"Rapporter och tekniska utredningar från byggtiden","pdf/a"," --"]
[null,"Kvarstående avvikelserapporter efter slutbesiktning samt eventuella provningsintyg som hör till avvikelse.","pdf/a"," --"]
[null,"Protokoll från entreprenadbesiktningar. (förekommande besiktningstyper enl AB04/ABT06 kap 7)","pdf/a"," --"]
[null,"Avtal, exempelvis med kommun, annan väghållare, markägare.","pdf/a"," --"]
[null,"Reservdelsinformation","pdf/a"," --"]
[null,"Teknisk beskrivning avfuktningsanläggning","pdf/a"," --"]
[null,"Ev övriga dokument från åtgärd som är viktiga för framtida förvaltning av övrigt byggnadsverk","pdf/a"," --"]
["Geoteknik","Geotekniskt PM","pdf/a"," --"," --"]
[null,"Markundersökningsrapport","pdf/a"," --"," --"]
["Miljö","Miljödom","pdf/a"," --"," --"]
[null,"Beslut om anmäld vattenverksamhet","pdf/a"," --"," --"]
[null,"Kontrollprogram miljö ","pdf/a"," --"," --"]
[null,"Övriga myndighetsbeslut","pdf/a"," --"," --"]
[null,"Skötselbeskrivning","pdf/a"," --"," --"]
["Bullerskydd (undantaget bullerskyddsskärm)","Plan-/elevationsritning","pdf","dgn","MARK*",null,null,null,null,null,"Ebbas leveransyta ","Ebba"]
[null,"Drift-/underhållsinstruktion","pdf","docx, dgn, dwg"," --"]
[null,"Buller-/vibrations-/stomljudsutredningar och mätningar","pdf","docx, xlsx, dgn, dwg"," --"]
[null,"Avtal ägarskap och/eller underhållsansvar","pdf","docx"," --"]
["Kabelkanalisation","Kanalisationsplan","pdf","dgn","KANAL*"]
[null,"Kanalisationsprofil","pdf","dgn, dwg"]
[null,"Konstruktionsritning","pdf","dgn, dwg"]
["Data och dokumentation enligt TDOK 2016:0407 är komplett. \nAktivitet 1-5 enligt TDOK 2018:0200 är genomförd. \nBärighetsuppgifter enligt TDOK 2023:0079 är registrerade och fastställda.",null,null,null,null,null,null,null,null,null,"Registreras direkt i BaTMan","BaTMan"]
["*Modellfilen för MARK och KANAL ska registreras i flik 0. Geografiska modeller"]
[]
["OBS! Relevant data/dokumentation kopplat till miljö ska levereras enligt flik 15.5 Miljö"]

{"sheet":"6.1 GELD inkl RTU","index":19,"n_rows":13,"n_cols":16,"rows_kept":13,"cut":false,"hidden":false,"merged":[[3,4,3,10],[3,12,3,13],[5,0,5,3],[6,0,6,3],[8,0,10,0],[8,11,10,11],[8,12,10,12]]}
["GELD inklusive RTU:er"]
["Slutbesiktning:",{"$f":"IF(Projektuppgifter!G10=\"\",\"Fyll i datum\",Projektuppgifter!G10)","v":"Fyll i datum"},null,"Länk till flik Projektuppgifter"]
[]
[null,null,null,"Fylls i av:","Projekt",null,null,null,null,null,null,"Information till projektet","Mottagande förvaltning",null,"Projekt","Alla"]
[null,null,"Filformat\nvisningsfil","Filformat\nunderlagsfil","Aktuellt att upprättas av projektet","Status på levererad data","Filnamn","Levereras av:\n- E (Entreprenör)\n- K (Konsult)\n- B (Beställare)\n(datum + namn)","Skickat mejl och länk till material för granskning till geld.systemförvaltning@trafikverket.se. En granskning av materialet sker då av UHttö.","Godkänt av UHttö\n(datum + namn)","Levererat till förvaltande system och aviserat leveransen till mottagande förvaltning, enligt TDOK 2016:0411\n(datum + namn + ärendenr.)","Leveransyta till förvaltande system","Förvaltande system","Godkänt \n(datum + namn + ärendenr.)","Papperskopior är utlagda i anläggning \n(datum + namn)","Eventuella kommentarer"]
["3 månader efter slutbesiktning",null,null,null,"Ja"]
[{"$f":"\"Leverans till mottagande förvaltning senast: \"&IF(B2=\"Fyll i datum\",\"Fyll i datum\",TEXT(EDATE(B2,3),\"ÅÅÅÅ-MM-DD\"))","v":"Leverans till mottagande förvaltning senast: Fyll i datum"},null,null,null,"Ja"]
["Teknisk dokumentation"]
["Dokumentation över något av följande system: \nRTU 560 \nSICAM Mic \nSICAM TM\nSICAM A8000 (CP-8000) \nSICAM A8000 (CP-8021)\nSICAM A8000 (CP-8031)\nSICAM A8000 (CP-8050)\nPLC","Samlingsdokument ","pdf"," --",null,null,null,null,null,null,null,"Ebbas leveransyta","Ebba"]
[null,"APDL-verktyg (EED-fil, Promise-fil )"," --","zip (av dgn)"]
[null,"Underhållsinstruktion","docx"," --"]
[]
["OBS! Relevant data/dokumentation kopplat till miljö ska levereras enligt flik 15.5 Miljö"]

{"sheet":"6.2 Hjälpkraftssystem","index":20,"n_rows":19,"n_cols":13,"rows_kept":19,"cut":false,"hidden":false,"merged":[[13,0,13,3],[14,0,14,3],[16,0,16,3],[8,0,8,12],[4,4,4,7],[4,9,4,11],[15,0,15,12],[9,0,11,0],[9,9,12,9],[6,0,6,3],[7,0,7,3],[9,8,12,8]]}
["Hjälpkraftssystem"]
["Inkoppling:",{"$f":"IF(Projektuppgifter!G9=\"\",\"Fyll i datum\",Projektuppgifter!G9)","v":"Fyll i datum"},null,"Länk till flik Projektuppgifter"]
["Slutbesiktning:",{"$f":"IF(Projektuppgifter!G10=\"\",\"Fyll i datum\",Projektuppgifter!G10)","v":"Fyll i datum"}]
[]
["OBS! Nätstation och frånskiljarstation dokumenteras i flik 6.4 Kraftförsörjningsanläggning",null,null,"Fylls i av:","Projekt",null,null,null,"Information till projektet","Mottagande förvaltning",null,null,"Alla"]
[null,null,"Filformat\nvisningsfil","Filformat\nunderlagsfil","Aktuellt att upprättas av projektet","Länk till levererad fil","Levereras av:\n- E (Entreprenör)\n- K (Konsult)\n- B (Beställare)\n(datum + namn)","Levererat till förvaltande system och aviserat leveransen till mottagande förvaltning, enligt TDOK 2016:0411\n(datum + namn + ärendenr.)","Leveransyta till förvaltande system","Förvaltande system","Mottaget\n(datum + namn + ärendenr.)","Godkänt \n(datum + namn + ärendenr.)","Eventuella kommentarer"]
["1 vecka efter inkoppling",null,null,null,"Ja"]
[{"$f":"\"Leverans till mottagande förvaltning senast: \"&IF(B2=\"Fyll i datum\",\"Fyll i datum\",TEXT(DATE(YEAR(B2),MONTH(B2),DAY(B2)+7),\"ÅÅÅÅ-MM-DD\"))","v":"Leverans till mottagande förvaltning senast: Fyll i datum"},null,null,null,"Ja"]
["Data för lagring i databas"]
["Nytt objekt:","TMALL 0612,  50 Hz-Frånskiljare"," --","xlsx",null,null,null,null,"Projektets lagringsyta","BIS"]
[null,"TMALL 0613, 50 Hz-Hjälpkraftledning"," --","xlsx"]
[null,"TMALL 0614, 50 Hz-Hjälpkrafttransformator"," --","xlsx"]
["Ändrat/slopat objekt:","Slopnings- och ändringslista av objekten ovan"," --","xlsx"]
["3 månader efter slutbesiktning",null,null,null,"Ja"]
[{"$f":"\"Leverans till mottagande förvaltning senast: \"&IF(B3=\"Fyll i datum\",\"Fyll i datum\",TEXT(EDATE(B3,3),\"ÅÅÅÅ-MM-DD\"))","v":"Leverans till mottagande förvaltning senast: Fyll i datum"},null,null,null,"Ja"]
["Teknisk dokumentation"]
["Teknisk dokumentation för hjälpkraftssystem ska levereras tillsammans med dokumentation för kontaktledningssystem, registreras i flik 6.3. ",null,null,null,null,null,null,null,"Ebbas leveransyta","Ebba",null,"Kvitteras under kontaktledningssystem 6.3"]
[]
["OBS! Relevant data/dokumentation kopplat till miljö ska levereras enligt flik 15.5 Miljö"]

{"sheet":"6.3 Kontaktledningssystem","index":21,"n_rows":46,"n_cols":15,"rows_kept":46,"cut":false,"hidden":false,"merged":[[27,11,41,11],[32,0,32,1],[33,0,33,1],[34,0,34,1],[41,0,41,1],[37,0,37,1],[38,0,38,1],[28,0,28,1],[29,0,29,1],[39,0,39,1],[40,0,40,1],[30,0,30,1],[35,0,35,1],[27,10,41,10],[6,0,6,4],[7,0,7,4],[36,0,36,1],[31,0,31,1],[27,0,27,1],[14,0,22,0],[4,5,4,9],[4,11,4,13],[26,0,26,14],[9,0,9,1],[10,0,10,1],[24,0,24,4],[25,0,25,4],[8,0,8,14],[13,0,13,14],[9,11,10,11],[9,12,10,12],[11,0,11,4],[12,0,12,4],[9,10,10,10],[14,11,23,11],[14,10,23,10]]}
["Kontaktledningssystem"]
["Inkoppling:",{"$f":"IF(Projektuppgifter!G9=\"\",\"Fyll i datum\",Projektuppgifter!G9)","v":"Fyll i datum"},null,"Länk till flik Projektuppgifter"]
["Slutbesiktning:",{"$f":"IF(Projektuppgifter!G10=\"\",\"Fyll i datum\",Projektuppgifter!G10)","v":"Fyll i datum"}]
[]
["OBS! Nätstation och frånskiljarstation dokumenteras i filk 6.4 Kraftförsörjningsanläggning",null,null,null,"Fylls i av:","Projekt",null,null,null,null,"Information till projektet","Mottagande förvaltning",null,null,"Alla"]
[null,null,"Filformat\nvisningsfil","Filformat\nunderlagsfil","Uppbyggd av modellfil","Aktuellt att upprättas av projektet","Status på levererad data","Filnamn alt länk till levererad fil","Levereras av:\n- E (Entreprenör)\n- K (Konsult)\n- B (Beställare)\n(datum + namn)","Levererat till förvaltande system och aviserat leveransen till mottagande förvaltning, enligt TDOK 2016:0411\n(datum + namn + ärendenr.)","Leveransyta till förvaltande system","Förvaltande system","Mottaget\n(datum + namn + ärendenr.)","Godkänt \n(datum + namn + ärendenr.)","Eventuella kommentarer"]
["2 veckor före inkoppling",null,null,null,null,"Ja"]
[{"$f":"\"Leverans till mottagande förvaltning senast: \"&IF(B2=\"Fyll i datum\",\"Fyll i datum\",TEXT(DATE(YEAR(B2),MONTH(B2),DAY(B2)-14),\"ÅÅÅÅ-MM-DD\"))","v":"Leverans till mottagande förvaltning senast: Fyll i datum"},null,null,null,null,"Ja"]
["Teknisk dokumentation"]
["Kopplingsschema",null,"pdf","dgn, prj"," --",null,null,null,null,null,"ProjectWise/Förvaltning Järnväg/Förvaltningsdata Leveranser/_EL_Kopplingsscheman","PW/FJ"]
["Gruppschema",null,"pdf","dgn, prj"," --"]
["1 vecka efter inkoppling",null,null,null,null,"Ja"]
[{"$f":"\"Leverans till mottagande förvaltning senast: \"&IF(B2=\"Fyll i datum\",\"Fyll i datum\",TEXT(DATE(YEAR(B2),MONTH(B2),DAY(B2)+7),\"ÅÅÅÅ-MM-DD\"))","v":"Leverans till mottagande förvaltning senast: Fyll i datum"},null,null,null,null,"Ja"]
["Data för lagring i databas"]
["Nytt objekt:","TMALL 0618 Ktl-Brygga/övrig upph."," --","xlsx"," --",null,null,null,null,null,"Projektets lagringsyta","BIS"]
[null,"TMALL 0619 Ktl-Driftjord"," --","xlsx"," --"]
[null,"TMALL 0620 Ktl-Frånskiljare"," --","xlsx"," --"]
[null,"TMALL 0621 Ktl-Ledning"," --","xlsx"," --"]
[null,"TMALL 0622 Ktl-Sektion"," --","xlsx"," --"]
[null,"TMALL 0623 Ktl-Sektionsisolator"," --","xlsx"," --"]
[null,"TMALL 0624 Ktl-Skyddsektion"," --","xlsx"," --"]
[null,"TMALL 0625 Ktl-Stolpe"," --","xlsx"," --"]
[null,"TMALL 0626 Ktl-Transformator"," --","xlsx"," --"]
["Ändrat/slopat objekt:","Slopnings- och ändringslista av objekten ovan"," --","xlsx"," --"]
["3 månader efter slutbesiktning",null,null,null,null,"Ja"]
[{"$f":"\"Leverans till mottagande förvaltning senast: \"&IF(B3=\"Fyll i datum\",\"Fyll i datum\",TEXT(EDATE(B3,3),\"ÅÅÅÅ-MM-DD\"))","v":"Leverans till mottagande förvaltning senast: Fyll i datum"},null,null,null,null,"Ja"]
["Teknisk dokumentation"]
["Anläggningsbeskrivning",null,"pdf","docx"," --",null,null,null,null,null,"Ebbas leveransyta","Ebba"]
["Drift-/underhållsinstruktion",null,"pdf","docx"," --"]
["Elplan",null,"pdf","dgn","EL_KTL"]
["Kabelplan",null,"pdf","dgn","EL_KTL"]
["Jordningslista",null,"pdf","xlsx"," --"]
["Jordningsschema- /plan",null,"pdf","dgn","EL_JORD (gäller för jordningsplan)"]
["Bryggritning",null,"pdf","dgn, dwg"," --"]
["Montageritning",null,"pdf","dgn, dwg"," --"]
["Detalj-/tillverkningsritning",null,"pdf","dgn, dwg"," --"]
["Kabellista",null,"pdf","xlsx"," --"]
["Bärtrådsberäkning",null,"pdf","zip (av både bap och csv)"," --"]
["Linjeplan",null,"pdf","dgn, dwg"," --"]
["Materialcertifikat kontakttråd och bärlinor",null,"pdf"," --"," --"]
["AT-transformator",null,"pdf","dgn, dwg, xlsx, docx"," --"]
["Sugtransformator",null,"pdf","dgn, dwg, xlsx, docx"," --"]
[]
["Vid förändring av de KTL objekt som ingår i baskarta ska ny uppdaterad baskarta tas fram."]
[]
["OBS! Relevant data/dokumentation kopplat till miljö ska levereras enligt flik 15.5 Miljö"]

{"sheet":"6.4 Kraftförsörjningsanläggning","index":22,"n_rows":63,"n_cols":21,"rows_kept":63,"cut":false,"hidden":false,"merged":[[41,0,44,0],[41,15,44,15],[41,2,41,3],[59,0,59,1],[54,0,54,1],[55,0,55,1],[56,0,56,1],[57,0,57,1],[58,0,58,1],[49,0,49,20],[50,0,50,1],[51,0,51,1],[52,0,52,1],[53,0,53,1],[6,4,6,14],[6,16,6,18],[10,0,10,20],[8,0,8,3],[9,0,9,3],[11,19,16,19],[22,16,24,16],[18,0,18,3],[20,0,20,20],[19,0,19,3],[21,0,24,0],[23,2,24,3],[22,6,24,7],[11,15,17,15],[22,15,24,15],[11,0,16,0],[33,16,36,16],[11,16,17,16],[26,6,28,7],[41,16,44,16],[26,15,28,15],[30,15,32,15],[34,15,36,15],[37,16,40,16],[30,16,32,16],[26,16,28,16],[30,6,32,7],[34,6,36,7],[38,15,40,15],[38,6,40,7],[25,0,28,0],[29,0,32,0],[33,0,36,0],[39,2,40,3],[37,0,40,0],[27,2,28,3],[31,2,32,3],[35,2,36,3]]}
["Kraftförsörjningsanläggning"]
["Inkoppling:",{"$f":"IF(Projektuppgifter!G9=\"\",\"Fyll i datum\",Projektuppgifter!G9)","v":"Fyll i datum"},null,"Länk till flik Projektuppgifter"]
["Slutbesiktning:",{"$f":"IF(Projektuppgifter!G10=\"\",\"Fyll i datum\",Projektuppgifter!G10)","v":"Fyll i datum"}]
[]
["Förekommer det flera kraftförsörjningsanläggningar i projektet så kopierar man denna flik och gör fler flikar."]
[]
[null,null,null,"Fylls i av:","Projekt (OBS! Kolumn L  och N gäller UH)",null,null,null,null,null,null,null,null,null,null,"Information till projektet","Mottagande förvaltning",null,null,"Projekt","Alla"]
[null,null,"Filformat\nvisningsfil","Filformat\nunderlagsfil","Aktuellt att upprättas av projektet","Status på levererad data","Pärmnummer","Fliknummer i pärm","Filnamn alt länk till levererad fil","Levereras av:\n- E (Entreprenör)\n- K (Konsult)\n- B (Beställare)\n(datum + namn)","Skickat mail och länk till material för granskning till elkraft@trafikverket.se. För granskning av elkompetens på UH\n","Godkänt av elkompetens på UH\n(datum + namn)","Skickat mail och länk till material för granskning till jarnvag_anlaggningmiljo@trafikverket.se. För granskning av miljökompetens på UH\nOBS! Allt material för granskning ska vara samlat i EN leveransyta, för att det ska vara lätt för UH att hitta det samlade materialet inför granskning.\nAllt material ska levereras vid EN tidpunkt!","Godkänt av miljökompetens på UH\n(datum + namn)","Levererat till förvaltande system och aviserat leveransen till mottagande förvaltning, enligt TDOK 2016:0411\n(datum + namn + ärendenr.)","Leveransyta till förvaltande system","Förvaltande system","Mottaget\n(datum + namn + ärendenr.)","Godkänt \n(datum + namn + ärendenr.)","Papperskopior är utlagda i anläggning \n(datum + namn)","Eventuella kommentarer"]
["1 vecka efter inkoppling",null,null,null,"Ja"]
[{"$f":"\"Leverans till mottagande förvaltning senast: \"&IF(B2=\"Fyll i datum\",\"Fyll i datum\",TEXT(DATE(YEAR(B2),MONTH(B2),DAY(B2)+7),\"ÅÅÅÅ-MM-DD\"))","v":"Leverans till mottagande förvaltning senast: Fyll i datum"},null,null,null,"Ja"]
["Data för lagring i databas"]
["Nytt objekt:","TMALL 0616 Fördelningsstation"," --","xlsx",null,null,null,null,null,null,null,null,null,null,null,"Projektets lagringsyta","BIS"]
[null,"TMALL 0617 Kopplingscentral"," --","xlsx"]
[null,"TMALL 0627 Nätstation"," --","xlsx"]
[null,"TMALL 0628 Omformarstation"," --","xlsx"]
[null,"TMALL 0629 Sektioneringsstation"," --","xlsx"]
[null,"TMALL 0630 Transformatorstation"," --","xlsx"]
["Ändrat/slopat objekt:","Slopnings- och ändringslista av objekten ovan"," --","xlsx"]
["3 månader efter slutbesiktning",null,null,null,"Ja"]
[{"$f":"\"Leverans till mottagande förvaltning senast: \"&IF(B3=\"Fyll i datum\",\"Fyll i datum\",TEXT(EDATE(B3,3),\"ÅÅÅÅ-MM-DD\"))","v":"Leverans till mottagande förvaltning senast: Fyll i datum"},null,null,null,"Ja"]
["Teknisk dokumentation"]
["Fördelningsstation","Relationshandling/Underlag för relationshandling (Dokumentationssats 5 enligt TDOK 2013:0640)","zip (av samtliga pdf:er)"," --",null,null,null,null,null,null,null,null,null,null,null,"ProjectWise/Förvaltning Järnväg/Förvaltningsdata Leveranser/ _El -Kraftförsörjningsanläggning - Relationshandling/ Bandel, Stationstyp, Projektnamn","PW/FJ"]
[null,"Förvaltningsdata\n(Dokumentationssats 6 enligt TDOK 2013:0640)","pdf","xlsx, docx, dgn, dwg",null,null,"Skriv i tabellen vid rad 55",null,null,null,null,null,null,null,null,"Ebbas leveransyta (Material- och kemikalieförteckning: Dessa ska in i samma projektaktivitet som resterande teknisk dokumentation. Lägg inte upp en separat aktivitet under Miljö.)","Ebba"]
[null,"TMALL 0558 Miljö - Materialförteckning ","Är en del av TDOK 2013:0640, men har ett annat granskningsförfarande. Därav egna rader i leveransplanen."]
[null,"TMALL 0559 Miljö - Kemikalieförteckning"]
["Kopplingscentral","Relationshandling/Underlag för relationshandling (Dokumentationssats 5 enligt TDOK 2013:0640)","zip (av samtliga pdf:er)"," --",null,null,null,null,null,null,null,null,null,null,null,"ProjectWise/Förvaltning Järnväg/Förvaltningsdata Leveranser/ _El -Kraftförsörjningsanläggning - Relationshandling/ Bandel, Stationstyp, Projektnamn","PW/FJ"]
[null,"Förvaltningsdata\n(Dokumentationssats 6 enligt TDOK 2013:0640)","pdf","xlsx, docx, dgn, dwg",null,null,"Skriv i tabellen vid rad 55",null,null,null,null,null,null,null,null,"Ebbas leveransyta (Material- och kemikalieförteckning: Dessa ska in i samma projektaktivitet som resterande teknisk dokumentation. Lägg inte upp en separat aktivitet under Miljö.)","Ebba"]
[null,"TMALL 0558 Miljö - Materialförteckning ","Är en del av TDOK 2013:0640, men har ett annat granskningsförfarande. Därav egna rader i leveransplanen."]
[null,"TMALL 0559 Miljö - Kemikalieförteckning"]
["Sektioneringsstation","Relationshandling/Underlag för relationshandling (Dokumentationssats 5 enligt TDOK 2013:0640)","zip (av samtliga pdf:er)"," --",null,null,null,null,null,null,null,null,null,null,null,"ProjectWise/Förvaltning Järnväg/Förvaltningsdata Leveranser/ _El -Kraftförsörjningsanläggning - Relationshandling/ Bandel, Stationstyp, Projektnamn","PW/FJ"]
[null,"Förvaltningsdata\n(Dokumentationssats 6 enligt TDOK 2013:0640)","pdf","xlsx, docx, dgn, dwg",null,null,"Skriv i tabellen vid rad 55",null,null,null,null,null,null,null,null,"Ebbas leveransyta (Material- och kemikalieförteckning: Dessa ska in i samma projektaktivitet som resterande teknisk dokumentation. Lägg inte upp en separat aktivitet under Miljö.)","Ebba"]
[null,"TMALL 0558 Miljö - Materialförteckning ","Är en del av TDOK 2013:0640, men har ett annat granskningsförfarande. Därav egna rader i leveransplanen."]
[null,"TMALL 0559 Miljö - Kemikalieförteckning"]
["Omformarstation","Relationshandling/Underlag för relationshandling (Dokumentationssats 5 enligt TDOK 2013:0640)","zip (av samtliga pdf:er)"," --",null,null,null,null,null,null,null,null,null,null,null,"ProjectWise/Förvaltning Järnväg/Förvaltningsdata Leveranser/ _El -Kraftförsörjningsanläggning - Relationshandling/ Bandel, Stationstyp, Projektnamn","PW/FJ"]
[null,"Förvaltningsdata\n(Dokumentationssats 6 enligt TDOK 2013:0640)","pdf","xlsx, docx, dgn, dwg",null,null,"Skriv i tabellen vid rad 55",null,null,null,null,null,null,null,null,"ProjectWise/Förvaltning Järnväg/Förvaltningsdata Leveranser/ _El (Omformarstation)/ Bandel, projektnamn"]
[null,"TMALL 0558 Miljö - Materialförteckning ","Är en del av TDOK 2013:0640, men har ett annat granskningsförfarande. Därav egna rader i leveransplanen."]
[null,"TMALL 0559 Miljö - Kemikalieförteckning"]
["Transformatorstation","Relationshandling/Underlag för relationshandling (Dokumentationssats 5 enligt TDOK 2013:0640)","zip (av samtliga pdf:er)"," --",null,null,null,null,null,null,null,null,null,null,null,"ProjectWise/Förvaltning Järnväg/Förvaltningsdata Leveranser/ _El -Kraftförsörjningsanläggning - Relationshandling/ Bandel, Stationstyp, Projektnamn","PW/FJ"]
[null,"Förvaltningsdata\n(Dokumentationssats 6 enligt TDOK 2013:0640)","pdf","xlsx, docx, dgn, dwg",null,null,"Skriv i tabellen vid rad 55",null,null,null,null,null,null,null,null,"ProjectWise/Förvaltning Järnväg/Förvaltningsdata Leveranser/ _El (Transformatorstation)/ Bandel, projektnamn"]
[null,"TMALL 0558 Miljö - Materialförteckning ","Är en del av TDOK 2013:0640, men har ett annat granskningsförfarande. Därav egna rader i leveransplanen."]
[null,"TMALL 0559 Miljö - Kemikalieförteckning"]
["Nätstation","Programvara för PLC","Beroende av system",null,null,null,null,null,null,null,null,null,null,null,null,"Ebbas leveransyta (Material- och kemikalieförteckning: Dessa ska in i samma projektaktivitet som resterande teknisk dokumentation. Lägg inte upp en separat aktivitet under Miljö.)","Ebba"]
[null,"Övriga krav saknas, men vid överlämnande noteras leveransen här.","pdf","docx, xlsx, dgn, dwg"]
[null,"TMALL 0558 Miljö - Materialförteckning ","xlsx (vid ev. bilagor används zip)"," --"]
[null,"TMALL 0559 Miljö - Kemikalieförteckning","xlsx (vid ev. bilagor används zip)"," --"]
["Vid en ny/borttagen kraftförsörjningsanläggning ska modellfil MARK tas fram/uppdateras och ny/uppdaterad baskarta tas fram."]
[]
[]
["Fyll i typ av kraftförsörjningsanläggning:"]
["Teknisk dokumentation"]
["Dokument",null,null,null,null,null,null,null,null,null,null,null,null,null,null,"Ebbas leveransyta","Ebba"]
["Dokument",null,null,null,null,null,null,null,null,null,null,null,null,null,null,"Ebbas leveransyta","Ebba"]
["Dokument",null,null,null,null,null,null,null,null,null,null,null,null,null,null,"Ebbas leveransyta","Ebba"]
["Dokument",null,null,null,null,null,null,null,null,null,null,null,null,null,null,"Ebbas leveransyta","Ebba"]
["Dokument",null,null,null,null,null,null,null,null,null,null,null,null,null,null,"Ebbas leveransyta","Ebba"]
["Dokument",null,null,null,null,null,null,null,null,null,null,null,null,null,null,"Ebbas leveransyta","Ebba"]
["Dokument",null,null,null,null,null,null,null,null,null,null,null,null,null,null,"Ebbas leveransyta","Ebba"]
["Dokument",null,null,null,null,null,null,null,null,null,null,null,null,null,null,"Ebbas leveransyta","Ebba"]
["Dokument",null,null,null,null,null,null,null,null,null,null,null,null,null,null,"Ebbas leveransyta","Ebba"]
["Dokument",null,null,null,null,null,null,null,null,null,null,null,null,null,null,"Ebbas leveransyta","Ebba"]
[]
["OBS! Material- och kemikalieförteckning ska dokumenteras och levereras tillsammans med övriga dokument för kraftförsörjningsanläggningen."]
["Övrig data/dokumentation kopplat till miljö ska levereras enligt flik 15.5 Miljö"]

{"sheet":"6.5 Lågspänningssystem","index":23,"n_rows":121,"n_cols":20,"rows_kept":121,"cut":false,"hidden":false,"merged":[[96,0,97,1],[98,0,102,1],[22,13,117,13],[103,14,117,14],[103,0,105,1],[106,0,117,1],[96,3,96,4],[22,14,102,14],[94,3,94,4],[94,0,95,1],[22,0,34,1],[35,0,48,1],[1,0,1,1],[2,0,2,1],[13,0,13,19],[8,0,8,19],[6,0,6,5],[7,0,7,5],[11,0,11,5],[12,0,12,5],[10,0,10,1],[9,13,10,13],[4,6,4,12],[4,14,4,17],[9,18,10,18],[9,14,10,14],[9,0,9,1],[14,0,17,1],[14,18,18,18],[14,14,18,14],[21,0,21,19],[19,0,19,5],[20,0,20,5],[14,13,18,13],[18,0,18,1],[25,18,26,18],[49,1,69,1],[70,1,83,1],[84,1,93,1],[49,0,93,0]]}
["Lågspänningssystem"]
["Inkoppling:",null,{"$f":"IF(Projektuppgifter!G9=\"\",\"Fyll i datum\",Projektuppgifter!G9)","v":"Fyll i datum"},null,"Länk till flik Projektuppgifter"]
["Slutbesiktning:",null,{"$f":"IF(Projektuppgifter!G10=\"\",\"Fyll i datum\",Projektuppgifter!G10)","v":"Fyll i datum"}]
[]
[null,null,null,null,null,"Fylls i av:","Projekt",null,null,null,null,null,null,"Information till projektet","Mottagande förvaltning",null,null,null,"Projekt","Alla"]
[null,null,null,"Filformat\nvisningsfil","Filformat\nunderlagsfil","Uppbyggd av modellfil","Aktuellt att upprättas av projektet","Status på levererad data","Filnamn alt länk till levererad fil","Levereras av:\n- E (Entreprenör)\n- K (Konsult)\n- B (Beställare)\n(datum + namn)","Levererat till förvaltande system och aviserat leveransen till mottagande förvaltning, enligt TDOK 2016:0411\n(datum + namn + ärendenr.)","BIS: Eventuella ändringar av tidigare levererad data\n(Länk till leveransen)","BIS: Levererat till förvaltande system och aviserat ändringar (datum + namn + ärendenr.)","Leveransyta till förvaltande system","Förvaltande system","Mottaget\n(datum + namn + ärendenr.)","Godkänt \n(datum + namn + ärendenr.)","Godkänt ändring\n(datum + namn + ärendenr.)","Papperskopior är utlagda i anläggning \n(datum + namn)","Eventuella kommentarer"]
["6 månader före inkoppling",null,null,null,null,null,"Ja"]
[{"$f":"\"Leverans till mottagande förvaltning senast: \"&IF(C2=\"Fyll i datum\",\"Fyll i datum\",TEXT(EDATE(C2,-6),\"ÅÅÅÅ-MM-DD\"))","v":"Leverans till mottagande förvaltning senast: Fyll i datum"},null,null,null,null,null,"Ja"]
["Data för lagring i databas"]
["Nytt objekt:",null,"TMALL 0566 Tåg och lokvärmeanläggning"," --","xlsx"," --",null,null,null,null,null,null,null,"Projektets lagringsyta","BIS"]
["Ändrat/slopat objekt:",null,"Slopnings- och ändringslista av objektet ovan"," --","xlsx"," --"]
["1 vecka efter inkoppling",null,null,null,null,null,"Ja"]
[{"$f":"\"Leverans till mottagande förvaltning senast: \"&IF(C2=\"Fyll i datum\",\"Fyll i datum\",TEXT(DATE(YEAR(C2),MONTH(C2),DAY(C2)+7),\"ÅÅÅÅ-MM-DD\"))","v":"Leverans till mottagande förvaltning senast: Fyll i datum"},null,null,null,null,null,"Ja"]
["Data för lagring i databas"]
["Nytt objekt:",null,"TMALL 1301 Belysning - Bangård"," --","xlsx"," --",null,null,null,null,null,null,null,"Projektets lagringsyta","BIS"]
[null,null,"TMALL 0615 Belysning - Plattform"," --","xlsx"," --"]
[null,null,"TMALL 0659 Teknikbyggnad"," --","xlsx"," --"]
[null,null,"TMALL 0611 Växelvärmeskåp"," --","xlsx"," --"]
["Ändrat/slopat objekt:",null,"Slopnings- och ändringslista av objekten ovan"," --","xlsx"," --"]
["3 månader efter slutbesiktning",null,null,null,null,null,"Ja"]
[{"$f":"\"Leverans till mottagande förvaltning senast: \"&IF(C3=\"Fyll i datum\",\"Fyll i datum\",TEXT(EDATE(C3,3),\"ÅÅÅÅ-MM-DD\"))","v":"Leverans till mottagande förvaltning senast: Fyll i datum"},null,null,null,null,null,"Ja"]
["Teknisk dokumentation"]
["Belysning",null,"Installations-/kabelplan","pdf","dgn","EL_LÅGSP",null,null,null,null,null,null,null,"Ebbas leveransyta ","Ebba"]
[null,null,"Huvudledningsschema","pdf","dgn, dwg"," --"]
[null,null,"Skåpspecifikation","pdf","dgn, dwg"," --"]
[null,null,"Provningsprotokoll","pdf","docx, xlsx"," --"]
[null,null,"Montageritning","pdf","dgn, dwg"," --"]
[null,null,"Apparatlista","pdf","docx, xlsx"," --"]
[null,null,"Förbindningsschema/-tabell (belysningsstyrning)","pdf","dgn,dwg, xlsx"," --"]
[null,null,"Kretsschema","pdf","dgn, dwg"," --"]
[null,null,"Kabellista","pdf","xlsx"," --"]
[null,null,"Kabelberäkning","pdf","docx, xlsx"," --"]
[null,null,"Anläggningsbeskrivning","pdf","docx"," --"]
[null,null,"Drift- och underhållsinstruktion","pdf","docx"," --"]
[null,null,"Larminstruktion","pdf","docx"," --"]
["Distributionsnät <1000V",null,"Installations-/kabelplan","pdf","dgn","EL_LÅGSP"]
[null,null,"Huvudledningsschema (enlinjeschema, översiktsschema)","pdf","dgn, dwg"," --"]
[null,null,"Skåpspecifikation","pdf","dgn, dwg"," --"]
[null,null,"Jordningsplan","pdf","dgn","EL_JORD"]
[null,null,"Provningsprotokoll","pdf","docx, xlsx"," --"]
[null,null,"Montageritning","pdf","dgn, dwg"," --"]
[null,null,"Apparatlista","pdf","docx, xlsx"," --"]
[null,null,"Förbindningsschema/-tabell","pdf","dgn,dwg, xlsx"," --"]
[null,null,"Kretsschema","pdf","dgn, dwg"," --"]
[null,null,"Kabellista","pdf","xlsx"," --"]
[null,null,"Kabelberäkning","pdf","docx, xlsx"," --"]
[null,null,"Anläggningsbeskrivning","pdf","docx"," --"]
[null,null,"Drift- och underhållsinstruktion","pdf","docx"," --"]
[null,null,"Larminstruktion","pdf","docx"," --"]
["Elanläggning - Teknikbyggnad","Allmänt","Dokumentförteckning","pdf","docx"," --"]
[null,null,"Anläggningsbeskrivning","pdf","docx"," --"]
[null,null,"Installationsanvisning/-ritning","pdf","docx, dgn, dwg"," --"]
[null,null,"Översiktsschema","pdf","dgn, dwg"," --"]
[null,null,"Central-/gruppförteckning","pdf","xlsx, dgn, dwg"," --"]
[null,null,"Materialförteckning","pdf","xlsx, dgn, dwg"," --"]
[null,null,"Skyltlista","pdf","xlsx"," --"]
[null,null,"Enlinjeschema","pdf","docx, dgn"," --"]
[null,null,"Jordningsplan","pdf","dgn","EL_JORD"]
[null,null,"Skåpvy/-layout","pdf","dgn, dwg"," --"]
[null,null,"Apparatlista","pdf","xlsx"," --"]
[null,null,"Huvudkretsschema","pdf","dgn, dwg"," --"]
[null,null,"Yttre anslutningsschema","pdf","dgn, dwg"," --"]
[null,null,"Kretsschema","pdf","dgn, dwg"," --"]
[null,null,"Kabellista","pdf","xlsx"," --"]
[null,null,"Provningsprotokoll","pdf","docx, xlsx"," --"]
[null,null,"Manual och tekniska data","pdf","xlsx"," --"]
[null,null,"Programvara för PLC"," --","zip"," --"]
[null,null,"Programvara för övriga elanläggningssystem"," --","zip"," --"]
[null,null,"Inventeringsdata","pdf","docx, xlsx"," --"]
[null,null,"TMALL 1382 - Driftledningsinstruktion","pdf","xlsx"," --"]
[null,"Reservelverk","Anläggningsbeskrivning","pdf","docx"," --"]
[null,null,"Funktionsbeskrivning ","pdf","docx"," --"]
[null,null,"Tillstånd för lagring av brandfarlig vara","pdf","docx"," --"]
[null,null,"Försäkran om överensstämmelse - CE-märkning","pdf"," --"," --"]
[null,null,"Installationsanvisning/-ritning","pdf","docx, dgn, dwg"," --"]
[null,null,"Parameterlista ","pdf","docx"," --"]
[null,null,"Kabellista","pdf","xlsx"," --"]
[null,null,"Parttabell","pdf","xlsx"," --"]
[null,null,"Interna-/externa förbindningar","pdf","xlsx"," --"]
[null,null,"Apparatlista","pdf","xlsx"," --"]
[null,null,"Apparatbeskrivning","pdf","docx"," --"]
[null,null,"Manual och tekniska data","pdf","xlsx"," --"]
[null,null,"Underhållsplan","pdf","docx"," --"]
[null,null,"Drift-/underhållsinstruktion","pdf","docx"," --"]
[null,"Avbrottsfri kraft/UPS-anläggningar","Dokumentförteckning","pdf","docx"," --"]
[null,null,"Funktionsbeskrivning ","pdf","docx"," --"]
[null,null,"Manual och tekniska data","pdf","xlsx"," --"]
[null,null,"Parametrar och protokoll","pdf","docx"," --"]
[null,null,"Layout","pdf","dgn, dwg"," --"]
[null,null,"Kretsschema","pdf","dgn, dwg"," --"]
[null,null,"Apparatlista","pdf","dgn, dwg"," --"]
[null,null,"Enlinjeschema","pdf","dgn, dwg"," --"]
[null,null,"Underhållsplan","pdf","docx"," --"]
[null,null,"Drift-/underhållsinstruktion","pdf","docx"," --"]
["Kraftförsörjning - Datahall",null,"Programvara för PLC","Beroende av system",null," --"]
[null,null,"Övriga krav saknas, men vid överlämnande noteras leveransen här.","pdf","docx, xlsx, dgn, dwg"," --"]
["Kraftförsörjning - Trafikledningscentral",null,"Programvara för PLC","Beroende av system",null," --"]
[null,null,"Övriga krav saknas, men vid överlämnande noteras leveransen här.","pdf","docx, xlsx, dgn, dwg"," --"]
["Mobila reservelverk",null,"Anläggningsbeskrivning","pdf","dgn, dwg"," --"]
[null,null,"Besiktningsprotokoll","pdf","dgn, dwg"," --"]
[null,null,"Tillstånd för lagring av brandfarlig vara ","pdf","dgn, dwg"," --"]
[null,null,"Skåpspecifikation","pdf","dgn, dwg"," --"]
[null,null,"Övriga krav saknas, men vid överlämnande noteras de här.","pdf","docx, xlsx, dgn, dwg"," --"]
["Tåg och lokvärme",null,"Programvara för PLC","Beroende av system",null," --",null,null,null,null,null,null,null,null,"Ebba"]
[null,null,"Tågvärme","pdf","dgn, dwg"," --"]
[null,null,"Lokvärme","pdf","dgn, dwg"," --"]
["Växelvärme",null,"Installations-/kabelplan","pdf","dgn","EL_LÅGSP"]
[null,null,"Huvudledningsschema (enlinjeschema, översiktsschema)","pdf","dgn, dwg"," --"]
[null,null,"Skåpspecifikation","pdf","dgn, dwg"," --"]
[null,null,"Provningsprotokoll","pdf","docx, xlsx"," --"]
[null,null,"Montageritning","pdf","dgn, dwg"," --"]
[null,null,"Apparatlista","pdf","docx, xlsx"," --"]
[null,null,"Yttre förbindningsschema","pdf","dgn, dwg"," --"]
[null,null,"Kretsschema","pdf","dgn, dwg"," --"]
[null,null,"Kabellista","pdf","xlsx"," --"]
[null,null,"Anläggningsbeskrivning","pdf","docx"," --"]
[null,null,"Drift- och underhållsinstruktion","pdf","docx"," --"]
[null,null,"Larminstruktion","pdf","docx"," --"]
[]
[]
["OBS! Relevant data/dokumentation kopplat till miljö ska levereras enligt flik 15.5 Miljö"]

{"sheet":"6.6 Matarledningssystem","index":24,"n_rows":110,"n_cols":12,"rows_kept":110,"cut":false,"hidden":false,"merged":[[8,8,107,8],[8,9,107,9],[7,0,7,11],[3,3,3,7],[3,9,3,10],[5,0,5,2],[6,0,6,2]]}
["Matarledningssystem (32 och 132 kV)"]
["Slutbesiktning:",{"$f":"IF(Projektuppgifter!G10=\"\",\"Fyll i datum\",Projektuppgifter!G10)","v":"Fyll i datum"},null,"Länk till flik Projektuppgifter"]
[]
[null,null,null,"Projekt",null,null,null,null,"Information till projektet","Mottagande förvaltning",null,"Alla"]
[null,"Filformat\nvisningsfil","Filformat\nunderlagsfil","Aktuellt att upprättas av projektet","Status på levererad data","Filnamn","Levereras av:\n- E (Entreprenör)\n- K (Konsult)\n- B (Beställare)\n(datum + namn)","Levererat till förvaltande system  och aviserat leveransen till mottagande förvaltning, enligt TDOK 2016:0411\n(datum + namn + ärendenr.)","Leveransyta till förvaltande system","Förvaltande system","Godkänt \n(datum + namn + ärendenr.)","Eventuella kommentarer"]
["3 månader efter slutbesiktning",null,null,"Ja"]
[{"$f":"\"Leverans till mottagande förvaltning senast: \"&IF(B2=\"Fyll i datum\",\"Fyll i datum\",TEXT(EDATE(B2,3),\"ÅÅÅÅ-MM-DD\"))","v":"Leverans till mottagande förvaltning senast: Fyll i datum"},null,null,"Ja"]
["Teknisk dokumentation"]
["Ändringstabell, övergripande","pdf","docx",null,null,null,null,null,"Ebbas leveransyta","Ebba"]
["Översiktskarta ","pdf"," --"]
["Stolpöversikt","pdf","dwg"]
["Fasföljdsschema","pdf","dwg"]
["Översiktsritning kabelsträckning","pdf","dwg"]
["Översiktsritning skarvplats","pdf","dwg"]
["Isolatorkedjeritning","pdf","dwg"]
["Toppline anslutningsritning","pdf","dwg"]
["Optical ground wire (OPGW) anslutningsritning","pdf","dwg"]
["Montageritning","pdf","dwg"]
["Stolpsammanställningsritning","pdf","dwg"]
["Sammanställningsritning, detaljer","pdf","dwg"]
["Detaljritning/Tvärsnittssektion vid normal markförläggning ","pdf","dwg"]
["Detaljritning/Tvärsnittssektion vid rörförläggning ","pdf","dwg"]
["Detaljritning/Tvärsnittssektion vid kulvertförläggning","pdf","dwg"]
["Detaljritning/Tvärsnittssektion vid korsning av annan infrastruktur ","pdf","dwg"]
["Sammanställningsritning över kabelavslut ","pdf","dwg"]
["Detaljritning över skarvplats ","pdf","dwg"]
["Detaljritning kabeldetaljer","pdf","dwg"]
["Ritningar frånskiljare","pdf","dwg"]
["Utslagsritning stolpe","pdf","dwg"]
["Fundamentplan","pdf","dwg"]
["Grundläggning och fundamentritning","pdf","dwg"]
["Stagförankring","pdf","dwg"]
["Redskapsritning","pdf","dwg"]
["Jordningsritningar","pdf","dwg"]
["Byggnads-PM","pdf","docx, xlsx"]
["Stolptabell","pdf","xlsx"]
["Profil- och planritning","pdf","dwg"]
["Regleringstabell","pdf","docx, xlsx"]
["Korsningsförteckning","pdf","docx, xlsx"]
["Korsningsskiss","pdf","dwg"]
["Parallellgång","pdf","docx, dwg, shape"]
["Förbindningstabell ","pdf","docx, xlsx"]
["Apparatlista","pdf","docx, xlsx"]
["Materialförteckning","pdf","docx, xlsx"]
["Stolpfoton","pdf","jpeg"]
["Övriga foton","pdf","jpeg"]
["Jordningsbeskrivning","pdf","docx, xlsx"]
["Jordningskarta","pdf","docx"]
["Jordtagsbesiktningsprotokoll (Relationshandling)","pdf"," --"]
["Protokoll för steg- och beröringsspänning (Relationshandling)","pdf"," --"]
["Markundersökningsprotokoll stolpe (Relationshandling)","pdf"," --"]
["Markundersökningsprotokoll kabel (Relationshandling)","pdf"," --"]
["Linberäkning","pdf","docx, xlsx"]
["Mekanisk beräkning","pdf","docx, xlsx"]
["Kapacitetsberäkningar kabelsystem","pdf","docx, xlsx"]
["Resistansmätningsprotokoll (Relationshandling)","pdf"," --"]
["Mätprotokoll markresistivitet (Relationshandling)","pdf"," --"]
["Mätprotokoll packningskontroll (Relationshandling)","pdf"," --"]
["Mätprotokoll mantelprov efter kabeldragning (Relationshandling)","pdf"," --"]
["Mätprotokoll impedansmätning (Relationshandling)","pdf"," --"]
["Mätprotokoll jordtagsmätningar (Relationshandling)","pdf"," --"]
["Leverantörsförteckning","pdf","docx, xlsx"]
["Provningsprotokoll, testintyg, stickprov, certifikat m.fl för material och produkter (Relationshandling)","pdf"," --"]
["Kontrolldokument per stolpplats (Relationshandling)","pdf"," --"]
["Kontrolldokument lindragning (Relationshandling)","pdf"," --"]
["Kontrolldokument kablar (Relationshandling)","pdf"," --"]
["Spårbarhetsdokumentation (Relationshandling)","pdf"," --"]
["Teknisk specifikation (Relationshandling)","pdf"," --"]
["Materiallista (MSDS) (Relationshandling)","pdf"," --"]
["Protokoll för skarvar och avslut (Relationshandling)","pdf"," --"]
["Avvikelserapport (Relationshandling)","pdf"," --"]
["Protokoll från leverantörens interngranskning (Relationshandling)","pdf"," --"]
["Protokoll från projektets kvalitetskontroll (Relationshandling)","pdf"," --"]
["Teknisk beskrivning luftledningar","pdf","docx"]
["Teknisk beskrivning kabelsystem","pdf","docx"]
["Teknisk beskrivning kabelförläggning","pdf","docx"]
["Teknisk beskrivning DTS-system","pdf","docx"]
["Ledningsrätt (Relationshandling)","pdf"," --"]
["Ingångna avtal i vägar (Relationshandling)","pdf"," --"]
["Markupplåtelseavtal (Relationshandling)","pdf"," --"]
["Drifttillstånd (Relationshandling)","pdf"," --"]
["Flyghinderanmälan","pdf","docx, xlsx"]
["Järnvägsplan (Relationshandling)","pdf"," --"]
["Flyghinderkartor","pdf","docx"]
["Kabelsträckning","pdf","docx, dwg"]
["Översiktskarta stationsanläggning","pdf","docx, dwg"]
["Kabeltabell","pdf","docx, xlsx"]
["Skarv- och avslutstabell","pdf","docx, xlsx"]
["Kabelpositionering","pdf","docx, xlsx"]
["Produktinformation (Relationshandling)","pdf"," --"]
["Naturhänsynsdokument","pdf","docx, dwg"]
["Kontrollprogram (miljö)","pdf","docx, dwg"]
["Skötselbeskrivning","pdf","docx, dwg"]
["Övriga hänsynsdokument","pdf","docx, dwg"]
["Skötselplaner","pdf","docx, dwg"]
["Underhållsmanual kabelsystem","pdf","docx"]
["Instruktioner kabeldragning","pdf","docx"]
["Metodbeskrivning kabelskarvning","pdf","docx"]
["Metodbeskrivning montage av avslutningar","pdf","docx"]
["Förteckning reservmateriel","pdf","docx, xlsx"]
["Drift- och underhållsinstruktion för DTS-system","pdf","docx"]
["Ägogräns och kopplingsgräns mot interna anläggningsägare","pdf","docx"]
["Observationspunkter under garantitid","pdf","docx, xlsx"]
["Lista med rivna stolpar","pdf","docx"]
["Mottagningsrapport destruktion material (Relationshandling)","pdf"," --"]
["Lista med kvarlämnat material","pdf","docx"]
["Rivningsritning","pdf","dwg"]
["Lista med borttagna fundament","pdf","docx"]
[]
["OBS! Relevant data/dokumentation kopplat till miljö ska levereras enligt flik 15.5 Miljö"]

{"sheet":"7.1 Resenärsstation","index":25,"n_rows":27,"n_cols":14,"rows_kept":27,"cut":false,"hidden":false,"merged":[[8,0,20,0],[21,0,24,0],[3,4,3,8],[3,10,3,11],[7,0,7,13],[8,10,24,10],[5,0,5,3],[6,0,6,3],[8,9,24,9]]}
["Resenärsstation"]
["Slutbesiktning:",{"$f":"IF(Projektuppgifter!G10=\"\",\"Fyll i datum\",Projektuppgifter!G10)","v":"Fyll i datum"},null,"Länk till flik Projektuppgifter"]
[]
[null,null,null,null,"Projekt",null,null,null,null,"Information till projektet","Mottagande förvaltning",null,"Projekt","Alla"]
[null,null,"Filformat\nvisningsfil","Filformat\nunderlagsfil","Aktuellt att upprättas av projektet","Status på levererad data","Filnamn","Levereras av:\n- E (Entreprenör)\n- K (Konsult)\n- B (Beställare)\n(datum + namn)","Levererat till förvaltande system och aviserat leveransen till mottagande förvaltning, enligt TDOK 2016:0411\n(datum + namn + ärendenr.)","Leveransyta till förvaltande system","Förvaltande system","Godkänt \n(datum + namn + ärendenr.)","Papperskopior är utlagda i anläggning (datum + namn) (Gäller objekten hiss och rulltrappa)","Eventuella kommentar"]
["3 månader efter slutbesiktning",null,null,null,"Ja"]
[{"$f":"\"Leverans till mottagande förvaltning senast: \"&IF(B2=\"Fyll i datum\",\"Fyll i datum\",TEXT(EDATE(B2,3),\"ÅÅÅÅ-MM-DD\"))","v":"Leverans till mottagande förvaltning senast: Fyll i datum"},null,null,null,"Ja"]
["Teknisk dokumentation"]
["Allmänt","Besiktingsprotokoll","pdf"," -- ",null,null,null,null,null,"Ebbas leveransyta","Ebba"]
[null,"Anläggningsbeskrivning","pdf","docx"]
[null,"Drift-/underhållsinstruktion","pdf"," -- "]
[null,"Konstruktionsritning","pdf","dgn, dwg"]
[null,"Materialförteckning","pdf"," --"]
[null,"Situationsplan","pdf","dgn, dwg"]
[null,"Underhållsbestämmelser","pdf"," --"]
[null,"Räddnings- och insatsplan","pdf"," --"]
[null,"Tillsyn enligt lag (2003:778) om skydd mot olyckor","pdf "," --"]
[null,"Ordningsföreskrifter resenärer (kommunal ordningslag)","pdf"," --"]
[null,"Ordningsföreskrifter arbetsmiljö","pdf"," --"]
[null,"Samordningplaner (MSB, Länsstyrelser, Kommun, Polis, Tull)","pdf"," --"]
[null,"Säkerhetskyddsplan","pdf"," --"]
["Personsäkerhet","Konstruktionsredovisning","pdf"," --"]
[null,"EG-kontrollintyg","pdf"," --"]
[null,"Dokumentation för hantering av avvikelser, tillbud och olyckor","pdf"," --"]
[null,"Förundersökning","pdf"," --"]
[]
["OBS! Relevant data/dokumentation kopplat till miljö ska levereras enligt flik 15.5 Miljö"]

{"sheet":"7.2 Teknikbyggnad","index":26,"n_rows":34,"n_cols":14,"rows_kept":34,"cut":false,"hidden":false,"merged":[[7,0,7,3],[4,4,4,8],[4,10,4,11],[10,0,10,3],[11,0,11,3],[9,0,9,1],[12,0,12,13],[22,0,28,0],[29,0,31,0],[13,9,31,9],[13,10,31,10],[13,0,21,0]]}
["Teknikbyggnad"]
["Inkoppling:",{"$f":"IF(Projektuppgifter!G9=\"\",\"Fyll i datum\",Projektuppgifter!G9)","v":"Fyll i datum"}]
["Slutbesiktning:",{"$f":"IF(Projektuppgifter!G10=\"\",\"Fyll i datum\",Projektuppgifter!G10)","v":"Fyll i datum"},null,"Länk till flik Projektuppgifter"]
[]
[null,null,null,null,"Projekt",null,null,null,null,"Information till projektet","Mottagande förvaltning",null,"Projekt","Alla"]
[null,null,"Filformat\nvisningsfil","Filformat\nunderlagsfil","Aktuellt att upprättas av projektet","Status på levererad data","Filnamn","Levereras av:\n- E (Entreprenör)\n- K (Konsult)\n- B (Beställare)\n(datum + namn)","Levererat till förvaltande system och aviserat leveransen till mottagande förvaltning, enligt TDOK 2016:0411\n(datum + namn + ärendenr.)","Leveransyta till förvaltande system","Förvaltande system","Godkänt \n(datum + namn + ärendenr.)","Papperskopior är utlagda i anläggning (datum + namn) (Gäller objekten hiss och rulltrappa)","Eventuella kommentar"]
["1 vecka efter inkoppling",null,null,null,null,null,"Ja"]
[{"$f":"\"Leverans till mottagande förvaltning senast: \"&IF(B2=\"Fyll i datum\",\"Fyll i datum\",TEXT(DATE(YEAR(B2),MONTH(B2),DAY(B2)+7),\"ÅÅÅÅ-MM-DD\"))","v":"Leverans till mottagande förvaltning senast: Fyll i datum"},null,null,null,null,null,"Ja"]
["Data för lagring i databas"]
["TMALL 0659 Teknikbyggnad \nSamma TMALL som i flik 6.5. TMALLen ska bara levereras en gång. Registrera Teknikbyggnad under flik 6.5.",null," --","xlsx"]
["3 månader efter slutbesiktning",null,null,null,"Ja"]
[{"$f":"\"Leverans till mottagande förvaltning senast: \"&IF(B3=\"Fyll i datum\",\"Fyll i datum\",TEXT(EDATE(B3,3),\"ÅÅÅÅ-MM-DD\"))","v":"Leverans till mottagande förvaltning senast: Fyll i datum"},null,null,null,"Ja"]
["Teknisk dokumentation"]
["Gemensamma handlingar","Anläggningsbeskrivning","pdf","docx",null,null,null,null,null,"Ebbas leveransyta för det som ska levereras till Ebba.\n\nProjektets lagringsyta för det som ska levereras till ProjectWise/ICT","Ebba alt. ProjectWise/ICT"]
[null,"Materialförteckning (teknik)","pdf","xlsx, dgn, dwg"]
[null,"Underhållsplan","pdf","docx"]
[null,"Drift-/underhållsinstruktion","pdf","docx"]
[null,"Manual och tekniska data","pdf","xlsx"]
[null,"Foto","jpg","--"]
[null,"Inventeringsdata","pdf","docx, xlsx"]
[null,"Besiktningsutlåtande","pdf","docx, xlsx"]
[null,"Programvara för fastighetssystem","--","zip"]
["Byggnad","Dokumentförteckning","pdf","docx"]
[null,"Situationsplan","pdf","dgn, dwg"]
[null,"Arkitektritning","pdf","dgn, dwg"]
[null,"Konstruktionsritning","pdf","dgn, dwg"]
[null,"Inredning","pdf","--"]
[null,"Utrustning för skydd mot olyckor","pdf","dgn, dwg, docx"]
[null,"VA/VVS","pdf","dgn, dwg, docx"]
["Utomhusmiljö","Klätterväxt","pdf","--"]
[null,"Områdesskydd","pdf","dgn, dwg, docx"]
[null,"Tillfartsväg","pdf","dgn, dwg, docx"]
[]
["OBS! Relevant data/dokumentation kopplat till miljö ska levereras enligt flik 15.5 Miljö"]

{"sheet":"7.3 Tillträdesskydd o brandlarm","index":27,"n_rows":14,"n_cols":11,"rows_kept":14,"cut":false,"hidden":false,"merged":[[8,1,8,10],[3,3,3,5],[3,8,3,9],[7,0,7,10],[5,0,5,2],[6,0,6,2]]}
["Tillträdesskydd och brandlarm"]
["Slutbesiktningsdatum:",{"$f":"IF(Projektuppgifter!G10=\"\",\"Fyll i datum\",Projektuppgifter!G10)","v":"Fyll i datum"},null,"Länk till flik Projektuppgifter"]
[]
[null,null,"Fylls i av:","Projekt",null,null,"Information till projektör","Information till projektet","Mottagande förvaltning",null,"Alla"]
[null,"Filformat\nvisningsfil","Filformat\nunderlagsfil","Aktuellt att upprättas av projektet","Behörig projektör* skickar ett aviseringsmail när aktuell förvaltningsdata är inläst i ProjectWise.","Levererat till förvaltande system  och aviserat leveransen till mottagande förvaltning, enligt TDOK 2016:0411\n(datum + namn + ärendenr.)","Ett aviseringsmail till mottagande förvaltning skickas av projektör till följande adress. (Obs! Projektet behöver inte själva skicka ett aviseringsmail.)","Leveransyta till förvaltande system","Förvaltande system","Leveranskontrollerat\n(datum + namn)","Eventuella kommentar"]
["3 månader efter slutbesiktning",null,null,"Ja"]
[{"$f":"\"Leverans till mottagande förvaltning senast: \"&IF(B2=\"Fyll i datum\",\"Fyll i datum\",TEXT(EDATE(B2,3),\"ÅÅÅÅ-MM-DD\"))","v":"Leverans till mottagande förvaltning senast: Fyll i datum"},null,null,"Ja"]
["Teknisk dokumentation"]
["Passagekontroll-, inbrottslarm- och brandvarningssystem*"]
["Passagekontroll-, inbrottslarm- och brandvarningssystem (Enligt TDOK 2016:0407)","pdf","docx, xlsx, dgn, dwg",null,"Projektören signerar inte här, utan den hanteringen sker i en separat rutin.",null,"forvaltning.passagesystem@trafikverket.se ",null,"PW/FJ*"]
["Elektromekaniskt låssystem med loggfunktion"]
["Monteringslista (Abloy Cliq-lås)","xlsx"," --",null,null,null,null,"tilltrade@trafikverket.se","ABBA-FT"]
[]
["* Eftersom det idag endast finns en behörig projektör, sker inleveransen till förvaltande system direkt av projektören."]

{"sheet":"8.1 Signalsystem","index":28,"n_rows":99,"n_cols":23,"rows_kept":99,"cut":false,"hidden":false,"merged":[[4,6,4,15],[85,0,85,2],[73,16,79,16],[76,1,76,2],[77,1,77,2],[84,16,89,16],[84,17,89,17],[67,1,68,1],[59,17,68,17],[65,1,66,1],[59,16,68,16],[59,1,60,1],[69,0,69,5],[70,0,70,5],[59,0,68,0],[61,1,62,1],[63,1,64,1],[31,1,34,1],[51,0,51,22],[52,14,57,14],[46,0,46,5],[31,17,36,17],[9,16,18,16],[20,16,22,16],[94,0,94,2],[71,0,71,22],[83,0,83,2],[82,0,82,22],[74,1,74,2],[81,0,81,5],[91,0,91,5],[92,0,92,5],[72,0,72,2],[72,3,72,4],[72,17,79,17],[80,0,80,5],[84,0,84,2],[93,0,93,22],[86,0,86,2],[88,0,88,2],[89,0,89,2],[79,1,79,2],[75,1,75,2],[73,1,73,2],[87,0,87,2],[90,0,90,2],[1,0,1,1],[2,0,2,1],[3,0,3,1],[11,1,11,2],[13,1,13,2],[14,1,14,2],[21,0,21,2],[22,0,22,2],[19,0,19,2],[20,0,20,2],[16,1,16,2],[18,1,18,2],[6,0,6,5],[7,0,7,5],[9,1,9,2],[12,1,12,2],[10,1,10,2],[15,1,15,2],[19,3,19,4],[5,0,5,1],[26,16,29,16],[31,0,36,0],[31,16,36,16],[26,1,26,2],[27,1,27,2],[28,1,28,2],[29,1,29,2],[17,1,17,2],[26,17,29,17],[45,0,45,5],[49,1,49,2],[50,1,50,2],[48,1,48,2],[52,18,57,18],[52,21,57,21],[52,17,58,17],[48,16,50,16],[47,0,47,22],[48,17,50,17],[52,16,58,16],[52,1,52,2],[53,1,53,2],[54,1,54,2],[55,1,55,2],[56,1,56,2],[57,1,57,2],[58,1,58,2],[52,0,58,0],[4,17,4,20],[30,0,30,22],[39,0,39,2],[39,3,39,5],[38,0,38,5],[42,0,42,2],[44,0,44,2],[42,3,42,5],[43,3,43,5],[42,16,43,16],[42,17,43,17],[43,0,43,2],[39,17,40,17],[39,16,40,16],[40,0,40,2],[40,3,40,5],[41,0,41,2],[8,0,8,22],[9,17,19,17],[20,17,22,17],[25,0,25,22],[37,0,37,5],[23,0,23,5],[24,0,24,5]]}
["Signalsystem"]
["Inkoppling:",null,{"$f":"IF(Projektuppgifter!G9=\"\",\"Fyll i datum\",Projektuppgifter!G9)","v":"Fyll i datum"},null,"Länk till flik Projektuppgifter"]
["Slutbesiktning:",null,{"$f":"IF(Projektuppgifter!G10=\"\",\"Fyll i datum\",Projektuppgifter!G10)","v":"Fyll i datum"}]
["Datum för Transportstyrelsens godkännande:",null,{"$f":"IF(Projektuppgifter!G11=\"\",\"Fyll i datum\",Projektuppgifter!G11)","v":"Fyll i datum"}]
[null,null,null,null,null,"Fylls i av:","Projekt",null,null,null,null,null,null,null,null,null,"Information till projektet","Mottagande förvaltning",null,null,null,"Projekt","Alla"]
["OBS. Signalskåp ska levereras i TMALL 0659 Teknikbyggnad. Den återfinns under flik 6.5 Lågspänningssystem",null,null,"Filformat\nvisningsfil","Filformat\nunderlagsfil","Uppbyggd av modellfil","Aktuellt att upprättas av projektet","Status på levererad data","Anläggnings-nummer","Trafikplats/linje","Ä-not","Filnamn alt länk till levererad fil","Levereras av:\n- E (Entreprenör)\n- K (Konsult)\n- B (Beställare)\n(datum + namn)","Levererat till förvaltande system och aviserat leveransen till mottagande förvaltning, enligt TDOK 2016:0411\n(datum + namn + ärendenr.)","Eventuella ändringar av tidigare levererad dokumentation\n(Länk till leveransen)","Levererat och aviserat ändringar (datum + namn + ärendenr.)","Leveransyta till förvaltande system","Förvaltande system","Mottaget\n(datum + namn + ärendenr.)","Godkänt \n(datum + namn + ärendenr.)","Godkänt ändring\n(datum + namn + ärendenr.)","Papperskopior är utlagda i anläggning (datum + namn)","Eventuella kommentarer"]
["6 månader före inkoppling",null,null,null,null,null,"Ja"]
[{"$f":"\"Leverans till mottagande förvaltning senast: \"&IF(C2=\"Fyll i datum\",\"Fyll i datum\",TEXT(EDATE(C2,-6),\"ÅÅÅÅ-MM-DD\"))","v":"Leverans till mottagande förvaltning senast: Fyll i datum"},null,null,null,null,null,"Ja"]
["Data för lagring i databas"]
["Nytt objekt:","TMALL 0631 Balisgrupp ERTMS",null," --","xlsx"," --",null,null,null,null,null,null,null,null,null,null,"Projektets lagringsyta","BIS"]
[null,"TMALL 0632 Hastighetsindikeringssystem (HIS)",null," --","xlsx"," --"]
[null,"TMALL 0634 Plankorsning",null," --","xlsx"," --"]
[null,"TMALL 1157 RTU Siemens S7",null," --","xlsx"," --"]
[null,"TMALL 0637 Signal (ej ATC)",null," --","xlsx"," --"]
[null,"TMALL 0638 Signalpunktstavla ERTMS",null," --","xlsx"," --"]
[null,"TMALL 0640 Spårledning (Fysisk)",null," --","xlsx"," --"]
[null,"TMALL 0641 Tavla (ej ATC)",null," --","xlsx"," --"]
[null,"TMALL 1297 Tavla (främst ATC)",null," --","xlsx"," --"]
["Ändrat/slopat objekt:","Slopnings- och ändringslista av objekten ovan",null," --","xlsx"," --"]
["Leverans från Patcy (bygghandling)",null,null,"Projektet klarmarkerar att bygghandlingen är klar i Patcy",null," --",null,null,null,null,null,null,null,null,null,null,"Inte aktuellt"]
["PLS, datablock för överföring av order och indikering mellan PLS och tågledningssystem, vanligtvis DB80 och DB81. (Projekterad anläggning)",null,null,"pdf"," --"," --",null,null,null,null,null,null,null,null,null,null,"Projektets lagringsyta","BIS (Informationen i dokumenten används för registrering av data i BIS. Dokumenten i sig lagras inte i BIS)"]
["Funktionsbeskrivning eller signaltekniska funktionskrav",null,null,"docx"," --"," --"]
["Fastställd signalhandling (del av bygghandling)",null,null,"pdf"," --"," --"]
["10 veckor före inkoppling",null,null,null,null,null,"Ja"]
[{"$f":"\"Leverans till mottagande förvaltning senast: \"&IF(C2=\"Fyll i datum\",\"Fyll i datum\",TEXT(DATE(YEAR(C2),MONTH(C2),DAY(C2)-70),\"ÅÅÅÅ-MM-DD\"))","v":"Leverans till mottagande förvaltning senast: Fyll i datum"},null,null,null,null,null,"Ja"]
["Data för lagring i databas"]
["Nytt objekt:","TMALL 1158 RTU EBISAT 890",null," --","xlsx"," --",null,null,null,null,null,null,null,null,null,null,"Projektets lagringsyta","BIS"]
[null,"TMALL 0639 Signalställverk",null," --","xlsx"," --"]
[null,"TMALL 0691 Radio Block Center (ERTMS)",null," --","xlsx"," --"]
["Ändrat/slopat objekt:","Slopnings- och ändringslista av objekten ovan",null," --","xlsx"," --"]
["Teknisk dokumentation"]
["Listor från ställverk och tågledningssystem: (Samtliga genereras vid BTRCS projektering av ställverk respektive tågledningssystem för respektive driftplats.)","Ställverk modell 85","CISlista ","pdf"," --"," --",null,null,null,null,null,null,"Registreras direkt i PW/FU, av systemleverantör",null,null,null,"Inte aktuellt","PW/FU"]
[null,null,"Identitetslista ","pdf"," --"," --",null,null,null,null,null,null,"Registreras direkt i PW/FU, av systemleverantör"]
[null,null,"Automatdata (om det finns automater) ","pdf"," --"," --",null,null,null,null,null,null,"Registreras direkt i PW/FU, av systemleverantör"]
[null,null,"Förbindelselista","pdf"," --"," --",null,null,null,null,null,null,"Registreras direkt i PW/FU, av systemleverantör"]
[null,"Ställverk modell 95","Enligt TRVINFRA 00301, bilaga 4, paket 2"," --","zip"," --",null,null,null,null,null,null,"Registreras direkt i PW/FU, av systemleverantör"]
[null,"Ställverk modell 11","Enligt TRVINFRA 00301, bilaga 5, paket 2"," --","zip"," --",null,null,null,null,null,null,"Registreras direkt i PW/FU, av systemleverantör"]
["Dagen för inkoppling",null,null,null,null,null,"Ja"]
[{"$f":"\"Leverans till mottagande förvaltning senast: \"&IF(C2=\"Fyll i datum\",\"Fyll i datum\",TEXT(DATE(YEAR(C2),MONTH(C2),DAY(C2)),\"ÅÅÅÅ-MM-DD\"))","v":"Leverans till mottagande förvaltning senast: Fyll i datum"},null,null,null,null,null,"Ja"]
["Enligt TRVINFRA 00301, bilaga 4, paket 1 (Ställverk 95)",null,null,"Pärmar med allmän dokumentation om anläggningen ska placeras i TP-noden.",null,null,null,null,null,null,null,null,"Beställare",null,null,null,"Fysisk lagring i anläggning. Avisera leveransen till stallverksdriftIKT@trafikverket.se ","Fysisk lagring i anläggningen"]
["Enligt TRVINFRA 00301, bilaga 4, paket 3 (Ställverk 95)",null,null,"USB-minnen ska placeras i anläggningen",null,null,null,null,null,null,null,null,"Beställare"]
["Enligt TRVINFRA 00301, bilaga 4, paket 6 (Ställverk 95)",null,null,"zip"," --"," --",null,null,null,null,null,null,"Systemleverantör",null,null,null,"Ebbas leveransyta","Ebba"]
["Enligt TRVINFRA 00301, bilaga 5, paket 1 (Ställverk 11)",null,null,"Pärmar med allmän dokumentation om anläggningen ska placeras i TP-noden.",null,null,null,null,null,null,null,null,"Beställare",null,null,null,"Fysisk lagring i anläggning. Avisera leveransen till stallverksdriftIKT@trafikverket.se ","Fysisk lagring i anläggningen"]
["Enligt TRVINFRA 00301, bilaga 5, paket 3 (Ställverk 11)",null,null,"USB-minnen ska placeras i anläggningen",null,null,null,null,null,null,null,null,"Beställare"]
["Enligt TRVINFRA 00301, bilaga 5, paket 6 (Ställverk 11)",null,null,"zip"," --"," --",null,null,null,null,null,null,"Systemleverantör",null,null,null,"Ebbas leveransyta","Ebba"]
["1 vecka efter inkoppling",null,null,null,null,null,"Ja"]
[{"$f":"\"Leverans till mottagande förvaltning senast: \"&IF(C2=\"Fyll i datum\",\"Fyll i datum\",TEXT(DATE(YEAR(C2),MONTH(C2),DAY(C2)+7),\"ÅÅÅÅ-MM-DD\"))","v":"Leverans till mottagande förvaltning senast: Fyll i datum"},null,null,null,null,null,"Ja"]
["Data för lagring i databas"]
["Nytt objekt:","TMALL 0635 Positioneringssystem",null," --","xlsx"," --",null,null,null,null,null,null,null,null,null,null,"Projektets lagringsyta","BIS"]
[null,"TMALL 0636 Rälskontakt",null," --","xlsx"," --"]
["Ändrat/slopat objekt:","Slopnings- och ändringslista av objekten ovan",null," --","xlsx"," --"]
["Teknisk dokumentation"]
["OBS! Dessa filer ska levereras till underhåll EFTER inkoppling. Detta för att förhindra att befintliga filer slopas i förtid. Befintliga filer kan behövas till felavhjälpning fram till den nya inkopplingen.","IL-fil, LEU-fil (Obs! Vid leverans av LEU-fil (S2-kodare) ska ingen IL-fil levereras.)",null,"pdf","il, leu"," --",null,null,null,null,null,null,null,null,null,null,"Ebbas leveransyta","Ebba"]
[null,"Ebisat-program",null," --","zip"," --"]
[null,"Programfil (Alex-teknik)",null," --","zip"," --"]
[null,"HMI-program",null," --","zip"," --"]
[null,"HMI-utskrift",null," --","zip"," --"]
[null,"PLS-program",null," --","zip"," --"]
[null,"PLS-utskrift",null," --","zip"," --"]
["Listor från ställverk och tågledningssystem: (Samtliga genereras vid BTRCS projektering av ställverk respektive tågledningssystem för respektive driftplats.)","Ställverk modell 59","Onepoint (om anläggning på EBICOS)","pdf","xml"," --",null,null,null,null,null,null,"Registreras direkt i utpekat arbetsrum, av systemtekniker EBICOS",null,null,null,"Inte aktuellt","Arbetsrum"]
[null,null,"Indication (om anläggning på EBICOS)","pdf","xml"," --",null,null,null,null,null,null,"Registreras direkt i utpekat arbetsrum, av systemtekniker EBICOS"]
[null,"Ställverk modell 65","Sequence (om anläggning på EBICOS)","pdf","xml"," --",null,null,null,null,null,null,"Registreras direkt i utpekat arbetsrum, av systemtekniker EBICOS"]
[null,null,"Indication (om anläggning på EBICOS)","pdf","xml"," --",null,null,null,null,null,null,"Registreras direkt i utpekat arbetsrum, av systemtekniker EBICOS"]
[null,"Ställverk modell CST","Sequence (om anläggning på EBICOS)","pdf","xml"," --",null,null,null,null,null,null,"Registreras direkt i utpekat arbetsrum, av systemtekniker EBICOS"]
[null,null,"Indication (om anläggning på EBICOS)","pdf","xml"," --",null,null,null,null,null,null,"Registreras direkt i utpekat arbetsrum, av systemtekniker EBICOS"]
[null,"Ställverk modell 85","Onepoint (om anläggning på EBICOS)","pdf","xml"," --",null,null,null,null,null,null,"Registreras direkt i utpekat arbetsrum, av systemtekniker EBICOS"]
[null,null,"Indication (om anläggning på EBICOS)","pdf","xml"," --",null,null,null,null,null,null,"Registreras direkt i utpekat arbetsrum, av systemtekniker EBICOS"]
[null,"Ställverk modell 95","Onepoint (om det finns en relädel)","pdf","xml"," --",null,null,null,null,null,null,"Registreras direkt i utpekat arbetsrum, av systemtekniker EBICOS"]
[null,null,"Indication (om det finns en relädel)","pdf","xml"," --",null,null,null,null,null,null,"Registreras direkt i utpekat arbetsrum, av systemtekniker EBICOS"]
["3 veckor efter inkoppling",null,null,null,null,null,"Ja"]
[{"$f":"\"Leverans till mottagande förvaltning senast: \"&IF(C2=\"Fyll i datum\",\"Fyll i datum\",TEXT(DATE(YEAR(C2),MONTH(C2),DAY(C2)+21),\"ÅÅÅÅ-MM-DD\"))","v":"Leverans till mottagande förvaltning senast: Fyll i datum"},null,null,null,null,null,"Ja"]
["Data för lagring i databas"]
["Leverans från Patcy (förvaltningsdata)",null,null,"Projektet klarmarkerar att förvaltningsdata är klar i Patcy",null," --",null,null,null,null,null,null,null,null,null,null,"Inte aktuellt","BIS"]
["Nytt objekt:","TMALL 1322 ELC ",null," --","xlsx"," --",null,null,null,null,null,null,null,null,null,null,"Projektets lagringsyta"]
[null,"TMALL 0633 Linjeblockeringssystem",null," --","xlsx"," --"]
[null,"TMALL 1321 Utdelsenhet",null," --","xlsx"," --"]
[null,"Restlista för Signal (ej ATC)",null," --","xlsx"," --"]
[null,"Restlista för Tavla (ej ATC)",null," --","xlsx"," --"]
[null,"Komponenter plankorsning",null," --","xlsx"," --"]
["Ändrat/slopat objekt:","Slopnings- och ändringslista av objekten ovan",null," --","xlsx"," --"]
["3 månader efter slutbesiktning",null,null,null,null,null,"Ja"]
[{"$f":"\"Leverans till mottagande förvaltning senast: \"&IF(C3=\"Fyll i datum\",\"Fyll i datum\",TEXT(EDATE(C3,3),\"ÅÅÅÅ-MM-DD\"))","v":"Leverans till mottagande förvaltning senast: Fyll i datum"},null,null,null,null,null,"Ja"]
["Teknisk dokumentation"]
["Ritningar och övrig teknisk dokumentation över befintlig anläggning enligt TRVINFRA 00301.",null,null,"pdf","xlsx, docx, dgn, dwg","SIGNAL, ISOL",null,null,null,null,null,null,null,null,null,null,"Ebbas leveransyta","Ebba"]
["Enligt TRVINFRA 00301, bilaga 3 (Ställverk 85)",null,null," --","zip"," --",null,null,null,null,null,null,"Registreras direkt i PW/FU, av systemleverantör",null,null,null,"Inte aktuellt","PW/FU"]
["Enligt TRVINFRA 00301, bilaga 4, paket 1 (Ställverk 95) ",null,null," --","zip"," --",null,null,null,null,null,null,"Registreras direkt i PW/FU, av systemleverantör"]
["Enligt TRVINFRA 00301, bilaga 4, paket 5 (Ställverk 95)",null,null," --","zip"," --",null,null,null,null,null,null,"Registreras direkt i PW/FU, av systemleverantör"]
["Enligt TRVINFRA 00301, bilaga 5, paket 1 (Ställverk 11)",null,null," --","zip"," --",null,null,null,null,null,null,"Registreras direkt i PW/FU, av systemleverantör"]
["Enligt TRVINFRA 00301, bilaga 5, paket 3 (Ställverk 11)",null,null," --","zip"," --",null,null,null,null,null,null,"Registreras direkt i PW/FU, av systemleverantör"]
["Enligt TRVINFRA 00301, bilaga 5, paket 5 (Ställverk 11)",null,null," --","zip"," --",null,null,null,null,null,null,"Registreras direkt i PW/FU, av systemleverantör"]
["Besiktningsdokumentationen för signalteknik i form av pappershandlingar (Ska sparas i fem år hos Trafikverkets arkivservice i Mölndal)",null,null," --"," --"," --",null,null,null,null,null,null,null,null,null,null,"Arkivservice i Mölndal","Arkivservice i Mölndal"]
["1 månad efter Transportstyrelsens godkännande",null,null,null,null,null,"Ja"]
[{"$f":"\"Leverans till mottagande förvaltning senast: \"&IF(C4=\"Fyll i datum\",\"Fyll i datum\",TEXT(EDATE(C4,1),\"ÅÅÅÅ-MM-DD\"))","v":"Leverans till mottagande förvaltning senast: Fyll i datum"},null,null,null,null,null,"Ja"]
["Teknisk dokumentation"]
["Säkerhetsbevisning",null,null,"zip"," --"," --",null,null,null,null,null,null,null,null,null,null,"ProjectWise/Förvaltning Järnväg/Dokument/Förvaltningsdata Leveranser/_Säkerhetsbevisning/ Bandel,projekt","PW/FJ"]
[]
["Vid förändring av de signalobjekt som ingår i baskarta ska ny uppdaterad baskarta tas fram."]
[]
["OBS! Relevant data/dokumentation kopplat till miljö ska levereras enligt flik 15.5 Miljö"]

{"sheet":"9.1 Banöverbyggnad","index":29,"n_rows":62,"n_cols":18,"rows_kept":62,"cut":false,"hidden":false,"merged":[[59,0,59,2],[43,0,43,4],[44,0,44,4],[56,0,56,4],[57,0,57,4],[45,0,45,17],[46,12,55,12],[46,0,48,1],[49,0,51,1],[52,0,55,1],[58,0,58,17],[46,13,55,13],[5,5,5,11],[5,13,5,16],[20,0,20,17],[1,0,1,1],[2,0,2,1],[3,0,3,1],[8,0,8,4],[18,0,18,4],[10,0,16,1],[17,0,17,1],[9,0,9,17],[7,0,7,4],[21,13,28,13],[21,0,27,1],[28,0,28,1],[10,13,16,13],[21,12,28,12],[19,0,19,4],[10,12,17,12],[30,0,30,4],[29,0,29,4],[42,0,42,1],[31,0,31,17],[41,0,41,1],[32,13,42,13],[32,12,42,12],[32,0,40,1]]}
["Banöverbyggnad"]
["Inkoppling:",null,{"$f":"IF(Projektuppgifter!G9=\"\",\"Fyll i datum\",Projektuppgifter!G9)","v":"Fyll i datum"},null,"Länk till flik Projektuppgifter"]
["Slutbesiktning: ",null,{"$f":"IF(Projektuppgifter!G10=\"\",\"Fyll i datum\",Projektuppgifter!G10)","v":"Fyll i datum"}]
["Datum för Transportstyrelsens godkännande:",null,{"$f":"IF(Projektuppgifter!G11=\"\",\"Fyll i datum\",Projektuppgifter!G11)","v":"Fyll i datum"}]
[]
[null,null,null,null,"Fylls i av:","Projekt",null,null,null,null,null,null,"Information till projektet","Mottagande förvaltning",null,null,null,"Alla"]
[null,null,null,"Filformat\nvisningsfil","Filformat\nunderlagsfil","Aktuellt att upprättas av projektet","Status på levererad data","Filnamn alt länk till levererad fil","Levereras av:\n- E (Entreprenör)\n- K (Konsult)\n- B (Beställare)\n(datum + namn)","Levererat till förvaltande system och aviserat leveransen till mottagande förvaltning, enligt TDOK 2016:0411\n(datum + namn + ärendenr.)","BIS: Eventuella ändringar av tidigare levererade data\n(Länk till leveransen)","BIS: Levererat till förvaltande system och aviserat ändringar (datum + namn + ärendenr.)","Leveransyta till förvaltande system","Förvaltande system","Mottaget\n(datum + namn + ärendenr.)","Godkänt \n(datum + namn + ärendenr.)","Godkänt ändring\n(datum + namn + ärendenr.)","Eventuella kommentarer"]
["6 månader före inkoppling",null,null,null,null,"Ja"]
[{"$f":"\"Leverans till mottagande förvaltning senast: \"&IF(C2=\"Fyll i datum\",\"Fyll i datum\",TEXT(EDATE(C2,-6),\"ÅÅÅÅ-MM-DD\"))","v":"Leverans till mottagande förvaltning senast: Fyll i datum"},null,null,null,null,"Ja"]
["Data för lagring i databas"]
["Nytt objekt:",null,"TMALL 0608 Isolerskarv"," --","xlsx",null,null,null,null,null,null,null,"Projektets lagringsyta","BIS"]
[null,null,"TMALL 0610 Spårkors"," --","xlsx"]
[null,null,"TMALL 0565 Spårspärr"," --","xlsx"]
[null,null,"TMALL 0601 Spårväxel EV/EVR"," --","xlsx"]
[null,null,"TMALL 0602 Spårväxel EVK/DKV"," --","pdf"]
[null,null,"TMALL 0603 Spårväxel 3V"," --","pdf"]
[null,null,"TMALL 0568 Stoppbock"," --","xlsx"]
["Ändrat/slopat objekt:",null,"Slopnings- och ändringslista av objekten ovan"," --","xlsx"]
["1 vecka efter inkoppling",null,null,null,null,"Ja"]
[{"$f":"\"Leverans till mottagande förvaltning senast: \"&IF(C2=\"Fyll i datum\",\"Fyll i datum\",TEXT(DATE(YEAR(C2),MONTH(C2),DAY(C2)+7),\"ÅÅÅÅ-MM-DD\"))","v":"Leverans till mottagande förvaltning senast: Fyll i datum"},null,null,null,null,"Ja"]
["Data för lagring i databas"]
["Nytt objekt:",null,"TMALL 0599 Ballast"," --","xlsx",null,null,null,null,null,null,null,"Projektets lagringsyta","BIS"]
[null,null,"TMALL 0600 Befästning"," --","xlsx"]
[null,null,"TMALL 0962 Dilatationsanordning"," --","xlsx"]
[null,null,"TMALL 0606 Räl"," --","xlsx"]
[null,null,"TMALL 0607 Rälsvandringshinder"," --","xlsx"]
[null,null,"TMALL 0963 Skarv öppningsbar bro"," --","xlsx"]
[null,null,"TMALL 0609 Sliper"," --","xlsx"]
["Ändrat/slopat objekt:",null,"Slopnings- och ändringslista av objekten ovan"," --","xlsx"]
["3 veckor efter inkoppling",null,null,null,null,"Ja"]
[{"$f":"\"Leverans till mottagande förvaltning senast: \"&IF(C2=\"Fyll i datum\",\"Fyll i datum\",TEXT(DATE(YEAR(C2),MONTH(C2),DAY(C2)+21),\"ÅÅÅÅ-MM-DD\"))","v":"Leverans till mottagande förvaltning senast: Fyll i datum"},null,null,null,null,"Ja"]
["Data för lagring i databas"]
["Nytt objekt:",null,"TMALL 1267 Pyramidmatta"," --","xlsx",null,null,null,null,null,null,null,"Projektets lagringsyta","BIS"]
[null,null,"TMALL 0564 Rangerbromssystem"," --","xlsx"]
[null,null,"TMALL 0656 Rälssmörjningsapparat"," --","xlsx"]
[null,null,"TMALL 1381 Stoppbock, fällbar"," --","xlsx"]
[null,null,"TMALL 0669 Skyddsräl"," --","xlsx"]
[null,null,"Restlista för Isolerskarv "," --","xlsx"]
[null,null,"Restlista för Spårväxel"," --","xlsx"]
[null,null,"Restlista för Spårspärr"," --","xlsx"]
[null,null,"Restlista för Spårkors"," --","xlsx"]
["Ändrat/slopat objekt:",null,"Slopnings- och ändringslista av objekten ovan"," --","xlsx"]
["Nytt eller ändrat/slopat objekt:",null,"TMALL 0672 Spänningsfri temperatur"," --","xlsx"]
["3 månader efter slutbesiktning",null,null,null,null,"Ja"]
[{"$f":"\"Leverans till mottagande förvaltning senast: \"&IF(C3=\"Fyll i datum\",\"Fyll i datum\",TEXT(EDATE(C3,3),\"ÅÅÅÅ-MM-DD\"))","v":"Leverans till mottagande förvaltning senast: Fyll i datum"},null,null,null,null,"Ja"]
["Teknisk dokumentation"]
["Dilatationsanordning",null,"Utläggningsritning","pdf"," --",null,null,null,null,null,null,null,"Ebbas leveransyta","Ebba"]
[null,null,"Materialförteckning","pdf"," --"]
[null,null,"Bockningsunderlag","pdf"," --"]
["Skarv öppnigsbar bro",null,"Utläggningsritning","pdf"," --"]
[null,null,"Detaljritning","pdf"," --"]
[null,null,"Materialförteckning","pdf"," --"]
["Spårväxel",null,"Utläggningsritning","pdf"," --"]
[null,null,"Materialförteckning","pdf"," --"]
[null,null,"Slipersplaceringsritning","pdf"," --"]
[null,null,"Bockningsunderlag","pdf"," --"]
["1 månad efter Transportstyrelsens godkännande",null,null,null,null,"Ja"]
[{"$f":"\"Leverans till mottagande förvaltning senast: \"&IF(C4=\"Fyll i datum\",\"Fyll i datum\",TEXT(EDATE(C4,1),\"ÅÅÅÅ-MM-DD\"))","v":"Leverans till mottagande förvaltning senast: Fyll i datum"},null,null,null,null,"Ja"]
["Teknisk dokumentation"]
["Säkerhetsbevisning bana",null,null,"zip","--",null,null,null,null,null,null,null,"ProjectWise/Förvaltning Järnväg/Förvaltningsdata Leveranser/_Säkerhetsbevisning/ Bandel, projekt","PW/FJ"]
[]
["OBS! Relevant data/dokumentation kopplat till miljö ska levereras enligt flik 15.5 Miljö"]

{"sheet":"9.2 Geodetiskt stomnät","index":30,"n_rows":16,"n_cols":14,"rows_kept":16,"cut":false,"hidden":false,"merged":[[15,0,15,3],[11,0,11,2],[12,0,12,2],[8,10,10,10],[8,9,10,9],[13,0,13,2],[7,0,7,13],[8,1,10,1],[3,3,3,8],[3,10,3,12],[5,0,5,2],[6,0,6,2]]}
["Geodetiskt stomnät"]
["Datum för utjämningsberäkning av stompunktsetablering:",{"$f":"IF(Projektuppgifter!G6=\"\",\"Fyll i datum\",Projektuppgifter!G6)","v":"Fyll i datum"},"Länk till flik Projektuppgifter"]
["Slutbesiktning: ",{"$f":"IF(Projektuppgifter!G10=\"\",\"Fyll i datum\",Projektuppgifter!G10)","v":"Fyll i datum"}]
[null,null,"Fylls i av:","Projekt",null,null,null,null,null,"Information till projektet","Mottagande förvaltning",null,null,"Alla"]
[null,"Filformat\nvisningsfil","Filformat i levererad zip-fil","Aktuellt att upprättas av projektet","Projektet garanterar att inga stompunkter raserats eller nyetablerats utöver det som ska/har redovisats i flik 9.2 Geodetiskt stomnät (Fältet ska signeras av Projektledare först i samband med slutleverans, datum + namn)","Filnamn","Levereras av:\n- E (Entreprenör)\n- K (Konsult)\n- B (Beställare)\n(datum + namn)","Godkänd av mätansvarig i projektet \n(datum + namn)","Levererat till förvaltande system och aviserat leveransen till mottagande förvaltning, enligt TDOK 2016:0411\n(datum + namn + ärendenr.)","Leveransyta till förvaltande system","Förvaltande system","Godkänd av geodesipersonal\n(datum + namn + ärendenr.)","Inläst av geodesipersonal \n(datum + namn + ärendenr.)","Eventuella kommentarer"]
["2 veckor efter utjämningsberäkning av stompunktsetablering",null,null,"Ja"]
[{"$f":"\"Leverans till mottagande förvaltning senast: \"&IF(B2=\"Fyll i datum\",\"Fyll i datum\",TEXT(DATE(YEAR(B2),MONTH(B2),DAY(B2)+14),\"ÅÅÅÅ-MM-DD\"))","v":"Leverans till mottagande förvaltning senast: Fyll i datum"},null,null,"Ja"]
["Teknisk dokumentation"]
["Delleverans 1","Samlingsfil (zip) Innehållande uppgifter enligt kolumn C rad 9"," -Stomnätsredovisning (pdf)\n -Nätskiss (pdf)\n -Beräkningshandlingar (pdf + orginalformat)\n -Ifylld TMALL 0496 Leverans till stompunktsregister järnväg (xlsx)",null,null,null,null,null,null,"Zip-filen bifogas i det aviserande mailet. Notera i mailet att detta är en delleverans","PW/FJ"]
["Delleverans 2",null,"(se ovan under delleverans 1)"]
["Delleverans 3",null,"(se ovan under delleverans 1)"]
["3 månader efter slutbesiktning",null,null,"Ja"]
[{"$f":"\"Leverans till mottagande förvaltning senast: \"&IF(B3=\"Fyll i datum\",\"Fyll i datum\",TEXT(EDATE(B3,3),\"ÅÅÅÅ-MM-DD\"))","v":"Leverans till mottagande förvaltning senast: Fyll i datum"},null,null,"Ja"]
["Garanti* att inga stompunkter raserats, rubbats, skadats eller nyetablerats utöver det som har redovisats enligt ovan. \nObservera:\n- Detta är ingen leverans av ett dokument, utan det är en kvittens som efterfrågas.\n- En kvittens ska ALLTID skrivas även om inga stompunkter raserats, rubbats, skadats eller nyetablerats.",null,null,"Ja"]
[]
["* Angående garantin\nDet geodetiska stomnätet ska tillståndsbedömas, helst av person med mätningsteknisk kunskap (behörighet II enligt TDOK 2018:0008).  \nTillståndsbedömningen består av en okulär besiktning av stompunkterna inom det aktuella projektområdet. \n\nOkulärbesiktningen ska säkerställa om\n• stompunkter har raserats\n• stompunkter har rubbats ur sitt läge\n• markeringarna för stompunkterna på något sätt har blivit skadade (synbar påverkan)\n\nGarantin är ett löfte om att \n• stompunkter som har raserats av projektet har ersatts av projektet\n• stompunkter som har rubbats ur sitt läge av projektet har ersatts av projektet\n• stompunkter som har blivit skadade av projektet har ersatts av projektet.\neller att inga stompunkter har raserats, rubbats, skadats eller nyetablerats."]

{"sheet":"9.3 Sidoanläggning","index":31,"n_rows":24,"n_cols":18,"rows_kept":24,"cut":false,"hidden":false,"merged":[[19,12,21,12],[14,13,15,13],[16,0,16,4],[17,0,17,4],[19,0,21,0],[19,13,21,13],[18,0,18,17],[14,12,15,12],[1,0,1,1],[2,0,2,1],[13,0,13,17],[11,0,11,4],[12,0,12,4],[5,0,5,4],[6,0,6,4],[7,0,7,17],[8,13,10,13],[8,12,10,12],[3,5,3,11],[3,13,3,16]]}
["Sidoanläggning"]
["Inkoppling:",null,{"$f":"IF(Projektuppgifter!G9=\"\",\"Fyll i datum\",Projektuppgifter!G9)","v":"Fyll i datum"},null,"Länk till flik Projektuppgifter"]
["Slutbesiktning: ",null,{"$f":"IF(Projektuppgifter!G10=\"\",\"Fyll i datum\",Projektuppgifter!G10)","v":"Fyll i datum"}]
[null,null,null,null,"Fylls i av:","Projekt",null,null,null,null,null,null,"Information till projektet","Mottagande förvaltning",null,null,null,"Alla"]
[null,null,"Filformat\nvisningsfil","Filformat\nunderlagsfil","Uppbyggd av modellfil","Aktuellt att upprättas av projektet","Status på levererad data","Filnamn alt länk till levererad fil","Levereras av:\n- E (Entreprenör)\n- K (Konsult)\n- B (Beställare)\n(datum + namn)","Levererat till förvaltande system och aviserat leveransen till mottagande förvaltning, enligt TDOK 2016:0411\n(datum + namn + ärendenr.)","BIS: Eventuella ändringar av tidigare levererade data\n(Länk till leveransen)","BIS: Levererat till förvaltande system och aviserat ändringar (datum + namn + ärendenr.)","Leveransyta till förvaltande system","Förvaltande system","Mottaget\n(datum + namn + ärendenr.)","Godkänt \n(datum + namn + ärendenr.)","Godkänt ändring\n(datum + namn + ärendenr.)","Eventuella kommentarer"]
["6 månader före inkoppling",null,null,null,null,"Ja"]
[{"$f":"\"Leverans till mottagande förvaltning senast: \"&IF(C2=\"Fyll i datum\",\"Fyll i datum\",TEXT(EDATE(C2,-6),\"ÅÅÅÅ-MM-DD\"))","v":"Leverans till mottagande förvaltning senast: Fyll i datum"},null,null,null,null,"Ja"]
["Data för lagring i databas"]
["Nytt objekt:","TMALL 0561 Lastplats"," --","xlsx"," --",null,null,null,null,null,null,null,"Projektets lagringsyta","BIS"]
[null,"TMALL 0562 Plattform"," --","xlsx"," --"]
["Ändrat/slopat objekt:","Slopnings- och ändringslista av objekten ovan"," --","xlsx"," --"]
["1 vecka efter inkoppling",null,null,null,null,"Ja"]
[{"$f":"\"Leverans till mottagande förvaltning senast: \"&IF(C2=\"Fyll i datum\",\"Fyll i datum\",TEXT(DATE(YEAR(C2),MONTH(C2),DAY(C2)+7),\"ÅÅÅÅ-MM-DD\"))","v":"Leverans till mottagande förvaltning senast: Fyll i datum"},null,null,null,null,"Ja"]
["Data för lagring i databas"]
["Nytt objekt:","TMALL 0654 Hägnad"," --","xlsx"," --",null,null,null,null,null,null,null,"Projektets lagringsyta","BIS"]
["Ändrat/slopat objekt:","Slopnings- och ändringslista av objektet ovan"," --","xlsx"," --"]
["3 månader efter slutbesiktning",null,null,null,null,"Ja"]
[{"$f":"\"Leverans till mottagande förvaltning senast: \"&IF(C3=\"Fyll i datum\",\"Fyll i datum\",TEXT(EDATE(C3,3),\"ÅÅÅÅ-MM-DD\"))","v":"Leverans till mottagande förvaltning senast: Fyll i datum"},null,null,null,null,"Ja"]
["Teknisk dokumentation"]
["Hägnad/skärm","Planritning","pdf","dgn"," MARK",null,null,null,null,null,null,null,"Ebbas leveransyta","Ebba"]
[null,"Drift-/underhållsinstruktion","pdf","docx, dgn, dwg"," --"]
[null,"Kontrollprogram (miljö)","pdf","docx"," --"]
[]
["OBS! Relevant data/dokumentation kopplat till miljö ska levereras enligt flik 15.5 Miljö"]

{"sheet":"10.1 Radio och telefoni","index":32,"n_rows":99,"n_cols":16,"rows_kept":99,"cut":false,"hidden":false,"merged":[[31,0,53,0],[54,0,68,0],[31,11,68,11],[51,14,52,14],[28,0,28,3],[29,0,29,3],[30,0,30,15],[31,10,68,10],[3,11,3,13],[7,0,7,15],[3,4,3,9],[25,0,25,15],[26,14,27,14],[5,0,5,3],[6,0,6,3],[23,0,23,3],[24,0,24,3],[26,11,27,11],[8,0,12,0],[13,0,22,0],[8,11,22,11],[8,10,22,10],[26,10,27,10],[4,0,4,1]]}
["Radio och telefoni"]
["Inkoppling:",{"$f":"IF(Projektuppgifter!G9=\"\",\"Fyll i datum\",Projektuppgifter!G9)","v":"Fyll i datum"},null,"Länk till flik Projektuppgifter"]
["Slutbesiktning:",{"$f":"IF(Projektuppgifter!G10=\"\",\"Fyll i datum\",Projektuppgifter!G10)","v":"Fyll i datum"}]
[null,null,null,"Fylls i av:","Projekt",null,null,null,null,null,"Information till projektet","Mottagande förvaltning",null,null,"Projekt","Alla"]
["Samtliga teknikbyggander för telekominfrastruktur ska levereras enligt flik 7.2 Teknikbyggnad.",null,"Filformat\nvisningsfil","Filformat\nunderlagsfil","Aktuellt att upprättas av projektet","Status på levererad data","Filnamn alt länk till levererad fil","Levereras av:\n- E (Entreprenör)\n- K (Konsult)\n- B (Beställare)\n(datum + namn)","Levererat till förvaltande system och aviserat leveransen till mottagande förvaltning, enligt TDOK 2016:0411\n(datum + namn + ärendenr.)","Eventuella ändringar av tidigare levererade data\n(Länk till leveransen)","Leveransyta till förvaltande system","Förvaltande system","Mottaget\n(datum + namn + ärendenr.)","Godkänt \n(datum + namn + ärendenr.)","Papperskopior  är utlagda i anläggning (datum + namn)","Eventuella kommentarer"]
["Vid färdig bygghandling, senast 6 månader före inkoppling",null,null,null,"Ja"]
[{"$f":"\"Leverans till mottagande förvaltning senast: \"&IF(B2=\"Fyll i datum\",\"Fyll i datum\",TEXT(EDATE(B2,-6),\"ÅÅÅÅ-MM-DD\"))","v":"Leverans till mottagande förvaltning senast: Fyll i datum"},null,null,null,"Ja"]
["Teknisk dokumentation"]
["Radio","Karta och situationsplan","pdf","dgn, dwg, xlsx",null,null,null,null,null,null,"Projektets lagringsyta","PW/ICT"]
[null,"Yttre elanläggning","pdf","xlsx, dgn, dwg"]
[null,"Inre teleanläggning","pdf","dgn, dwg"]
[null,"Transmissionsutrustning","pdf","dgn, dwg"]
[null,"Radiosystemutrustning","pdf"," --"]
["Tunnelradio","Systembeskrivning","pdf","docx"]
[null,"Länkbudgetberäkning","pdf","xlsx"]
[null,"Övergripande blockschema","pdf","dgn, dwg"]
[null,"Schematisk kabelplan","pdf","dgn, dwg"]
[null,"Inkopplingsschema","pdf","dgn, dwg"]
[null,"Stativ-/skåpritning","pdf","dgn, dwg"]
[null,"Montagebeskrivning och typritning","pdf","dgn, dwg"]
[null,"Uppställningsplan","pdf","dgn, dwg"]
[null,"ODF disposition","pdf","dgn, dwg"]
[null,"Säkringsdisposition","pdf","dgn, dwg"]
["3 veckor efter inkoppling",null,null,null,"Ja"]
[{"$f":"\"Leverans till mottagande förvaltning senast: \"&IF(B2=\"Fyll i datum\",\"Fyll i datum\",TEXT(DATE(YEAR(B2),MONTH(B2),DAY(B2)+21),\"ÅÅÅÅ-MM-DD\"))","v":"Leverans till mottagande förvaltning senast: Fyll i datum"},null,null,null,"Ja"]
["Data för lagring i databas"]
["Nytt objekt:","TMALL 0643 Telefoni"," --","xlsx",null,null,null,null,null,null,"Projektets lagringsyta","BIS"]
["Ändrat/slopat objekt:","Slopnings- och ändringslista av objektet ovan"," --","xlsx"]
["3 månader efter slutbesiktning",null,null,null,"Ja"]
[{"$f":"\"Leverans till mottagande förvaltning senast: \"&IF(B3=\"Fyll i datum\",\"Fyll i datum\",TEXT(EDATE(B3,3),\"ÅÅÅÅ-MM-DD\"))","v":"Leverans till mottagande förvaltning senast: Fyll i datum"},null,null,null,"Ja"]
["Teknisk dokumentation"]
["Radio","Adressförteckning","pdf","docx, xlsx",null,null,null,null,null,null,"Projektets lagringsyta","PW/ICT"]
[null,"Bygglov","pdf","docx"]
[null,"Mastlov","pdf","docx"]
[null,"Elservis","pdf"," --"]
[null,"Avtal","pdf","docx"]
[null,"Ändring och avvikelsehantering","pdf","docx"]
[null,"Site förutsättningar","pdf","docx"]
[null,"Dimensionering vindlastberäkning","pdf","docx"]
[null,"Geoteknik","pdf","docx"]
[null,"Befintlig anläggning","pdf","docx"]
[null,"Karta och situationsplan ","pdf","xlsx, dgn, dwg"]
[null,"Yttre elanläggning ","pdf","xlsx, dgn, dwg"]
[null,"Grundläggning","pdf","xlsx"]
[null,"Likriktare och batteribackup","pdf","dgn, dwg, docx"]
[null,"Larmanläggning","pdf","xlsx"]
[null,"Inre teleanläggning ","pdf","dgn, dwg"]
[null,"Torn-/antennfästen","pdf"," --"]
[null,"Antennanläggning","pdf","dgn, dwg"]
[null,"Transmissionsutrustning ","pdf","dgn, dwg"]
[null,"Radiosystemutrustning ","pdf"," --"]
[null,"Kontroll och provning","pdf"," --"]
[null,"Besiktning-/kvalitetskontroll","pdf"," --"]
[null,"Överlämnande","pdf"," --"]
["Tunnelradio","Principschema","pdf","dgn, dwg"]
[null,"Systembeskrivning","pdf","docx"]
[null,"Länkbudgetberäkning","pdf","xlsx"]
[null,"Övergripande blockschema","pdf","dgn, dwg"]
[null,"Schematisk kabelplan","pdf","dgn, dwg"]
[null,"Kabellista","pdf","xlsx"]
[null,"Apparatlista","pdf","xlsx"]
[null,"Datablad och specifikation","pdf"," --"]
[null,"PIM- och FDR-mätning","pdf","docx"]
[null,"Inkopplingsschema","pdf","dgn, dwg"]
[null,"Stativ- och skåpritning","pdf","dgn, dwg"]
[null,"Montagebeskrivning och typritning","pdf","dgn, dwg"]
[null,"Uppställningsplan","pdf","dgn, dwg"]
[null,"ODF disposition","pdf","dgn, dwg"]
[null,"Säkringsdisposition","pdf","dgn, dwg"]
[]
["Papperskopior enligt 3 månaders kraven ovan ska levereras i en pärm med register och ha följande struktur:"]
["01.--"]
["02. Adressförteckning"]
["03. Bygglov"]
["04. Mastlov"]
["05. Elservis"]
["06. Avtal"]
["07. Miljö"]
["08. --"]
["09. Ändring och avvikelsehantering"]
["10. Site förutsättningar"]
["11. Dimensionering"]
["12. Geoteknik"]
["13. Befintlig anläggning"]
["14. --"]
["15. --"]
["16. Karta och situationsplan"]
["17. Yttre elanläggning"]
["18. Grundläggning"]
["19. Teknikhus"]
["20. Likriktare och batteribackup"]
["21. Larmanläggning"]
["22. Inre teleanläggning"]
["23. Torn och antennfästen"]
["24. Antennanläggning"]
["25. Transmissionsutrustning"]
["26. Radiosystemutrustning"]
[]
["OBS! Relevant data/dokumentation kopplat till miljö ska levereras enligt flik 15.5 Miljö"]

{"sheet":"10.2 Siter och kabelanl","index":33,"n_rows":105,"n_cols":16,"rows_kept":105,"cut":false,"hidden":false,"merged":[[5,0,5,2],[98,0,102,1],[55,11,102,11],[55,13,102,13],[45,0,51,0],[45,1,46,1],[47,1,48,1],[49,1,51,1],[53,0,53,5],[52,0,52,5],[97,0,97,1],[54,0,54,15],[87,0,96,0],[45,12,51,12],[55,12,102,12],[43,0,43,5],[4,13,4,14],[8,0,8,15],[4,6,4,11],[29,0,37,0],[29,1,32,1],[33,1,37,1],[6,0,6,5],[7,0,7,5],[15,1,18,1],[24,1,28,1],[19,1,23,1],[9,0,28,0],[9,13,41,13],[38,0,38,1],[9,1,14,1],[39,0,41,1],[9,12,41,12],[44,0,44,15],[87,1,90,1],[91,1,96,1],[42,0,42,5],[55,0,86,0],[55,1,63,1],[45,13,51,13],[76,1,86,1],[64,1,67,1],[68,1,75,1]]}
["Siter och kabelanläggning"]
["Inkoppling",{"$f":"IF(Projektuppgifter!G9=\"\",\"Fyll i datum\",Projektuppgifter!G9)","v":"Fyll i datum"},"Länk till flik Projektuppgifter"]
["Slutbesiktning:",{"$f":"IF(Projektuppgifter!G10=\"\",\"Fyll i datum\",Projektuppgifter!G10)","v":"Fyll i datum"}]
[]
[null,null,null,null,null,"Fylls i av:","Projekt",null,null,null,null,null,"Information till projektet","Mottagande förvaltning",null,"Alla"]
["Teknikbyggnad till BIS ska levereras enligt flik 6.5 Lågspänningssystem. Leverera inte dubbelt, men kom ihåg att data även ska levereras för skarvskåp i TMALL 0659 BIS Teknikbyggnad sweref99tm. Det finns 2st mallar för teknikbyggnad. Vid leverans av data gällande skarvskåp ska IKT:s siteförkortning anges i kolumn \"Beteckning\". \n\nSamtliga teknikbyggander för telekominfrastruktur ska levereras enligt flik 7.2 Teknikbyggnad.",null,null,"Filformat\nvisningsfil","Filformat\nunderlagsfil","Uppbyggd av modellfil","Aktuellt att upprättas av projektet","Status på levererad data","Filnamn","Levereras av:\n- E (Entreprenör)\n- K (Konsult)\n- B (Beställare)\n(datum + namn)","Levererat till förvaltande system och aviserat leveransen till mottagande förvaltning, enligt TDOK 2016:0411\n(datum + namn + ärendenr.)","Eventuella ändringar av tidigare levererade data\n(Länk till leveransen)","Leveransyta till förvaltande system","Förvaltande system","Godkänt \n(datum + namn + ärendenr.)","Eventuella kommentarer"]
["Vid färdig bygghandling, senast 6 månader före inkoppling",null,null,null,null,null,"Ja"]
[{"$f":"\"Leverans till mottagande förvaltning senast: \"&IF(B2=\"Fyll i datum\",\"Fyll i datum\",TEXT(EDATE(B2,-6),\"ÅÅÅÅ-MM-DD\"))","v":"Leverans till mottagande förvaltning senast: Fyll i datum"},null,null,null,null,null,"Ja"]
["Teknisk dokumentation"]
["Kabelanläggning","Optokabelanläggning med optokabel","Telekabelplan","pdf","dgn","TELE",null,null,null,null,null,null,"Projektets lagringsyta","PW/ICT"]
[null,null,"Schematisk kabelplan","pdf","dgn, dwg"," --"]
[null,null,"Kabelstativ/Stativ","pdf","dgn, dwg"," --"]
[null,null,"Utskarvningsplan","pdf","dgn, dwg"," --"]
[null,null,"Uppställningsplan","pdf","dgn, dwg"," --"]
[null,null,"Kabellägesplan/Mätbok","pdf","dgn, dwg"," --"]
[null,"Optiska spridningsnät","Telekabelplan","pdf","dgn","TELE"]
[null,null,"Schematisk kabelplan","pdf","dgn, dwg"," --"]
[null,null,"Kabelstativ/Stativ","pdf","dgn, dwg"]
[null,null,"Utskarvningsplan","pdf","dgn, dwg"," --"]
[null,"Optokabelanläggning med multidukt och mikrokabel ","Telekabelplan","pdf","dgn","TELE"]
[null,null,"Schematisk kabelplan","pdf","dgn, dwg"," --"]
[null,null,"Kabelstativ/Stativ","pdf","dgn, dwg"," --"]
[null,null,"Utskarvningsplan","pdf","dgn, dwg"," --"]
[null,null,"Uppställningsplan","pdf","dgn, dwg"," --"]
[null,"Kopparkabelanläggning","Telekabelplan","pdf","dgn","TELE"]
[null,null,"Kabelstativ/Stativ","pdf","dgn, dwg"," --"]
[null,null,"Avgrenings-/inkopplingsritning (MOK)","pdf","dgn, dwg"," --"]
[null,null,"Skarv- och kabellägesplan (MOK)","pdf","dgn, dwg"," --"]
[null,null,"Ledningsplan","pdf","xlsx"," --"]
["Kraft - Tele","All kraft","Dispositionsritning","pdf","dgn, dwg"," --"]
[null,null,"Stativritning","pdf","dgn, dwg"," --"]
[null,null,"Uppställningsplan","pdf","dgn, dwg"," --"]
[null,null,"Abbonemangsuppgifter El"," --","docx, xlsx"," --"]
[null,"Likriktarsystem 48V","Dispositionsunderlag","pdf","dgn, dwg "," --"]
[null,null,"Systemritning ","pdf"," --"," --"]
[null,null,"Apparatlista ","pdf","docx, xlsx"," --"]
[null,null,"Kabellista ","pdf","xlsx"," --"]
[null,null,"Batterier","pdf","docx, xlsx"," --"]
["Nödfrånkopplingsslinga - Kopparkabel",null,"Nödfrånkopplingsslinga - Kopparkabel","pdf","dgn, dwg"," --"]
["Teletransmission",null,"Dispositionsritning ","pdf","dgn, dwg, xlsx"," --"]
[null,null,"Stativritning ","pdf","dgn, dwg"," --"]
[null,null,"Uppställningsplan ","pdf","dgn, dwg"," --"]
["10 veckor före inkoppling",null,null,null,null,null,"Ja"]
[{"$f":"\"Leverans till mottagande förvaltning senast: \"&IF(B2=\"Fyll i datum\",\"Fyll i datum\",TEXT(DATE(YEAR(B2),MONTH(B2),DAY(B2)-70),\"ÅÅÅÅ-MM-DD\"))","v":"Leverans till mottagande förvaltning senast: Fyll i datum"},null,null,null,null,null,"Ja"]
["Teknisk dokumentation"]
["Kabelanläggning","Optokabelanläggning med optokabel","Koordinatförteckning kabel","pdf","dgn och kml"," --",null,null,null,null,null,null,"Projektets lagringsyta","PW/ICT"]
[null,null,"Protokoll från optiska mätningar","pdf","sor eller motsvarande"," --"]
[null,"Optiska spridningsnät","Koordinatförteckning kabel","pdf","dgn och kml"," --"]
[null,null,"Protokoll från optiska mätningar","pdf"," --"," --"]
[null,"Optokabelanläggning med multidukt och mikrokabel ","Koordinatförteckning dukt och kabel","pdf","dgn och kml"," --"]
[null,null,"Koordinatförteckning skarvskåp, skarvbrunnar och multiduktskarvar","pdf","xlsx"," --"]
[null,null,"Protokoll från optiska mätningar","pdf"," --"," --"]
["3 månader efter slutbesiktning",null,null,null,null,null,"Ja"]
[{"$f":"\"Leverans till mottagande förvaltning senast: \"&IF(B3=\"Fyll i datum\",\"Fyll i datum\",TEXT(EDATE(B3,3),\"ÅÅÅÅ-MM-DD\"))","v":"Leverans till mottagande förvaltning senast: Fyll i datum"},null,null,null,null,null,"Ja"]
["Teknisk dokumentation"]
["Kabelanläggning","Optokabelanläggning med optokabel","Telekabelplan","pdf","dgn","TELE",null,null,null,null,null,null,"Projektets lagringsyta","PW/ ICT"]
[null,null,"Schematisk kabelplan","pdf","dgn, dwg"," --"]
[null,null,"Kabelstativ/Stativ","pdf","dgn, dwg"," --"]
[null,null,"Utskarvningsplan","pdf","dgn, dwg"," --"]
[null,null,"Uppställningsplan","pdf","dgn, dwg"," --"]
[null,null,"Kabellägesplan/Mätbok","pdf","dgn, dwg"," --"]
[null,null,"Avtal","pdf","docx"," --"]
[null,null,"Besiktningsprotokoll","pdf"," --"," --"]
[null,null,"Foto","jpg"," --"," --"]
[null,"Optiska spridningsnät","Telekabelplan","pdf","dgn","TELE"]
[null,null,"Schematisk kabelplan","pdf","dgn, dwg"," --"]
[null,null,"Kabelstativ/Stativ","pdf","dgn, dwg"]
[null,null,"Utskarvningsplan","pdf","dgn, dwg"]
[null,"Optokabelanläggning med multidukt och mikrokabel ","Telekabelplan","pdf","dgn","TELE"]
[null,null,"Schematisk kabelplan","pdf","dgn, dwg"," --"]
[null,null,"Kabelstativ/Stativ","pdf","dgn, dwg"," --"]
[null,null,"Utskarvningsplan","pdf","dgn, dwg"," --"]
[null,null,"Uppställningsplan","pdf","dgn, dwg"," --"]
[null,null,"Avtal","pdf","docx"," --"]
[null,null,"Besiktningsprotokoll","pdf"," --"," --"]
[null,null,"Foto","jpg"," --"," --"]
[null,"Kopparkabelanläggning","Telekabelplan","pdf","dgn","TELE"]
[null,null,"Kabelstativ/Stativ","pdf","dgn, dwg"," --"]
[null,null,"Avgrenings-/inkopplingsritning (MOK)","pdf","dgn, dwg"," --"]
[null,null,"Skarv- och kabellägesplan (MOK)","pdf","dgn, dwg"," --"]
[null,null,"Ledningsplan","pdf","xlsx"," --"]
[null,null,"Mätprotokoll för mellanortskabel","pdf"," --"," --"]
[null,null,"Tryckskydd","pdf"," --"," --"]
[null,null,"T-Jordning - Protokoll på jordtagsmätning","pdf","docx, xlsx"," --"]
[null,null,"Avtal","pdf","docx"," --"]
[null,null,"Besiktningsprotokoll","pdf"," --"," --"]
[null,null,"Foto","jpg"," --"," --"]
["Kraft - Tele","All kraft","Dispositionsritning","pdf","dgn, dwg"," --"]
[null,null,"Stativritning","pdf","dgn, dwg"," --"]
[null,null,"Uppställningsplan","pdf","dgn, dwg"," --"]
[null,null,"Abbonemangsuppgifter El"," --","docx, xlsx"," --"]
[null,"Likriktarsystem 48V","Dispositionsunderlag","pdf","dgn, dwg "," --"]
[null,null,"Systemritning ","pdf"," --"," --"]
[null,null,"Apparatlista ","pdf","docx, xlsx"," --"]
[null,null,"Foton","jpg"," --"," --"]
[null,null,"Kabellista ","pdf","xlsx"]
[null,null,"Batterier","pdf","docx, xlsx"," --"]
["Nödfrånkopplingsslinga - Kopparkabel",null,"Nödfrånkopplingsslinga - Kopparkabel","pdf","dgn, dwg"," --"]
["Teletransmission",null,"Besiktningsprotokoll","pdf","docx"," --"]
[null,null,"Dispositionsritning ","pdf","dgn, dwg, xlsx"," --"]
[null,null,"Stativritning ","pdf","dgn, dwg"," --"]
[null,null,"Uppställningsplan ","pdf","dgn, dwg"," --"]
[null,null,"Radiolänk ODU","pdf","dgn, dwg"," --"]
[]
["OBS! Relevant data/dokumentation kopplat till miljö ska levereras enligt flik 15.5 Miljö"]

{"sheet":"11.1 Trafikinformationsanl","index":34,"n_rows":34,"n_cols":14,"rows_kept":34,"cut":false,"hidden":false,"merged":[[4,5,4,9],[14,0,14,13],[4,11,4,12],[12,0,12,3],[13,0,13,3],[7,0,7,6],[8,0,8,13],[9,0,9,1],[9,10,11,10],[9,11,11,11],[10,0,10,1],[11,0,11,1],[6,0,6,13],[28,11,31,11],[27,0,27,13],[15,11,24,11],[15,0,23,0],[28,0,28,1],[29,0,29,1],[30,0,30,1],[25,0,25,3],[26,0,26,3],[31,0,31,1],[15,10,24,10],[28,10,31,10]]}
["Trafikinformationsanläggning"]
["Inkoppling:",{"$f":"IF(Projektuppgifter!G9=\"\",\"Fyll i datum\",Projektuppgifter!G9)","v":"Fyll i datum"},null,"Länk till flik Projektuppgifter"]
["Slutbesiktning: ",{"$f":"IF(Projektuppgifter!G10=\"\",\"Fyll i datum\",Projektuppgifter!G10)","v":"Fyll i datum"}]
[]
[null,null,null,null,"Fylls i av:","Projekt",null,null,null,null,"Information till projektet","Mottagande förvaltning",null,"Alla"]
["Det är av yttersta vikt att projekten leverera ",null,"Filformat\nvisningsfil","Filformat\nunderlagsfil","Uppbyggd av modellfil","Aktuellt att upprättas av projektet","Status på levererad data","Filnamn alt länk till levererad fil","Levereras av:\n- E (Entreprenör)\n- K (Konsult)\n- B (Beställare)\n(datum + namn)","Levererat till förvaltande system och aviserat leveransen till mottagande förvaltning, enligt TDOK 2016:0411\n(datum + namn + ärendenr.)","Leveransyta till förvaltande system","Förvaltande system","Godkänt \n(datum + namn + ärendenr.)","Eventuella kommentarer"]
["Vid färdig bygghandling, senast 6 månader före inkoppling \nJust nu är tidskravet missvisande, det kommer att ses över till kommande revideringar. \nTrafikinformation behöver få information om anläggningen INNAN BYGGSTART. Detta för att hinna kontrollera om anläggningen är projekterad på rätt sätt INNAN byggstart. (Tyvärr händer det att man projekterat på fel sätt och det har lett till fördyringar i projektet.)"]
[{"$f":"\"Leverans till mottagande förvaltning senast: \"&IF(B2=\"Fyll i datum\",\"Fyll i datum\",TEXT(EDATE(B2,-6),\"ÅÅÅÅ-MM-DD\"))","v":"Leverans till mottagande förvaltning senast: Fyll i datum"}]
["Teknisk dokumentation"]
["Situationsplan för dynamisk trafikinformationsutrustning ",null,"pdf","dgn"," --",null,null,null,null,null,"ProjectWise/Förvaltning Järnväg/Förvaltningsdata Leveranser/ _Resenärsinformation (BH)/ Bandel, projektnamn","PW/FJ"]
["Situationsplan för statiska skyltar",null,"pdf","dgn"," --"]
["Kabellista trafikinformationsutrustning",null,"pdf","xlsx"," --"]
["3 veckor efter inkoppling",null,null,null,null,"Ja"]
[{"$f":"\"Leverans till mottagande förvaltning senast: \"&IF(B2=\"Fyll i datum\",\"Fyll i datum\",TEXT(DATE(YEAR(B2),MONTH(B2),DAY(B2)+21),\"ÅÅÅÅ-MM-DD\"))","v":"Leverans till mottagande förvaltning senast: Fyll i datum"},null,null,null,null,"Ja"]
["Data för lagring i databas"]
["Nytt objekt:","TMALL 0649 Dynamisk skylt"," --","xlsx"," --",null,null,null,null,null,"Projektets lagringsyta","BIS"]
[null,"TMALL 0650 Statisk skylt"," --","xlsx"," --"]
[null,"TMALL 0645 Huvudur"," --","xlsx"," --"]
[null,"TMALL 0651 Högtalare"," --","xlsx"," --"]
[null,"TMALL 0851 Utropsdator"," --","xlsx"," --"]
[null,"TMALL 0852 Ljudanläggning"," --","xlsx"," --"]
[null,"TMALL 0652 Prator"," --","xlsx"," --"]
[null,"TMALL 0647 Stationsdator SL"," --","xlsx"," --"]
[null,"TMALL 0648 Ur"," --","xlsx"," --"]
["Ändrat/slopat objekt:","Slopnings- och ändringslista av objekten ovan"," --","xlsx"," --"]
["3 månader efter slutbesiktning",null,null,null,null,"Ja"]
[{"$f":"\"Leverans till mottagande förvaltning senast: \"&IF(B3=\"Fyll i datum\",\"Fyll i datum\",TEXT(EDATE(B3,3),\"ÅÅÅÅ-MM-DD\"))","v":"Leverans till mottagande förvaltning senast: Fyll i datum"},null,null,null,null,"Ja"]
["Teknisk dokumentation"]
["Situationsplan för dynamisk trafikinformationsutrustning ",null,"pdf","dgn","TELE_TI",null,null,null,null,null,"Ebbas leveransyta","Ebba"]
["Situationsplan för statiska skyltar",null,"pdf","dgn","TELE_TI"]
["Kabellista trafikinformationsutrustning",null,"pdf","xlsx"," --"]
["Foto på stativ (trafikinformationsutrustning)",null,"jpg"," --"," --"]
[]
["OBS! Relevant data/dokumentation kopplat till miljö ska levereras enligt flik 15.5 Miljö"]

{"sheet":"12.1 Övrig BIS-leverans","index":35,"n_rows":24,"n_cols":17,"rows_kept":24,"cut":false,"hidden":false,"merged":[[3,16,4,16],[14,11,21,11],[9,11,13,11],[3,10,4,10],[3,4,4,9],[4,12,4,14],[3,11,3,15],[14,15,21,15],[14,13,21,13],[8,10,21,10],[14,14,21,14],[23,0,23,4],[8,2,8,3],[10,0,10,1],[6,0,6,3],[7,0,7,3],[14,0,21,0],[13,0,13,1],[8,0,8,1],[9,0,9,1],[12,0,12,1],[11,0,11,1]]}
["Övrig BIS-leverans"]
["Inkoppling:",{"$f":"IF(Projektuppgifter!G9=\"\",\"Fyll i datum\",Projektuppgifter!G9)","v":"Fyll i datum"},null,"Länk till flik Projektuppgifter"]
[]
[null,null,null,null,"Projekt",null,null,null,null,null,"Information till projektet","Mottagande förvaltning",null,null,null,null,"Alla"]
[null,null,null,"Fylls i av:",null,null,null,null,null,null,null,null,"BIS",null,null,"GAD"]
[null,null,"Filformat\nvisningsfil","Filformat\nunderlagsfil","Aktuellt att upprättas av projektet","Länk till levererad fil","Levereras av:\n- E (Entreprenör)\n- K (Konsult)\n- B (Beställare)\n(datum + namn)","Levererat till förvaltande system och aviserat leveransen till mottagande förvaltning, enligt TDOK 2016:0411, kap BIS\n(datum + namn + ärendenr.)","Eventuella ändringar av tidigare levererade data eller dokumentation\n(Länk till leveransen)","BIS: Levererat till förvaltande system och aviserat ändringar (datum + namn + ärendenr.)","Leveransyta till förvaltande system","Förvaltande system","Mottaget\n(datum + namn + ärendenr.)","Inläst i BIS\n(datum + namn + ärendenr.)","Godkänt ändring\n(datum + namn + ärendenr.)","Inläst i GAD\n(datum + namn + ärendenr.)","Eventuella kommentarer"]
["6 månader före inkoppling",null,null,null,"Ja"]
[{"$f":"\"Leverans till mottagande förvaltning senast: \"&IF(B2=\"Fyll i datum\",\"Fyll i datum\",TEXT(EDATE(B2,-6),\"ÅÅÅÅ-MM-DD\"))","v":"Leverans till mottagande förvaltning senast: Fyll i datum"},null,null,null,"Ja"]
["Etapp-/projektbeskrivning",null,"Valfritt",null,"Ja",null,null,null,null,null,"Projektets lagringsyta"," --"]
["Spårgeometrier i plan och profil (inkl. rälsförhöjning och KM-konnektioner)  \nOBS! Om endast rälsförhöjningsändring levereras, levereras endast pdf",null,"pdf","LandXML",null,null,null,null,null,null,null,"BIS och GAD "]
["TMALL 0662 BIS - Hållplats, hållställe, övrig plats",null," --","xlsx"]
["TMALL 1054 Checklista - Kontroll av spårgeometrileverans",null," --","docx"]
["Koordinatförteckning KM-tavlor",null,"pdf","LandXML"]
["Koordinatförteckning spårväxlar, spårslut, vändskiva ",null,"pdf","LandXML"]
["Tillgång till systemhandling eller bygghandling ","Spårplan bana*","pdf"," --",null,null,null,null,null,null,null,"Dokumenten används som underlag för registrering av spårnät i BIS."]
[null,"Planritning signal*","pdf"," --"]
[null,"Isolritning*","pdf"," --"]
[null,"Instruktionsritning*","pdf"," --"]
[null,"Linjeritning*","pdf"," --"]
[null,"Kanalisationsritning*","pdf"," --"]
[null,"Elplan*","pdf"," --"]
[null,"Kopplingsschema*","pdf"," --"]
[]
["* Dessa enskilda dokument ska levereras tillsammans med övriga uppgifter till BIS, dvs det ska inte levereras som en länk till hela bygghandlingen. Detta eftersom det då blir svårt att hitta de efterfrågade dokumenten.\nOBS! Detta är ingen leverans för lagring av förvaltningsdata. Detta ska ske i Ebba, se respektive teknikområde."]

{"sheet":"13.1 Trafikstyrningssystem","index":36,"n_rows":9,"n_cols":8,"rows_kept":9,"cut":false,"hidden":false,"merged":[[3,3,3,5],[3,6,3,7],[7,0,7,7],[5,0,5,2],[6,0,6,2]]}
["Trafikstyrningssystem"]
["Inläsning:",{"$f":"IF(Projektuppgifter!G8=\"\",\"Fyll i datum\",Projektuppgifter!G8)","v":"Fyll i datum"},null,"Länk till flik Projektuppgifter"]
[]
[null,null,"Fylls i av:","Projekt",null,null,"Mottagande förvaltning"]
[null,"Filformat\nvisningsfil","Filformat\nunderlagsfil","Aktuellt att upprättas av projektet","Levereras av:\n- E (Entreprenör)\n- K (Konsult)\n- B (Beställare)\n(datum + namn)","Registrerat i inläsningsportalen\n(datum + namn)","Förvaltande system","Information: \nIngen kvittens sker i leveransplanen då inläsningssamordnare och IBTL-TC sköter detta i egen intern process."]
["4 månader före inläsning",null,null,"Ja"]
[{"$f":"\"Leverans till mottagande förvaltning senast: \"&IF(B2=\"Fyll i datum\",\"Fyll i datum\",TEXT(EDATE(B2,-4),\"ÅÅÅÅ-MM-DD\"))","v":"Leverans till mottagande förvaltning senast: Fyll i datum"},null,null,"Ja"]
["Data för lagring i databas"]
["Leverans av underlag till inläsningar i TC för anläggningsdataändringar i Tågledningssystemet","pdf","dgn, dwg",null,null,null,"Tågledningssystemet"]

{"sheet":"14.1 Fordonsöverv. detektor","index":37,"n_rows":30,"n_cols":18,"rows_kept":30,"cut":false,"hidden":false,"merged":[[21,12,27,12],[16,0,17,0],[16,12,17,12],[20,0,20,17],[21,0,27,0],[18,0,18,3],[19,0,19,3],[16,11,17,11],[21,11,27,11],[8,0,8,17],[6,0,6,3],[7,0,7,3],[4,4,4,10],[4,12,4,15],[15,0,15,17],[9,0,11,0],[9,12,12,12],[13,0,13,3],[14,0,14,3],[9,11,12,11]]}
["Fordonsövervakande detektorer"]
["Inkoppling:",{"$f":"IF(Projektuppgifter!G9=\"\",\"Fyll i datum\",Projektuppgifter!G9)","v":"Fyll i datum"},null,"Länk till flik Projektuppgifter"]
["Slutbesiktning: ",{"$f":"IF(Projektuppgifter!G10=\"\",\"Fyll i datum\",Projektuppgifter!G10)","v":"Fyll i datum"}]
[]
[null,null,null,"Fylls i av:","Projekt",null,null,null,null,null,null,"Information till projektet","Mottagande förvaltning",null,null,null,"Projekt","Alla"]
[null,null,"Filformat\nvisningsfil","Filformat\nunderlagsfil","Aktuellt att upprättas av projektet","Status på levererad data","Filnamn alt länk till levererad fil","Levereras av:\n- E (Entreprenör)\n- K (Konsult)\n- B (Beställare)\n(datum + namn)","Levererat till förvaltande system och aviserat leveransen till mottagande förvaltning, enligt TDOK 2016:0411\n(datum + namn + ärendenr.)","BIS: Eventuella ändringar av tidigare levererade data eller dokumentation\n(Länk till leveransen)","BIS: Levererat till förvaltande system och aviserat ändringar (datum + namn + ärendenr.)","Leveransyta till förvaltande system","Förvaltande system","Mottaget\n(datum + namn + ärendenr.)","Godkänt \n(datum + namn + ärendenr.)","Godkänt ändring\n(datum + namn + ärendenr.)","Papperskopior är utlagda i anläggning (datum + namn)","Eventuella kommentarer"]
["6 månader före inkoppling",null,null,null,"Ja"]
[{"$f":"\"Leverans till mottagande förvaltning senast: \"&IF(B2=\"Fyll i datum\",\"Fyll i datum\",TEXT(EDATE(B2,-6),\"ÅÅÅÅ-MM-DD\"))","v":"Leverans till mottagande förvaltning senast: Fyll i datum"},null,null,null,"Ja"]
["Data för lagring i databas"]
["Nytt objekt:","TMALL 0644 Detektor"," --","xlsx",null,null,null,null,null,null,null,"Projektets lagringsyta","BIS"]
[null,"TMALL 0810 Ras- och skredvarningssystem"," --","xlsx"]
[null,"TMALL 0642 Urspårningsslinga"," --","xlsx"]
["Ändrat/slopat objekt:","Slopnings- och ändringslista av objekten ovan"," --","xlsx"]
["Dagen för inkoppling",null,null,null,"Ja"]
[{"$f":"\"Leverans till mottagande förvaltning senast: \"&IF(B2=\"Fyll i datum\",\"Fyll i datum\",TEXT(DATE(YEAR(B2),MONTH(B2),DAY(B2)),\"ÅÅÅÅ-MM-DD\"))","v":"Leverans till mottagande förvaltning senast: Fyll i datum"},null,null,null,"Ja"]
["Teknisk dokumentation"]
["RFID-detektor","Installationsprotokoll","pdf"," --",null,null,null,null,null,null,null,"Ebbas leveransyta","Ebba"]
[null,"Foto","pdf, jpg"," --"]
["3 månader efter slutbesiktning",null,null,null,"Ja"]
[{"$f":"\"Leverans till mottagande förvaltning senast: \"&IF(B3=\"Fyll i datum\",\"Fyll i datum\",TEXT(EDATE(B3,3),\"ÅÅÅÅ-MM-DD\"))","v":"Leverans till mottagande förvaltning senast: Fyll i datum"},null,null,null,"Ja"]
["Teknisk dokumentation"]
["Varmgångs-/tjuvbromsdetektor, Hjulskadedetektor, Strömavtagardetektor eller Upplyftsdetektor","Foto","pdf"," --",null,null,null,null,null,null,null,"Ebbas leveransyta","Ebba"]
[null,"Karta","pdf"," --"]
[null,"Besiktningsprotokoll","pdf"," --"]
[null,"Förvaltningsdokument","pdf"," --"]
[null,"Konstruktionsritning","pdf","dgn, dwg"]
[null,"Situationsplan","pdf","dgn"]
[null,"Detektorkiosk - Disposition","pdf","dgn, dwg"]
[]
["OBS! Relevant data/dokumentation kopplat till miljö ska levereras enligt flik 15.5 Miljö"]

{"sheet":"15.1 Admin. o funkt. företeelse","index":38,"n_rows":23,"n_cols":16,"rows_kept":23,"cut":false,"hidden":false,"merged":[[14,0,14,3],[8,11,12,11],[13,0,13,3],[15,0,15,15],[8,10,12,10],[8,0,11,0],[7,0,7,15],[5,0,5,3],[6,0,6,3],[3,4,3,9],[3,11,3,14],[16,11,17,11],[17,2,17,3],[20,0,20,15],[21,11,22,11],[18,0,18,3],[19,0,19,3],[17,0,17,1],[16,0,16,1],[21,10,22,10]]}
["Administrativ och funktionell företeelse"]
["Inkoppling:",{"$f":"IF(Projektuppgifter!G9=\"\",\"Fyll i datum\",Projektuppgifter!G9)","v":"Fyll i datum"},null,"Länk till flik Projektuppgifter"]
[]
[null,null,null,"Fylls i av:","Projekt",null,null,null,null,null,"Information till projektet","Mottagande förvaltning",null,null,null,"Alla"]
[null,null,"Filformat\nvisningsfil","Filformat\nunderlagsfil","Aktuellt att upprättas av projektet","Länk till levererad fil","Levereras av:\n- E (Entreprenör)\n- K (Konsult)\n- B (Beställare)\n(datum + namn)","Levererat till förvaltande system och aviserat leveransen till mottagande förvaltning, enligt TDOK 2016:0411\n(datum + namn + ärendenr.)","BIS: Eventuella ändringar av tidigare levererade data\n(Länk till leveransen)","BIS: Levererat till förvaltande system och aviserat ändringar (datum + namn + ärendenr.)","Leveransyta till förvaltande system","Förvaltande system","Mottaget\n(datum + namn + ärendenr.)","Godkänt \n(datum + namn + ärendenr.)","Godkänt ändring\n(datum + namn + ärendenr.)","Eventuella kommentarer"]
["6 månader före inkoppling",null,null,null,"Ja"]
[{"$f":"\"Leverans till mottagande förvaltning senast: \"&IF(B2=\"Fyll i datum\",\"Fyll i datum\",TEXT(EDATE(B2,-6),\"ÅÅÅÅ-MM-DD\"))","v":"Leverans till mottagande förvaltning senast: Fyll i datum"},null,null,null,"Ja"]
["Data för lagring i databas"]
["Nytt objekt:","TMALL 0812 STH A_B_S-tåg (ERTMS)"," --","xlsx",null,null,null,null,null,null,"Projektets lagringsyta","BIS"]
[null,"TMALL 0876 Ktl U/L-område"," --","xlsx"]
[null,"TMALL 1295 ERTMS Hastighetsprofil Normalhuvudspår"," --","xlsx"]
[null,"TMALL 1296 ERTMS Hastighetsprofil Övriga spår"," --","xlsx"]
["Ändrat/slopat objekt:","Slopnings- och ändringslista av objekten ovan"," --","xlsx"]
["1 vecka efter inkoppling",null,null,null,"Ja"]
[{"$f":"\"Leverans till mottagande förvaltning senast: \"&IF(B2=\"Fyll i datum\",\"Fyll i datum\",TEXT(DATE(YEAR(B2),MONTH(B2),DAY(B2)+7),\"ÅÅÅÅ-MM-DD\"))","v":"Leverans till mottagande förvaltning senast: Fyll i datum"},null,null,null,"Ja"]
["Data för lagring i databas"]
["FOMUL (Enstaka objekt): TMALL 0341 ",null," --","xlsx",null,null,null,null,null,null,"Projektets lagringsyta","BIS"]
["FOMUL inklusive LÖ-spåravstånd (Vid förändring av spårets läge eller ändring av flera objekt)",null,"Mätoperatören sköter både registrering och slopning i BIS",null,null,null,"Anvisad mätoperatör",null,null,null,"Mätoperatören sköter både registrering och slopning i BIS. Projektet får själv ha kontroll på att detta utförs av mätoperatören.",null,"Ingen kvittens","Ingen kvittens"]
["3 veckor efter inkoppling",null,null,null,"Ja"]
[{"$f":"\"Leverans till mottagande förvaltning senast: \"&IF(B2=\"Fyll i datum\",\"Fyll i datum\",TEXT(DATE(YEAR(B2),MONTH(B2),DAY(B2)+21),\"ÅÅÅÅ-MM-DD\"))","v":"Leverans till mottagande förvaltning senast: Fyll i datum"},null,null,null,"Ja"]
["Data för lagring i databas"]
["Nytt objekt:","TMALL 0813 Uppställningsspår"," --","xlsx",null,null,null,null,null,null,"Projektets lagringsyta","BIS"]
["Ändrat/slopat objekt:","Slopnings- och ändringslista av objektet ovan"," --","xlsx"]

{"sheet":"15.2 Baskarta","index":39,"n_rows":11,"n_cols":13,"rows_kept":11,"cut":false,"hidden":false,"merged":[[3,4,3,8],[3,10,3,11],[7,0,7,12],[5,0,5,3],[6,0,6,3]]}
["Baskarta"]
["Slutbesiktning: ",{"$f":"IF(Projektuppgifter!G10=\"\",\"Fyll i datum\",Projektuppgifter!G10)","v":"Fyll i datum"},null,"Länk till flik Projektuppgifter"]
[]
[null,null,null,"Fylls i av:","Projekt",null,null,null,null,"Information till projektet","Mottagande förvaltning",null,"Alla"]
[null,"Filformat\nvisningsfil","Filformat\nunderlagsfil","Uppbyggt av modellfil","Aktuellt att upprättas av projektet","Status på levererad data","Filnamn","Levereras av:\n- E (Entreprenör)\n- K (Konsult)\n- B (Beställare)\n(datum + namn)","Levererat till förvaltande system och aviserat leveransen till mottagande förvaltning, enligt TDOK 2016:0411\n(datum + namn + ärendenr.)","Leveransyta till förvaltande system","Förvaltande system","Godkänt \n(datum + namn + ärendenr.)","Eventuella kommentarer"]
["3 månader efter slutbesiktning",null,null,null,"Ja"]
[{"$f":"\"Leverans till mottagande förvaltning senast: \"&IF(B2=\"Fyll i datum\",\"Fyll i datum\",TEXT(EDATE(B2,3),\"ÅÅÅÅ-MM-DD\"))","v":"Leverans till mottagande förvaltning senast: Fyll i datum"},null,null,null,"Ja"]
["Teknisk dokumentation"]
["Baskarta","pdf","dgn","BAN, MARK, EL_KTL, SIGNAL",null,null,null,null,null,"Ebbas leveransyta","Ebba"]
[]
["OBS! Finns det inga modellfiler ska analog ritning uppdateras."]

{"sheet":"15.3 Byggnad","index":40,"n_rows":26,"n_cols":12,"rows_kept":26,"cut":false,"hidden":false,"merged":[[9,9,21,9],[4,3,4,7],[4,9,4,10],[8,0,8,11],[6,0,6,2],[7,0,7,2],[9,8,21,8]]}
["Byggnad"]
["Slutbesiktning: ",{"$f":"IF(Projektuppgifter!G10=\"\",\"Fyll i datum\",Projektuppgifter!G10)","v":"Fyll i datum"},null,"Länk till flik Projektuppgifter"]
[]
["Detta gäller inte teknikbyggnad, t.ex. teknikhus, kiosk, kur"]
[null,null,"Fylls i av:","Projekt",null,null,null,null,"Information till projektet","Mottagande förvaltning",null,"Alla"]
[null,"Filformat\nvisningsfil","Filformat\nunderlagsfil","Aktuellt att upprättas av projektet","Status på levererad data","Filnamn","Levereras av:\n- E (Entreprenör)\n- K (Konsult)\n- B (Beställare)\n(datum + namn)","Levererat till förvaltande system och aviserat leveransen till mottagande förvaltning, enligt TDOK 2016:0411\n(datum + namn + ärendenr.)","Leveransyta till förvaltande system","Förvaltande system","Godkänt \n(datum + namn)","Eventuella kommentarer"]
["3 månader efter slutbesiktning",null,null,"Ja"]
[{"$f":"\"Leverans till mottagande förvaltning senast: \"&IF(B2=\"Fyll i datum\",\"Fyll i datum\",TEXT(EDATE(B2,3),\"ÅÅÅÅ-MM-DD\"))","v":"Leverans till mottagande förvaltning senast: Fyll i datum"},null,null,"Ja"]
["Teknisk dokumentation"]
["Dokumentförteckning","pdf","docx",null,null,null,null,null,"ProjectWise/Förvaltning Järnväg/Förvaltningsdata Leveranser/ _Byggnad","PW/FU länkas till LEB"]
["Foto","jpg"," -- "]
["Bygg-/rivlovshandling","pdf","dgn, dwg, docx"]
["Situationsplan","pdf","dgn, dwg"]
["Arkitektritning","pdf","dgn, dwg"]
["Konstruktionsritning","pdf","dgn, dwg"]
["El och tele","pdf","dgn, dwg, docx"]
["Värme och sanitet","pdf","dgn, dwg, docx"]
["Luftbehandling","pdf","dgn, dwg, docx"]
["Kyla (Komfortkyla)","pdf","dgn, dwg, docx"]
["Styr och regler","pdf","dgn, dwg, docx"]
["PCB-protokoll","pdf","docx"]
["Myndighetsbesiktning","pdf","docx"]
[]
["Byggs, rivs eller flyttas en byggnad ska modellfil MARK tas fram/uppdateras och en ny/uppdaterad baskarta tas fram."]
[]
["OBS! Relevant data/dokumentation kopplat till miljö ska levereras enligt flik 15.5 Miljö"]

{"sheet":"15.4 Mark","index":41,"n_rows":31,"n_cols":14,"rows_kept":31,"cut":false,"hidden":false,"merged":[[3,11,3,12],[3,5,3,9],[7,0,7,13],[5,0,5,4],[6,0,6,4],[8,11,26,11],[14,0,14,1],[15,0,15,1],[16,0,16,1],[17,0,26,0],[8,10,26,10],[8,0,8,1],[9,0,9,1],[10,0,10,1],[11,0,11,1],[12,0,12,1],[13,0,13,1]]}
["Mark"]
["Slutbesiktning: ",null,{"$f":"IF(Projektuppgifter!G10=\"\",\"Fyll i datum\",Projektuppgifter!G10)","v":"Fyll i datum"},null,"Länk till flik Projektuppgifter"]
[]
[null,null,null,null,"Fylls i av:","Projekt",null,null,null,null,"Information till projektet","Mottagande förvaltning",null,"Alla"]
[null,null,"Filformat\nvisningsfil","Filformat\nunderlagsfil","Uppbyggd av modellfil","Aktuellt att upprättas av projektet","Status på levererad data","Filnamn","Levereras av:\n- E (Entreprenör)\n- K (Konsult)\n- B (Beställare)\n(datum + namn)","Levererat till förvaltande system och aviserat leveransen till mottagande förvaltning, enligt TDOK 2016:0411\n(datum + namn + ärendenr.)","Leveransyta till förvaltande system","Förvaltande system","Godkänt \n(datum + namn + ärendenr.)","Eventuella kommentarer"]
["3 månader efter slutbesiktning",null,null,null,null,"Ja"]
[{"$f":"\"Leverans till mottagande förvaltning senast: \"&IF(C2=\"Fyll i datum\",\"Fyll i datum\",TEXT(EDATE(C2,3),\"ÅÅÅÅ-MM-DD\"))","v":"Leverans till mottagande förvaltning senast: Fyll i datum"},null,null,null,null,"Ja"]
["Teknisk dokumentation"]
["Tillståndsbedömning",null,"pdf (bild jpg)","docx, xlsx, dgn, dwg"," --",null,null,null,null,null,"Ebbas leveransyta","Ebba"]
["Anläggningsbeskrivning",null,"pdf","docx"," --"]
["Ledningsplan",null,"pdf","dgn","MARK"]
["Ledningsprofil",null,"pdf","dgn, dwg"," --"]
["Normalsektion",null,"pdf","dgn, dwg"," --"]
["Ritningar över tillträdes-, service och räddningsvägar",null,"pdf","dgn, dwg (modellfil i dgn)","MARK"]
["Installationsritning",null,"pdf","dgn, dwg"," --"]
["Drift-/underhållsinstruktion",null,"pdf"," --"," --"]
["Kontrollprogram (Miljö)",null,"pdf","docx"," --"]
["Sidotrumma (längs med järnväg)","Anläggningsskiss","pdf","dgn, dwg"," --"]
[null,"Ritningar","pdf","dgn, dwg"," --"]
[null,"Avvattning/Mark/Geotekniskt PM","pdf","dgn, dwg"," --"]
[null,"Slopad trumma","pdf","dgn, dwg"," --"]
[null,"Avtal","pdf"," --"," --"]
[null,"Miljödom","pdf"," --"," --"]
[null,"Beslut om anmäld vattenverksamhet","pdf"," --"," --"]
[null,"Övriga myndighetsbeslut","pdf"," --"," --"]
[null,"Kontrollprogram miljö","pdf"," --"," --"]
[null,"Skötselbeskrivning","pdf","docx"," --"]
[]
["Vid nya eller förändrade av markobjekt ska modellfil MARK tas fram/uppdateras och ny/uppdaterad baskarta ska tas fram."]
[]
["OBS! Relevant data/dokumentation kopplat till miljö ska levereras enligt flik 15.5 Miljö"]

{"sheet":"15.5 Miljö","index":42,"n_rows":46,"n_cols":15,"rows_kept":46,"cut":false,"hidden":false,"merged":[[20,3,20,4],[10,11,20,11],[23,11,36,11],[37,11,41,11],[3,12,3,13],[7,0,7,14],[8,9,9,9],[3,5,3,10],[9,0,20,0],[11,12,20,12],[13,1,13,2],[18,3,18,4],[20,1,20,2],[14,1,14,2],[11,3,11,4],[12,3,12,4],[41,1,41,2],[32,1,34,1],[35,1,36,1],[37,0,41,0],[39,1,39,2],[37,1,37,2],[38,1,38,2],[1,0,1,1],[17,1,17,2],[18,1,18,2],[8,1,8,2],[9,1,9,2],[6,0,6,4],[5,0,5,4],[10,3,10,4],[12,1,12,2],[15,1,15,2],[16,1,16,2],[15,3,15,4],[16,3,16,4],[22,1,26,1],[22,0,36,0],[22,2,22,4],[37,12,41,12],[8,3,8,4],[10,1,10,2],[13,3,13,4],[14,3,14,4],[17,3,17,4],[11,1,11,2],[19,1,19,2],[21,0,21,14],[23,12,36,12],[19,3,19,4],[27,1,31,1],[40,1,40,2]]}
["Miljö"]
["Slutbesiktning: ",null,{"$f":"IF(Projektuppgifter!G10=\"\",\"Fyll i datum\",Projektuppgifter!G10)","v":"Fyll i datum"},null,"Länk till flik Projektuppgifter"]
[]
[null,null,null,null,"Fylls i av:","Projekt (OBS! Kolumn K gäller UH)",null,null,null,null,null,"Information till projektet","Mottagande förvaltning",null,"Alla"]
[null,null,null,"Filformat \nvisningsfil","Filformat\nunderlagsfil","Aktuellt att upprättas av projektet","Filnamn","Levereras av:\n- E (Entreprenör)\n- K (Konsult)\n- B (Beställare)\n(datum + namn)","Skickat mail och länk till material för granskning till jarnvag_anlaggningmiljo@trafikverket.se. För granskning av miljökompentens på UH\nOBS! Allt material för granskning ska vara samlat i EN leveransyta (beslutad av projektet), för att det ska vara lätt för UH att hitta det samlade materialet inför granskning.\nAllt material ska levereras vid EN tidpunkt!","Godkänt av miljökompetens på UH\n(datum + namn)","Levererat till förvaltande system/registrerat och aviserat leveransen till mottagande förvaltning, enligt TDOK 2016:0411\n(datum + namn + ärendenr.)","Leveransyta till förvaltande system","Förvaltande system","Leveranskontrollerat\n(datum + namn + ärendenr.)","Eventuella kommentarer"]
["3 månader efter slutbesiktning",null,null,null,null,"Ja"]
[{"$f":"\"Leverans till mottagande förvaltning senast: \"&IF(C2=\"Fyll i datum\",\"Fyll i datum\",TEXT(EDATE(C2,3),\"ÅÅÅÅ-MM-DD\"))","v":"Leverans till mottagande förvaltning senast: Fyll i datum"},null,null,null,null,"Ja"]
["Data för lagring i databas"]
["Förorenade områden","TMALL 0006 Förteckning Förorenade områden för inmatning i LEB",null,"Registreras direkt i LEB",null,null,null,null,null,null,null,"Registrering sker direkt i LEB","LEB"]
["Övrigt om miljö","TMALL 0188 Import till projektnav",null,"xlsx"," --",null,null,null,null,null,null,"TMALL:en bifogas i aviseringsmailet.","Projektnav"]
[null,"Analysdata, mätdata",null,"Aktuell för databasen",null,null,null,null,null,null,null,"Inte aktuellt","Redbex",null,"Dialog om lagringsplats"]
[null,"Artrik järnvägsmiljö",null,"Registreras direkt i Miljöwebb Landskap",null,null,null,null,null,null,null,null,"Miljöwebb Landskap"]
[null,"Bevarandevärd bro",null,"Registreras direkt i Miljöwebb Landskap"]
[null,"Faunapassage för medelstora däggdjur",null,"Registreras direkt i Miljöwebb Landskap"]
[null,"Faunapassage för stora däggdjur",null,"Registreras direkt i Miljöwebb Landskap"]
[null,"Grod- och kräldjurskonstruktion",null,"Registreras direkt i Miljöwebb Landskap"]
[null,"Kulturhistorisk järnvägsmiljö",null,"Registreras direkt i Miljöwebb Landskap"]
[null,"Solitära träd",null,"Registreras direkt i Miljöwebb Landskap"]
[null,"Stenmur",null,"Registreras direkt i Miljöwebb Landskap"]
[null,"Vattenfaunapassage",null,"Registreras direkt i Miljöwebb Landskap"]
[null,"Övrig miljöföreteelse",null,"Registreras direkt i Miljöwebb Landskap"]
["Teknisk dokumentation"]
["Förorenade områden","Juridik","Myndighetsbeslut enligt miljölagstiftning\nInformation om myndighetsbeslut enligt miljölagstiftning anges i ”TMALL 0007 Förteckning Tillstånd, anmälningsärenden, dispenser enligt miljölagstiftning”, för lagring i Ebba."]
[null,null,"Anmälan och beslut","pdf","docx",null,null,null,null,null,null,"Dokumentation ska registreras i Diariet eller i ProjectWise/Förvaltning Underhåll/BV Fastighetsverksamhet/B Fastighetsknutna dokument/Miljö. \n\nDärefter ska dokumenten  länkas in i LEB. Detta ska utföras av projektet/ underhållsdistriktet.","Diariet eller PW/FU med länk till LEB"]
[null,null,"Tillståndsansökan och beslut","pdf","docx"]
[null,null,"Föreläggande","pdf","docx"]
[null,null,"Avtal","pdf","docx"]
[null,"Inventering, undersökning","Inventering","pdf","docx, xlsx, dgn, dwg"]
[null,null,"Ansvars- och skälighetsbedömning","pdf","docx"]
[null,null,"Översiktlig undersökning","pdf","docx, xlsx, dgn, dwg"]
[null,null,"Detaljerad undersökning","pdf","docx, xlsx, dgn, dwg"]
[null,null,"Riskbedömning","pdf","docx, xlsx, dgn, dwg"]
[null,"Efterbehandling","Åtgärdsutredning, inklusive riskvärdering","pdf","docx, xlsx, dgn, dwg"]
[null,null,"Överlämnanderapport efterbehandling","pdf","docx, xlsx, dgn, dwg"]
[null,null,"Överlämnanderapport masshantering","pdf","docx, xlsx, dgn, dwg"]
[null,"Kontroll","Kontrollprogram","pdf","docx, xlsx, dgn, dwg"]
[null,null,"Övrigt","pdf","docx, xlsx, dgn, dwg"]
["Övrigt om miljö","TMALL 0173 Överlämnanderapport miljö*",null,"pdf","docx","Ja",null,null,null,null,null,"Ebbas leveransyta","Ebba"]
[null,"TMALL 0091 Miljösäkring plan och bygg \n(Överlämnas endast om den har använts i det överlämnande projektet.)",null,"xlsx"," --"]
[null,"TMALL 0007 Förteckning Tillstånd, anmälningsärenden, dispenser enligt miljölagstiftning",null,"xlsx"," --"]
[null,"TMALL 0558 Miljö - Materialförteckning** (OBS! Levereras som fristående fil, inte som en bilaga till Överlämnanderapport miljö.)",null,"xlsx (vid ev. bilagor används zip)"," --"]
[null,"TMALL 0559 Miljö - Kemikalieförteckning** (OBS! Levereras som fristående fil, inte som en bilaga till Överlämnanderapport miljö.)",null,"xlsx (vid ev. bilagor används zip)"," --"]
[]
["* Överlämnanderapport miljö ska alltid levereras, oavsett projekt."]
["** För kraftförsörjningsanläggningar ska material- och kemikalieförteckning levereras tillsammans med övrig dokumentation för kraftförsörjningsanläggningen (flik 6.4). Ingen leverans i denna flik 15.5 Miljö."]
["** För byggnadsverk ska även en pdf-fil levereras till BaTMan (flik 5.1, 5.2 och 5.3)."]

{"sheet":"15.6 Plankorsning","index":43,"n_rows":26,"n_cols":8,"rows_kept":26,"cut":false,"hidden":false,"merged":[[22,6,25,6],[17,6,18,6],[1,0,1,1],[18,1,18,2],[23,1,23,2],[24,1,24,2],[25,1,25,2],[10,0,10,2],[11,0,11,2],[2,0,2,1],[22,1,22,2],[21,0,21,7],[8,3,8,5],[16,0,16,7],[17,1,17,2],[14,0,14,2],[15,0,15,2],[19,0,19,2],[20,0,20,2],[12,0,12,7],[13,1,13,2]]}
["Plankorsning"]
["Inkopplingsdatum (Datum då plankorsningen tas i bruk för järnvägstrafik) :",null,{"$f":"IF(Projektuppgifter!G9=\"\",\"Fyll i datum\",Projektuppgifter!G9)","v":"Fyll i datum"}]
["Datum då plankorsningen tas ibruk för vägtrafik:",null,{"$f":"IF(Projektuppgifter!G7=\"\",\"Fyll i datum\",Projektuppgifter!G7)","v":"Fyll i datum"},null,"Länk till flik Projektuppgifter"]
[]
["Fylls i av projekt:","Projekt"]
["Plankorsningens ID: ID-nummer (5 siffror)","<id-nummer>"]
["Arbetsobjekts-ID: Uppgift från Plk-webb","<id-nummer>"]
[]
[null,null,"Fylls i av:","Projekt",null,null,"Mottagande förvaltning","Alla"]
[null,"Filformat\nvisningsfil","Filformat\nunderlagsfil","Aktuellt att upprättas av projektet","Levereras av:\n- E (Entreprenör)\n- K (Konsult)\n- B (Beställare)\n(datum + namn)","Registrerat i Plk webb\n(datum + namn)","Förvaltande system","Eventuella kommentarer"]
["6 månader före inkoppling (datum då plankorsningen tas i bruk för järnvägstrafik)",null,null,"Ja"]
[{"$f":"\"Leverans till mottagande förvaltning senast: \"&IF(C2=\"Fyll i datum\",\"Fyll i datum\",TEXT(EDATE(C2,-6),\"ÅÅÅÅ-MM-DD\"))","v":"Leverans till mottagande förvaltning senast: Fyll i datum"},null,null,"Ja"]
["Data för lagring i databas"]
["Uppgifter om ny plankorsning","Registreras direkt i Plk webb",null,null,null,null,"Plk webb"]
["4 mån före plankorsningen tagits i bruk för vägtrafik",null,null,"Ja"]
[{"$f":"\"Leverans till mottagande förvaltning senast: \"&IF(C3=\"Fyll i datum\",\"Fyll i datum\",TEXT(EDATE(C3,-4),\"ÅÅÅÅ-MM-DD\"))","v":"Leverans till mottagande förvaltning senast: Fyll i datum"},null,null,"Ja"]
["Data för lagring i databas"]
["Uppgifter om val av skyddsalternativ ","Registreras direkt i Plk-webb",null,null,null,null,"Plk webb"]
["Uppgifter om slopad plankorsning","Registreras direkt i Plk-webb"]
["1 månad efter att plankorsningen tas i eller ur bruk för vägtrafik",null,null,"Ja"]
[{"$f":"\"Leverans till mottagande förvaltning senast: \"&IF(C3=\"Fyll i datum\",\"Fyll i datum\",TEXT(EDATE(C3,1),\"ÅÅÅÅ-MM-DD\"))","v":"Leverans till mottagande förvaltning senast: Fyll i datum"},null,null,"Ja"]
["Data för lagring i databas"]
["Uppgifter om inventering ","Registreras direkt i Plk-webb",null,null,null,null,"Plk webb"]
["Uppgifter om val av skyddsalternativ ","Registreras direkt i Plk-webb"]
["Uppgifter om drifttagen eller stängd plankorsning","Registreras direkt i Plk-webb"]
["Uppgifter om slopad plankorsning","Registreras direkt i Plk-webb"]

{"sheet":"15.7 Pumpsystem","index":44,"n_rows":25,"n_cols":14,"rows_kept":25,"cut":false,"hidden":false,"merged":[[22,0,22,1],[9,9,10,9],[9,10,10,10],[14,10,22,10],[14,9,22,9],[14,0,14,1],[15,0,15,1],[16,0,16,1],[17,0,17,1],[18,0,18,1],[19,0,19,1],[20,0,20,1],[21,0,21,1],[4,4,4,8],[4,10,4,11],[11,0,11,3],[12,0,12,3],[13,0,13,13],[6,0,6,3],[7,0,7,3],[8,0,8,13]]}
["Pumpsystem"]
["Inkoppling:",{"$f":"IF(Projektuppgifter!G9=\"\",\"Fyll i datum\",Projektuppgifter!G9)","v":"Fyll i datum"},null,"Länk till flik Projektuppgifter"]
["Slutbesiktning: ",{"$f":"IF(Projektuppgifter!G10=\"\",\"Fyll i datum\",Projektuppgifter!G10)","v":"Fyll i datum"}]
[]
[null,null,null,"Fylls i av:","Projekt",null,null,null,null,"Information till projektet","Mottagande förvaltning",null,"Projekt","Alla"]
[null,null,"Filformat\nvisningsfil","Filformat\nunderlagsfil","Aktuellt att upprättas av projektet","Status på levererad data","Filnamn","Levereras av:\n- E (Entreprenör)\n- K (Konsult)\n- B (Beställare)\n(datum + namn)","Levererat till förvaltande system och aviserat leveransen till mottagande förvaltning, enligt TDOK 2016:0411\n(datum + namn + ärendenr.)","Leveransyta till förvaltande system","Förvaltande system","Godkänt \n(datum + namn + ärendenr.)","Papperskopior är utlagda i anläggning \n(datum + namn)","Eventuella kommentarer"]
["1 vecka efter inkoppling"]
[{"$f":"\"Leverans till mottagande förvaltning senast: \"&IF(B2=\"Fyll i datum\",\"Fyll i datum\",TEXT(DATE(YEAR(B2),MONTH(B2),DAY(B2)+7),\"ÅÅÅÅ-MM-DD\"))","v":"Leverans till mottagande förvaltning senast: Fyll i datum"},null,null,null,"Ja"]
["Data för lagring i databas"]
["Nytt objekt:","TMALL 0659 Teknikbyggnad"," --","xlsx",null,null,null,null,null,"Projektets leveransyta","BIS"]
["Ändrat/slopat objekt:","Slopnings- och ändringslista av objekten ovan"," --","xlsx"]
["3 månader efter slutbesiktning",null,null,null,"Ja"]
[{"$f":"\"Leverans till mottagande förvaltning senast: \"&IF(B3=\"Fyll i datum\",\"Fyll i datum\",TEXT(EDATE(B3,3),\"ÅÅÅÅ-MM-DD\"))","v":"Leverans till mottagande förvaltning senast: Fyll i datum"},null,null,null,"Ja"]
["Teknisk dokumentation"]
["Installations-/kabelplan",null,"pdf","dgn",null,null,null,null,null,"Ebbas leveransyta","Ebba"]
["Huvudledningsschema",null,"pdf","dgn, dwg"]
["Enlinjeschema (Översiktsschema)",null,"pdf","dgn, dwg"]
["Apparatlista",null,"pdf","dgn, dwg, xlsx, docx"]
["Kretsschema",null,"pdf","dgn, dwg"]
["Programvara för PLC",null," --","Beroende på system"]
["Anläggningsbeskrivning",null,"pdf","dgn, dwg, xlsx, docx"]
["Kabellista",null,"pdf","dgn, dwg, xlsx"]
["Driftsinstruktion/larminstruktion",null,"pdf","xlsx"]
[]
["OBS! Relevant data/dokumentation kopplat till miljö ska levereras enligt flik 15.5 Miljö"]

{"sheet":"15.8 Rangerbangård","index":45,"n_rows":64,"n_cols":14,"rows_kept":64,"cut":false,"hidden":false,"merged":[[54,9,57,9],[58,9,61,9],[23,9,34,9],[36,9,39,9],[41,9,42,9],[44,9,47,9],[49,9,52,9],[54,10,57,10],[58,0,61,0],[58,10,61,10],[23,10,34,10],[35,0,57,0],[35,1,35,13],[40,1,40,13],[43,1,43,13],[48,1,48,13],[53,1,53,13],[36,10,39,10],[41,10,42,10],[44,10,47,10],[49,10,52,10],[23,0,34,0],[34,2,34,3],[4,4,4,8],[4,10,4,11],[22,0,22,13],[20,0,20,3],[21,0,21,3],[6,0,6,3],[7,0,7,3],[8,0,8,13],[9,10,19,10],[9,0,18,0]]}
["Rangerbangård"]
["Inkoppling:",{"$f":"IF(Projektuppgifter!G9=\"\",\"Fyll i datum\",Projektuppgifter!G9)","v":"Fyll i datum"},null,"Länk till flik Projektuppgifter"]
["Slutbesiktning: ",{"$f":"IF(Projektuppgifter!G10=\"\",\"Fyll i datum\",Projektuppgifter!G10)","v":"Fyll i datum"}]
[]
[null,null,null,"Fylls i av:","Projekt/Leverantör",null,null,null,null,"Information till projektet","Mottagande förvaltning",null,"Projekt","Alla"]
[null,null,"Filformat\nvisningsfil","Filformat\nunderlagsfil","Aktuellt att upprättas av projektet","Filnamn","Status på levererad data","Levereras av:\n- E (Entreprenör)\n- K (Konsult)\n- B (Beställare)\n(datum + namn)","Levererat till förvaltande system och aviserat leveransen till mottagande förvaltning, enligt TDOK 2016:0411\n(datum + namn + ärendenr.)","Leveransyta till förvaltande system","Förvaltande system","Godkänt \n(datum + namn + ärendenr.)","Papperskopior är utlagda i anläggning \n(datum + namn)","Eventuella kommentarer"]
["3 veckor efter inkoppling",null,null,null,"Ja"]
[{"$f":"\"Leverans till mottagande förvaltning senast: \"&IF(B2=\"Fyll i datum\",\"Fyll i datum\",TEXT(DATE(YEAR(B2),MONTH(B2),DAY(B2)+21),\"ÅÅÅÅ-MM-DD\"))","v":"Leverans till mottagande förvaltning senast: Fyll i datum"},null,null,null,"Ja"]
["Data för lagring i databas"]
["Nytt objekt:","TMALL 1335 Avhängardäck"," --","xlsx",null,null,null,null,null,null,"BIS"]
[null,"TMALL 1326 Brandvattenförsörjning"," --","xlsx"]
[null,"TMALL 1334 Bromsprovsanläggning"," --","xlsx"]
[null,"TMALL 1337 Gångbana"," --","xlsx"]
[null,"TMALL 0571 Nödlägesskåp"," --","xlsx"]
[null,"TMALL 0573 Spillplatta"," --","xlsx"]
[null,"TMALL 1336 Tryckluftsanläggning"," --","xlsx"]
[null,"TMALL 0574 Varningsystem"," --","xlsx"]
[null,"TMALL 0575 Väderobservationsutrustning"," --","xlsx"]
[null,"TMALL 0570 Åtkomlighet och nödlägesinformation"," --","xlsx"]
["Ändrat/slopat objekt:","Slopnings- och ändringslista av objekten ovan"," --","xlsx"]
["3 månader efter slutbesiktning",null,null,null,"Ja"]
[{"$f":"\"Leverans till mottagande förvaltning senast: \"&IF(B3=\"Fyll i datum\",\"Fyll i datum\",TEXT(EDATE(B3,3),\"ÅÅÅÅ-MM-DD\"))","v":"Leverans till mottagande förvaltning senast: Fyll i datum"},null,null,null,"Ja"]
["Teknisk dokumentation"]
["Styr- och övervakning","Anläggningsbeskrivning ","pdf","docx"]
[null,"Drift- och underhållsinstruktion","pdf","docx"]
[null,"Larminstruktion","pdf","docx"]
[null,"Skåpvy/-layout","pdf","dgn, dwg"]
[null,"Apparatlista","pdf","xlsx"]
[null,"Huvudkretsschema","pdf","dgn, dwg"]
[null,"Yttre anslutningsschema","pdf","dgn, dwg"]
[null,"Kretsschema","pdf","dgn, dwg"]
[null,"Kabellista","pdf","xlsx"]
[null,"Provningsprotokoll","pdf","docx, xlsx"]
[null,"Manual och tekniska data","pdf","xlsx"]
[null,"Programvara för PLC","Beroende av system"]
["Utrustning för skydd mot olyckor","Brandvattenförsörjning"]
[null,"Ritningar","pdf","dgn, dwg",null,null,null,null,null,"Ebbas leveransyta","Ebba"]
[null,"Konstruktionsredovisning","pdf","docx"]
[null,"Drift- och underhållsplan","pdf","docx"]
[null,"Besiktningsprotokoll","pdf","docx"]
[null,"Nödlägeskarta"]
[null,"Ritningar","pdf","dgn, dwg, pptx",null,null,null,null,null,"Ebbas leveransyta","Ebba"]
[null,"Konstruktionsredovisning","pdf","docx"]
[null,"Nödlägesskåp"]
[null,"Ritningar","pdf","dgn, dwg",null,null,null,null,null,"Ebbas leveransyta","Ebba"]
[null,"Konstruktionsredovisning","pdf","docx"]
[null,"Drift- och underhållsplan","pdf","docx"]
[null,"Besiktningsprotokoll","pdf","docx"]
[null,"Spillplatta"]
[null,"Ritningar","pdf","dgn, dwg",null,null,null,null,null,"Ebbas leveransyta","Ebba"]
[null,"Konstruktionsredovisning","pdf","docx"]
[null,"Drift- och underhållsplan","pdf","docx"]
[null,"Besiktningsprotokoll","pdf","docx"]
[null,"Varningssystem"]
[null,"Ritningar","pdf","dgn, dwg",null,null,null,null,null,"Ebbas leveransyta","Ebba"]
[null,"Konstruktionsredovisning","pdf","docx"]
[null,"Drift- och underhållsplan","pdf","docx"]
[null,"Besiktningsprotokoll","pdf","docx"]
["Väderobservations-utrustning","Ritningar","pdf","dgn, dwg",null,null,null,null,null,"Ebbas leveransyta","Ebba"]
[null,"Konstruktionsredovisning","pdf","docx"]
[null,"Drift- och underhållsplan","pdf","docx"]
[null,"Besiktningsprotokoll","pdf","docx"]
[]
["OBS! Relevant data/dokumentation kopplat till miljö ska levereras enligt flik 15.5 Miljö"]

{"sheet":"15.10 Underlag till linjeboken","index":46,"n_rows":9,"n_cols":12,"rows_kept":9,"cut":false,"hidden":false,"merged":[[3,3,3,6],[3,8,3,10],[7,0,7,11],[5,0,5,2],[6,0,6,2]]}
["Underlag till linjeboken"]
["Inkoppling",{"$f":"IF(Projektuppgifter!G9=\"\",\"Fyll i datum\",Projektuppgifter!G9)","v":"Fyll i datum"},null,"Länk till flik Projektuppgifter"]
[]
[null,null,"Fylls i av:","Projekt",null,null,null,"Information till projektet","Mottagande förvaltning",null,null,"Alla"]
[null,"Filformat\nvisningsfil","Filformat\nunderlagsfil","Aktuellt att upprättas av projektet","Filnamn","Levereras av:\n- E (Entreprenör)\n- K (Konsult)\n- B (Beställare)\n(datum + namn)","Levererat till förvaltande system och aviserat leveransen till mottagande förvaltning, enligt TDOK 2016:0411\n(datum + namn + ärendenr.)","Leveransyta till förvaltande system","Förvaltande system","Mottaget\n(datum + namn + ärendenr.)","Godkänt \n(datum + namn + ärendenr.)","Eventuella kommentarer"]
["2 månader före inkoppling",null,null,"Ja"]
[{"$f":"\"Leverans till mottagande förvaltning senast: \"&IF(B2=\"Fyll i datum\",\"Fyll i datum\",TEXT(EDATE(B2,-2),\"ÅÅÅÅ-MM-DD\"))","v":"Leverans till mottagande förvaltning senast: Fyll i datum"},null,null,"Ja"]
["Teknisk dokumentation"]
["TMALL 0681 Leverans - Underlag till linjebok"," --","docx",null,null,null,null,"TMALL:en bifogas i aviseringsmailet.","Underlag till linjeboken"]

{"sheet":"15.11 Underlag till säk.plan","index":47,"n_rows":9,"n_cols":12,"rows_kept":9,"cut":false,"hidden":false,"merged":[[7,0,7,11],[3,3,3,6],[3,8,3,10],[5,0,5,2],[6,0,6,2]]}
["Underlag till säkerhetsplan, driftplats"]
["Inkoppling",{"$f":"IF(Projektuppgifter!G9=\"\",\"Fyll i datum\",Projektuppgifter!G9)","v":"Fyll i datum"},null,"Länk till flik Projektuppgifter"]
[]
[null,null,"Fylls i av:","Projekt",null,null,null,"Information till projektet","Mottagande förvaltning",null,null,"Alla"]
[null,"Filformat\nvisningsfil","Filformat\nunderlagsfil","Aktuellt att upprättas av projektet","Filnamn","Levereras av:\n- E (Entreprenör)\n- K (Konsult)\n- B (Beställare)\n(datum + namn)","Levererat till förvaltande system och aviserat leveransen till mottagande förvaltning, enligt TDOK 2016:0411\n(datum + namn + ärendenr.)","Leveransyta till förvaltande system","Förvaltande system","Mottaget\n(datum + namn)","Godkänt \n(datum + namn)","Eventuella kommentarer"]
["2 månader före inkoppling",null,null,"Ja"]
[{"$f":"\"Leverans till mottagande förvaltning senast: \"&IF(B2=\"Fyll i datum\",\"Fyll i datum\",TEXT(EDATE(B2,-2),\"ÅÅÅÅ-MM-DD\"))","v":"Leverans till mottagande förvaltning senast: Fyll i datum"},null,null,"Ja"]
["Teknisk dokumentation"]
["TMALL 1265 Uppgifter till säkerhetsplan"," --","docx",null,null,null,null,"TMALL:en bifogas i aviseringsmailet.","Underlag till säkerhetsplan"]

{"sheet":"Tillkomna dok.","index":48,"n_rows":4,"n_cols":8,"rows_kept":4,"cut":false,"hidden":false,"merged":[[2,5,2,6],[0,0,0,3]]}
["Tillkomna dokument",null,null,null,null,"Länk till flik Projektuppgifter"]
[]
[null,null,null,"Fylls i av:","Projekt","Mottagande förvaltning",null,"Notering"]
["Flik","Dokumentation","Filformat \nvisningsfil","Filformat\nunderlagsfil","Filnamn","Leveranskontrollerat\n(datum + signering + ärendenr.)","Inläst och godkänt \n(datum + signering + ärendenr.)","Vad ska TRV göra med dokumentet, då det inte anses vara FD?"]

{"sheet":"Levererat till extern part ","index":49,"n_rows":20,"n_cols":5,"rows_kept":20,"cut":false,"hidden":false,"merged":[[2,0,2,2],[0,0,0,2]]}
["Dokument som är levererade till extern part",null,null,null,"Länk till flik Projektuppgifter"]
[]
["Projekt"]
["Levererat till","Datum","Filnamn"]
[]
[]
[]
[]
[]
[]
[]
[]
[]
[]
[]
[]
[]
[]
[]
["Dokumenten lagras inte av förvaltningen utan lagras i projektets struktur."]

{"sheet":"Ändringslogg","index":50,"n_rows":291,"n_cols":6,"rows_kept":291,"cut":false,"hidden":false,"merged":[[43,1,58,1],[43,0,58,0],[43,4,58,4],[96,1,99,1],[96,4,99,4],[96,0,99,0],[71,1,80,1],[71,0,80,0],[71,4,80,4],[81,0,95,0],[81,1,95,1],[81,4,95,4],[38,1,42,1],[38,0,42,0],[3,0,9,0],[3,1,9,1],[3,4,9,4],[10,0,12,0],[10,1,12,1],[10,4,12,4],[25,0,27,0],[25,4,27,4],[28,4,34,4],[28,1,34,1],[28,0,34,0],[38,4,42,4],[100,0,104,0],[100,1,104,1],[100,4,104,4],[13,1,20,1],[13,0,20,0],[13,4,20,4],[59,1,70,1],[59,0,70,0],[59,4,70,4],[21,4,24,4],[21,1,24,1],[21,0,24,0],[35,0,37,0],[35,1,37,1],[35,4,37,4],[25,1,27,1],[143,0,149,0],[143,1,149,1],[143,4,149,4],[153,4,169,4],[105,1,115,1],[105,4,115,4],[116,0,128,0],[116,1,128,1],[116,4,128,4],[105,0,115,0],[129,0,131,0],[129,1,131,1],[129,4,131,4],[132,4,142,4],[132,1,142,1],[132,0,142,0],[230,1,242,1],[230,0,242,0],[230,4,242,4],[150,0,169,0],[150,1,169,1]]}
["Ändringslogg"]
[]
["Fastställd version","Dokumentdatum",null,"Ändring","Namn"]
["1.0 ","2015-04-01",null,"Ersätter: TDOK 2013:0368 Leveransplan del 1 - Väg- och järnvägsdata och TDOK 2013:0169 Leveransplan del 2 - Väg- och järnvägsdokumentation","Maria Davidson, UHjja"]
[null,null,null,"Ändrat utseende till Trafikverksfärger"]
[null,null,null,"Inga nya krav från TDOK 2013:0368 Leveransplan del 1 - Väg- och järnvägsdata och TDOK 2013:0169 Leveransplan del 2 - Väg- och järnvägsdokumentation"]
[null,null,null,"Förvaltningsdata till Miljöwebb Landskap och Projektnav har flyttat till fliken Miljö."]
[null,null,null,"En egen flik för data till Tågledningssystem, för att renodla fliken till BIS, GAD, JNB och Linjeboken."]
[null,null,null,"Bytt hänvisningar från BVDOK till Nya TDOK-nummer för befintliga regelverk"]
[null,null,null,"Förtydligat krav för data till BIS och GAD"]
["2.0","2015-10-01",null,"Flik 33: Lagt till tidskravet - 4mån före ÖFT för spårledningar i BIS. Detta för att möte upp NTL:s krav.","Maria Davidson, UHjja"]
[null,null,null,"Flik 33: Lagt till objekttypen Spänningsfri temperatur "]
[null,null,null,"Flik 14: Rättat till tidskravet för gruppschema"]
["3.0","2016-10-01",null,"Ändrat ordningen på flikarna för att passa nya TDOK 2016:0407 Data över järnvägsanläggningen. Så att de kommer i bättre ordning efter leveranstider. Leder till ändring av fliken Projektuppgifter.","Maria Davidson, UHjja"]
[null,null,null,"Filk 2: Nya TMALLAR"]
[null,null,null,"Filk 3: Ny TMALL"]
[null,null,null,"Flik4: Kraven är omskrivna, men i grunden samma krav som tidigare"]
[null,null,null,"Flik 6: Förtydligat vad som ska levereras till Tågledningssystemet"]
[null,null,null,"Flik 13: RFID är ny anläggningstyp"]
[null,null,null,"Flik 14: Nya TMALLAR"]
[null,null,null,"Flik 34: Nu registreras \"Material och kemiska produkter\" i Maximo. Därför har dessa utgått från alla andra flikar."]
["4.0","2017-01-01",null,"Miljö: Ändrat leveranstidskrav till 1 månad för slutbesiktning","Maria Davidson, UHjja"]
[null,null,null,"Allmänna förbättringar av mallen"]
[null,null,null,"Ny flik: Plk webb"]
[null,null,null,"Infogat ett exempel på förtydligande av etappindelning (flik 43)"]
["5.0","2017-03-01",null,"Flik Detektor: RFID-detektor borttaget då den har en egen flik.","Maria Davidson, UHjja"]
[null,null,null,"Flik Teknikhus och Belysning växelvärme: Färre dokument ska ut i anläggningen."]
[null,null,null,"Flik BIS-objekt: Ändrat Slopnings och ändringslista för FOMUL till +1V"]
["6.0","2017-07-01",null,"Flik BIS-objekt: TMALL 0663 BIS - Kemisk ogräsbekämpning är slopat i BIS","Maria Davidson, UHjja"]
[null,null,null,"Flik BIS-objekt: TMALL 0667 BIS – Restriktionsyta för kemisk ogräsbekämpning är slopat i BIS"]
[null,null,null,"Flik Belysning växelvärme…:Skyltlista är slopad"]
[null,null,null,"Flik Signal: IL och PLS-filer har nytt leveranstidskrav; +1 v"]
[null,null,null,"Flik Miljö: Har flyttat TMALL 0188 från Bullerskydd Hägnad till Miljö samt nytt leveranstidskrav"]
[null,null,null,"Flik JNB/Tågplan: Rättat felaktigt TMALL-nummer för Tågplan till 0480"]
[null,null,null,"Flik Signal: tagit bort kolumnen med uppgifterom ritningsnummer. Uppgifterna i Ebbot räcker"]
["7.0","2017-11-01",null,"Reviderat leveranstidskrav, så att de bättre passar verkliga skeden i ett projekt","Maria Davidson, UHjja"]
[null,null,null,"Krav för data till linjeboken är flyttad till fliken \"JNB, Tågledning\""]
[null,null,null,"Fliken BIS-Objekt: Nya leveranstidskrav för en mängd olika objekt. "]
["8.0","2018-01-11",null,"Flik Projektuppgifter: Rättat felaktiga hänvisningar till TDOK 2016:0407","Maria Davidson, UHjja"]
[null,null,null,"Flik BIS/GAD Spårnät: Ändrat filformat för TMALL 0664 och 0666"]
[null,null,null,"Flik BIS Objekt: Nya mallar: TMALL 0851 BIS-Högtalare-PC och TMALL 0852 BIS-Ljudanläggning"]
[null,null,null,"Flik BIS Objekt: Mallar som utgått: TMALL 0646 BIS-Ljudanläggning"]
[null,null,null,"Flik BIS Objekt: Flyttat \"Bangårdssäkerhet\" till \"Övriga objekttyper\""]
["9.0","2018-03-01",null,"Flik Projektuppgifter: Förtydligat vilket datum som projektet ska skriva i fältet \"Leveransdatum enligt krav\"","Maria Davidson, UHjja"]
[null,null,null,"Flik BIS Objekt: Lagt till kolumnen \" Leveransdatum enligt krav\" för projekten."]
[null,null,null,"Flik BIS Objekt: Reviderat leveranstidskrav. Flyttat från – 6 mån till + 1 v för följande BIS-mallar:"]
[null,null,null,"TMALL 0611 Växelvärmeskåp"]
[null,null,null,"TMALL 0612 50 Hz Frånskiljare"]
[null,null,null,"TMALL 0618 Ktl – Brygga"]
[null,null,null,"TMALL 0619 Ktl – Driftjord"]
[null,null,null,"TMALL 0621 Ktl – Sektion"]
[null,null,null,"TMALL 0623 Ktl – Sektionsisolator"]
[null,null,null,"TMALL 0624 Ktl – Skyddssektion"]
[null,null,null,"TMALL 0625 Ktl – Stolpe"]
[null,null,null,"TMALL 0626 KTL – Transformator"]
[null,null,null,"TMALL 0659 Teknikbyggnad"]
[null,null,null,"Nytt krav för – 6 mån: TMALL 0876 BIS – Ktl U/L-område"]
[null,null,null,"Krav som utgått för + 1 v: TMALL 0563 BIS – Plattformsövergång"]
[null,null,null,"Leverans från PATCY (Förvaltningsdata) flyttat från +1 v till +3 v efter inkoppling"]
["10.0","2018-06-01",null,"Flik Projekt: Rättat till felaktiga hänvisningar till TDOK 2016:0407","Maria Davidson, UHjja"]
[null,null,null,"Flik BIS Objekt: Rättat leveransformatför Patcy från xlsx till txt"]
[null,null,null,"Flik BIS Objekt: Ändrat namn för TMALL 0615 Bangårdsbelysning till Belysning"]
[null,null,null,"Flik BIS Objekt:: Ny mall: TMALL 0953 BIS - Kommunikationsobjekt "]
[null,null,null,"Flik BIS Objekt: Nu får man leverera slopnings- och ändringslistor för de objekt som ingår vid en viss leveranstid. Tidigare var kravställningen att  alla slopningar och ändringar skulle in vid - 6 mån."]
[null,null,null,"Flik BIS_GAD Spårnät: Kravet på att leverera EN slopnings och ändringslista för hela projektet vid - 6 mån har utgått och ersatts av leverans av slopnings och ändringslista vid leveranstid för respektive objekt."]
[null,null,null,"Flik Miljö: Rättat  till arbetsflödet (kolumnernas namn)"]
[null,null,null,"Flik JNB/Tågplan: Leveranstiden för JNB har förtydligats från 21-31 mån till 32-20 mån"]
[null,null,null,"                                 Leveranstiden för Tågplan har skrivit om från 13-25 mån till 25-13 mån"]
[null,null,null,"Flik Bro, Tunnel, Teknikhus, Distributionsnät: Nytt krav: Programvara för PLC"]
[null,null,null,"Flik Belysning, växelvärme, distributionsnät samt Teknikhus: Nytt krav: Larminstruktion"]
[null,null,null,"Filk Bergskärning, Tunnel, Snögalleri. Dessa ska nu lagras i BaTMan"]
["11.0","2018-12-01",null,"Samtliga flikar: Ändrat färg på rubrik från röd till grå för att kommentarstriangeln i varje cell ska synas tydligare.","Maria Davidson, UHjja"]
[null,null,null,"Samtliga flikar: Ändrat kravet från pdf/a till \"bara\" pdf"]
[null,null,null,"Flik Projektuppgifter: Tre nya fält: Inkopplingsdatum, Slutbesiktningsdatum, Datum för möjlig trafikstart"]
[null,null,null,"Flik 5 BIS Objekt: Ny mall: TMALL 0962 BIS - Dilatationsanordning"]
[null,null,null,"Flik 5 BIS Objekt: Ny mall: TMALL 0963 BIS - Skarv öppningsbar bro"]
[null,null,null,"Flik 5 BIS Objekt: Namnbyte av TMALL 0608 från Skarv till Isolerskarv"]
[null,null,null,"Flik 12 Miljö: Ny TMALL 0873 Miljöwebb Landskap - Övrig miljöföreteelse. Krav på klimatdeklaration har utgått."]
[null,null,null,"Flik 14 Bro: Fliken har ändrat namn till Bro, bullerskärm, då bullerskärmar nu ska lagras i BaTMan"]
[null,null,null,"Flik 20 Buller, hägnad: Förtydligat att Bullerskärmar nu ska levereras enligt flik 14. Konstruktionsberäkning har utgått som krav på dokumentation för bullerskydd."]
[null,null,null,"Flik 37 Kameraövervakning: Kameraövervakning är borttaget från TMALL:en. Leder till nya fliknummer för Passage, Trafikinfo, Säkerhetsbev."]
["12.0","2019-03-01",null,"Alla flikar: Förtydligat att leveranstiden är den tid när projektet ska ha överlämnat data till förvaltande system.","Maria Davidson, UHjja"]
[null,null,null,"Flik projektuppgifter: Möjliggjort sortering efter leveranstid"]
[null,null,null,"Flik 1 Anläggningsmodeller: Fliken har bytt namn till Geografiska modellfiler"]
[null,null,null,"Flik 4 BIS_GAD spårgeometri:\nSlopade BIS-mallar TMALL 0664 Plangeometri och TMALL 0666 Profilgeometri\nFörtydligat att dokumentationen för Bygghandling/Systemhandling ska levereras i samma mapp i projektets lagringsyta som övriga data över spårgeometrier till BIS/GAD."]
[null,null,null,"Flik 5 BIS Objekt: \nÄndrat leveranstidskrav för BIS-Tåg och lokvärmeanläggning (TMALL 0566) från + 1v till - 6 mån.\nLagt till texten: OBS! Endast EN leverans för - 6 mån, inte många småleveranser!\nFörändrade krav på vilka listor (för signalanläggningen) som ska levereras från tågledningssystemet, 6 mån före inkoppling."]
[null,null,null,"Flik 6 Bef. Tågledn. Syst: Ny text: IBTL godkänner i leveransplanen efter samråd med IBTL-TC"]
[null,null,null,"Flik 7 Plk webb: Fliken har bytt namn till Plankorsning"]
[null,null,null,"Flik 13 Kopplingsschema: Rättat felaktig mailadress"]
[null,null,null,"Flik 14 Bro, bullerskärm: Förtydligat att data för bullerskärm ska lagras i BaTMan, men teknisk dokumentaiton för bullerskärm ska lagras i Ebbot."]
[null,null,null,"Flik 20 Buller, hägnad: Rättat, Teknisk dokumentation för bullerskärmar ska lagras i Ebbot, inte i BaTMan. Lagt tillbaka kravet på Konstruktionsberäkning för bullerskärm."]
[null,null,null,"Flik 26 Spår, Spårväxel: Rättat fel. Inga underlagsfiler ska levereras."]
[null,null,null,"Flik 28 Bel, vxlvärme, kraft: Har rättat fliknamn till Bel, vxlvärme, distr."]
[null,null,null,"Flik 35 Signal: Rättat ILU-fil till LEU-fil. Ny tabell \"Lista över ritningar som ska slopas\"."]
[null,null,null,"Flik 36 Detektor: Rättat krav att Situationsplan ska levereras med filformatet dgn."]
[null,null,null,"Flik 39 Säkerhetsbevisning: Rättat filformat. Enbart en zip-fil ska levereras av säkerhetsbevisningen, inte \"fristående filer\" i pdf, xls och doc."]
["13.0","2019-06-01",null,"Flik Anvisningar: Förtydligat hur man bör arbeta med leveransplanen.","Maria Davidson, UHjja"]
[null,null,null,"Flik 12 Miljö: Ändrat leveranstidskravet från \"1 mån före slutbesiktning\" till \"2 mån efter slutbesiktning\"."]
[null,null,null,"Flik 18 Vändskiva: Ska nu lagras i BaTMan inte i Ebbot."]
[null,null,null,"Flik 21 Geoteknik: Ändrat tidskravet för \"Undersökning\" så att även dessa ska överlämnas till \"3 mån efter slutbesiktning\"."]
["14.0","2019-09-01",null,"Helt omarbetad version utifrån resultatet från projekt Anpassat regelverk.","Maria Davidson, UHjja"]
[null,null,null,"Teknikområdesindelningen bygger på strukturen enligt TDOK 2019:0349 Indelning av väg- och järnvägsanläggningen i tekniska ansvarsområden"]
[null,null,null,"Flik 4.1 Bankropp: TMALL 0582 Data till BIS - Jordspikning har utgått"]
[null,null,null,"Flik 9.1 Signalsystem: Förtydligat att Ebisat-program ska levereras samt dokumentation/data enligt TDOK 2014:0512 bilaga 5 och 6."]
[null,null,null,"Flik 12.1 Spårnät: Nytt krav på TMALL 1054"]
["15.0","2019-12-01",null,"Alla flikar: Nya kolumner med leveransplats och aviseringsadress.","Maria Davidson, UHjja"]
[null,null,null,"Flik BIS-Lathund Rättat ett fel: TMALL för Service och räddningstunnel har TMALLnr 0588"]
[null,null,null,"Flik Kontakt- och aviseringsuppgifter: Nya uppgifter för avisering av kraftstationer till ProjectWise/Förvaltning Järnväg."]
[null,null,null,"Flik 4.1 Bankropp: TMALL 0582 Data till BIS - Jordspikning har kommit tillbaka"]
[null,null,null,"Flik 6.3 Kontaktledningssystem: Kopplings- och gruppschema ska levereras som dgn eller prj, inte som dgn eller dwg."]
[null,null,null,"Flik 6.4 Nya krav att projektet ska registrera relationshandlingen/underlag för relationshandlingen för kraftstationer i det förvaltande systemet ProjectWise/Förvaltning Järnväg"]
[null,null,null,"Filk 6.4 Nytt tidskrav för kraftstationer (undantaget nätstation). Tidigare 3 månader efter slutbesiktning, nu 2 veckor efter slutbesiktning."]
[null,null,null,"Flik 8.1 Signalsystem: Beskrivit att det är systemleverantören som registrerar uppgifter direkt i PW/FU.\nFöljande TMALLar har utgått:\nTMALL 0694 Fiktiv informationspunkt\nTMALL 0811 Lokalfrigivningsområde\nTMALL 0693  Nödstoppsområde (ERTMS)\nTMALL 0689  Relation, Kopplade växlar – Spårspärr\nTMALL 0690  Relation, Nedbrytningsspårledning\nTMALL 0808  Relation, Plankorsning\nTMALL 0809  Relation, Signalställverk\nTMALL 0688  Relation, Summerad spårledning\nTMALL 0806  Remote Terminal Unit\nTMALL 0805  Signal (främst ATC) \nTMALL 0692 TSR Element"]
[null,null,null,"Flik 9.1 Banöverbyggnad: \n- Rättat ett fel: Spänningsfri temperatur till BIS ska levereras senast 3 veckor efter inkoppling.\n- Objekten \"Rangerbromssystem, Rälssmörjningsapparat, Spårspärr och Stoppbock fällbar flyttas från Sidoanläggning till Banöverbyggnad. "]
[null,null,null,"Flik 9.3 Sidoanläggning: Har bytt namn, hette tidigare Bangårds- och sidoanläggning."]
[null,null,null,"Flik 15.5 Miljö: Ändrat så att teknisk dokumentation för Miljö (Övergripande) ska lagras i Ebbot inte i PW/FJ."]
["16.0","2020-06-24",null,"Flik Kontakt- och aviseringsuppgifter: Nya uppgifter för avisering till Borrhålsdatabasen: geodb@trafikverket.se","Maria Davidson, UHjja"]
[null,null,null,"Flik Projektuppgifter: Ny text: Dokumentation över GOP (Godkännadeprocessen) ska inte levereras som förvaltningsdata utan ska levereras till Diariet\nNy text om att varje projekt måste garantera att stomnätet inte har blivit förstört och att projektet i så fall har levererat data på det nya stomnätet.\nNy text om att varje projekt måste garantera att man inte påverkat det geodetiska stomnätet."]
[null,null,null,"Flik 5.2 Bro: TMALL 0665 Planskild korsning (BIS) har utgått."]
[null,null,null,"Flik 5.2 Bro; 5.3 Tunnel; 5.4 Övriga byggnadsverk: Kravet på ”Övriga konstruktionsritningar” är borttaget."]
[null,null,null,"Flik 5.3 Tunnel: Förtydligat att bergskärning ska lagras med tunnlar."]
[null,null,null,"Flik 6.3 Kontaktledningssystem: Nytt krav för teknisk dokumentation för Sugtransformatorer. Ändrat namn från AT-dokumentation till AT-transformator"]
[null,null,null,"Flik 8.1 Signalsystem: \n- Förtydligat via kommentarsrutor i celler, vad de olika ställverksdokumenten betyder, tex Onepoint, indication etc.\n- Ändrat namn på TMALL 0632 från HIS-givare till Hastighetsindikeringssystem\n- Ändrat tidskrav för TMALL 0631 Balisgrupp ERTMS, TMALL 0633 Linjeblockeringssystem och TMALL 0691 Radio Block Center    (ERTMS) från \"6 månader före inkoppling\" till \"3 veckor efter inkoppling\".\n- Nytt krav på Ställverksdokumentaion för ställverk modell CST.\n- TMALL 0807 Spårledning (Summerad) har slopats."]
[null,null,null,"Flik 9.2 Förtydligat inleveransen av geodetiskt stomnät."]
[null,null,null,"Flik 10.2 Siter och kabelanl.: Väldigt mycket är förtydligt och omgjort."]
[null,null,null,"Flik 13.1 Trafikstyrningssystem: Ändrat tidskravet från \"4 månader före inkoppling\" till \"4 månader före inläsning\". Även en ny defintion av \"inläsning\" under fliken Definitioner.\nTagit bort kravet på kvittens av mottagande förvaltning."]
[null,null,null,"Flik 15.1 Adminintrativ och funktionell företeelse: Ändrat tidskrav för TMALL 0813 Uppställningsspår från \"6 månader före inkoppling\" till \"3 veckor efter inkoppling\"."]
[null,null,null,"Flik 15.8 Tågplan: Fliken har utgått. Projekten ska fortfarande leverera uppgifter till Tågplan, men uppföljningen av detta sker inte längre i leveransplanen utan i överlämnandeplanen (TMALL 0224)"]
[null,null,null,"Flik 15.9 Underlag för linjeboken: Ny fliknumrering pga uppdatering i regelverket TDOK 2016:0407 (Pga av att kapitlet för tågledning utgått)"]
["17.0","2020-09-01",null,"Flik Kontaktuppgift_avisering: \nUppgifter om \"Databasen för geotekniska borrhål\" är borttagen då inga leveranser längre ska gå till systemet, utan dessa leveranser ska nu gå till ProjectWise.","Maria Davidson, UHjja"]
[null,null,null,"Flik 4.1 Bankropp\nNytt krav att Geosuit-projektet nu ska levereras och lagras i ProjectWise och inte i Databasen för geotekniska borrhål."]
[null,null,null,"Flik 8.1 Signalsystem\nNytt: TMALL 1157 RTU Siemens S7 samt TMALL 1158 RTU EBISAT 890\nUtgått:\n- Configfil, för ställverk modell 59, 65, 85, 95 och CST\n- RTU, för ställverk modell 59, 65, 85, 95 och CST\n- Inläggningsplaner RTU, för ställverk modell 65 och CST\n- Kabellista, för ställverk modell 65 och CST\n- COS interface och COS objectlist för ställverk modell 95"]
["18.0","2020-12-01",null,"Alla flikar: \n- Gjort så att det är lite lättare att filtrera, tex på Aktuellt att upprättas av projekt.\n- Lagt till \"ärendenummer\" för fältet Levererat och aviserat leveransen till mottagande förvaltning (datum + namn+ ärendenummer)\n- Ändrat valen i fältet Aktuellt att upprättas av projektet till Ja/Nej/? istället för X/Ej aktuellt/?. Detta för att tydliggöra att man måste ta ställning och inte bara glömmer att sätta ett X.\n- Lagt till en hävisningstext: OBS! Material- och kemikalieförteckning ska dokumenteras och levereras enlligt flik 15.5 Miljö","Maria Davidson, UHjja"]
[null,null,null,"Flik Kontaktuppgift_avisering samt 5.2, 5.3 och 5.4\nNy mailadress för aviseringsuppgifter för leveranser till BaTMan och ProjectWice/ICT. Samt reviderad kontaktuppgift för teknikfrågor angående telekom- infrastruktur"]
[null,null,null,"Flik Leveranstider - Bild\nUppdaterat bilden med nya/reviderade leveranstider"]
[null,null,null,"Flik Definitioner\nFörtydligat definitionen för inkoppling."]
[null,null,null,"Flik Projektuppgifter samt 5.2, 5.3 och 5.4\nNytt krav att Huvudinspektioner ska lagras i BaTMan och leveras vid dagen för inkoppling."]
[null,null,null,"Flik 6.1 GELD inl. RTU:er\n- Tagit bort kravet att dokument ska levereras över systemen  AK 1703 APC, TM 1703 Mic, TM 1703 APC\n- Kompletterat APDL-verktyg (EED-fil) med Promise-fil."]
[null,null,null,"Flik 8.1 Signalsystem\n- Flyttat TMALL 0631 Balisgrupp ERTMS från 3 mån efter inkoppling till 6 mån före inkoppling\n- Flyttat följande dokument från ”6 mån före inkoppling” till ”1 v efter inkoppling”:\nStällverk 59: Onepoint, Indication\nStällverk 65: Sequence, Indication\nStällverk CST: Sequence, Indication\nStällverk 85: Onepoint, Indication\nStällverk 95: Onepoint, Indication\n- Flyttat följande dokument från ”3 mån efter slutbesiktning” till ”10 v före inkoppling”: Ställverk 95: Enligt TDOK 2014:0512, bilaga 6, paket 2 \n- Ny leveranstid: 10 veckor efter inkoppling\n- Flyttat följande dokument från ”6 mån före inkoppling” till ”10 v före inkoppling”: Ställverk 85: CIS-lisat, Identitetslista, Automatlista, Förbindelselista\n- Flyttat följande dokument från ”3 mån efter slutbesiktning” till ”10 v före inkoppling”: Ställverk 95: Enligt TDOK 2014:0512, bilaga 6, paket 2 \n- Nytt krav: Ställverk 11: SEI_CONFIG, SEI_STATUS_ENUM, SEI_COMMANDS"]
[null,null,null,"Flik 9.2 Geodetiskt stomnät\nReviderat texten för ”Samlad slutredovisning”."]
[null,null,null,"Flik 10.1 Radio och telefoni\nReviderat leveranstidskravet \"Vid färdig bygghandling\" till \"Vid färdig bygghandling, senast 6 månader före inkoppling\"."]
[null,null,null,"Flik 10.2 Siter och kabel\nReviderat leveranstidskravet \"Vid färdig bygghandling\" till \"Vid färdig bygghandling, senast 6 månader före inkoppling\"."]
[null,null,null,"Flik 15.5 Miljö: Tagit bort kravet på signering i fältet \"Leveranskontrollerat av MWL\". Fältet är nu utgråat."]
["19.0","2021-04-01",null,"Flik Projektuppgifter\nNy leveranstid \"6 mån före plankorsningen tas ibruk för järnvägstrafik\"","Maria Davidson, UHjja"]
[null,null,null,"Flik Definitioner\nFört in en definition/förklarning för ibruktagning och slutbesiktning."]
[null,null,null,"Flik 6.5 Lågspänning\nKapitlet har bytt namn från Teknikhus till Teknikbyggnad och omfattar även kiosk och kur."]
[null,null,null,"7.2 Passagesystem\nFörtydligat vem som signerar vad."]
[null,null,null,"Flik 8.1 Signalsystem\n- Nytt krav på bilaga 4, paket 3 enligt TRVINFRA 00301 (Dagen för inkoppling).\n- Ändrat hänvisning från TDOK 2014:0512 till TRVINFRA 00301"]
[null,null,null,"Flik 10.2 Siter och kabel\nUppdaterat att Nödfrånkopplingsslinga ska levereras vid färdig bygghandling samt vid 3 mån efter slutbesiktning."]
[null,null,null,"Flik 15.6 Plankorsning\nNy leveranstid \"6 mån före plankorsningen tas ibruk för järnvägstrafik\", samt ny leverans vis denna tid för \"Ny plankorsning\""]
["20.0","2021-11-01",null,"Allmänt: Ebbot har bytt namn till Ebba."]
[null,null,null,"Ny flik: Arkivservice - Analog leverans\nEtt förtydligande hur projekten måste packa sina kartonger med analog förvaltningsdata till Arkivservice i Mölndal Detta för att underlätta arkivpersonalens arbete med att packa upp handlingarna korrekt."]
[null,null,null,"Flik Leveransplan\n- Platshållare för konfidentialitetsmärkning inlagt i sidhuvudet\n- Ny text: Tidskraven avser när leveransen ska vara godkänd av mottagande förvaltning."]
[null,null,null,"Flik Projektuppgifter\n- Ny rad för etappbeskrivning. Raden är flyttad från flik 12.1 Spårnät, då etappbeskrivningen är viktig för samtliga leveranser till BIS.\n- Indatastöd har bytt namn till indatakoordinering","Maria Davidson, UHjja"]
[null,null,null,"Flik 0 Väg: Ny"]
[null,null,null,"Flik 0 JNB: Ny (Tillbaka i leveransplanen)"]
[null,null,null,"Flik 0 Tågplan: Ny (Tillbaka i leveransplanen)"]
[null,null,null,"Flik 4.1 Bankropp\n- Nytt krav: TMALL 1166 Nedpressning\n- Information om att trumma nu lagras som \"Övriga byggnadsverk\" i BaTMan, inte längre i Ebba.\n- Uppdaterad information om kalkcementpelare."]
[null,null,null,"Flik  5.2 Bro\n- Nytt fält för konstruktionsnummer. Detta ska fyllas i av projektet.\n- Ändrat filformat för visningsfier från pdf till pdf/a.\n- Nytt krav: Myndighetsbeslut enligt miljölagstiftning samt Skötselbeskrivning. Material- och kemikalieförteckning ska lagras som pdf/a i BaTMan, underlagsfilen lagras som ”Miljö, flik 15.5” dvs i Ebba.\n- Slopat krav: Kulturhistorisk klassning/beslut, Underhållsplan miljö samt Miljöinspektioner.\n- Ändrat leveranstidskrav för bla. geoteknisk- och miljödokumentation från 1 mån efter ibruktagande till 2 mån efter slutbesiktning."]
[null,null,null,"Flik  5.3 Tunnel och bergslänt\n- Nytt fält för konstruktionsnummer. Detta ska fyllas i av projektet.\n- Ändrat filformat för visningsfier från pdf till pdf/a.\nNytt krav: Bärighet, Myndighetsbeslut enligt miljölagstiftning samt Skötselbeskrivning. Material- och kemikalieförteckning ska lagras som pdf/a i BaTMan, underlagsfilen lagras som ”Miljö, flik 15.5” dvs i Ebba.\n- Slopat krav: Kulturhistorisk klassning/beslut samt Miljöinspektioner.\n- Ändrat leveranstidskrav för bla. geoteknisk- och miljödokumentation från 1 mån efter ibruktagande till 2 mån efter slutbesiktning."]
[null,null,null,"Flik  5.4 Övriga byggnadsverk\n- Nytt fält för konstruktionsnummer. Detta ska fyllas i av projektet.\n- Ändrat filformat för visningsfier från pdf till pdf/a.\n- Nytt krav: Myndighetsbeslut enligt miljölagstiftning samt Skötselbeskrivning. Material- och kemikalieförteckning ska lagras som pdf/a i BaTMan, underlagsfilen lagras som ”Miljö, flik 15.5” dvs i Ebba.\n- Slopat krav: Kulturhistorisk klassning/beslut, Underhållsplan miljö samt Miljöinspektioner.\n- Ändrat leveranstidskrav för bla. geoteknisk- och miljödokumentation från 1 mån efter ibruktagande till 2 mån efter slutbesiktning."]
[null,null,null,"Flik 6.3 Kontaktledningssystem\n- Slopat kravet på leverans av slutbesiktningsprotokoll.\n- Slopat kravet på Jordningsplan och ersatt det med krav på Jordningslista och Jordningsschema.\n- Ritningar över kopplings- och gruppschema ska inte längre bifogas i aviseringsmejlet utan ska nu läggas upp i ProjectWise/Förvaltning Järnväg/ Förvaltningsdata Leveranser/_EL_Kopplingsscheman"]
[null,null,null,"Flik 6.4 Kraftstationer\n- Ändrade krav att material- och kemikalieförteckningar för samtliga kraftstationer ska lagras med dokumentationen för stationen och inte längre med Miljödokumenten (flik 15.5) i Ebba.\n- Rättat leveranstidskravet för frånskiljarstationer från 2 v efter slutbesiktning till 3 mån efter slutbesiktning, samt krav på leveransens innehåll."]
[null,null,null,"Flik 6.5 Lågspänning\n- Rättat vilka dokument som ska ha en kopia i anläggningen.\n- Tåg och lokvärme: Nytt krav på \"Programvara för PLC\"."]
[null,null,null,"Flik 8.1 Signalsystem\n- Tagit bort aviseringsuppgifter för de handlingar som ska registreras direkt i PW/FU, av systemleverantör. Dessa beskrivs i egen rutin mot systemleverantör.\n- Ändrat att systemtekniker EBICOS nu ska leverera till ett arbetsrum inte till PW.\n- Ändrat leveranstidskrav för Hastighetsindikeringssystem (TMALL 0632) från 1 v efter inkoppling till 6 mån före inkoppling.\n- Ändrat leveranstidskrav för RTU EBISAT 890 (TMALL 1158) från 6 mån före inkoppling till 10 v före inkoppling. \n- Ändrat leveranstidskrav för Signalställverk (TMALL 0639) från 6 mån före inkoppling till 10 v före inkoppling.\n- Ändrat leveranstidskrav för Radio Block Center TMALL 0691) från 3 v efter inkoppling till 10 v före inkoppling.\n- Nytt krav: TMALL 1278 Transmissionsdata EBISAT\n- Nytt krav: Stlv 95: Enligt TRVINFRA 00301 Bilaga 4, paket 7.\n- Nytt krav: Stlv 11: TMALL 1276 Transmissionsdata signalställverk samt TMALL 1277 Transmissionsdata RBC"]
[null,null,null,"Flik 9.1 Banöverbyggnad\nFörtydligat att leveransen av Spänningsfri temperatur alltid ska ske via TMALL 0672, aldrig via slopnings- och ändringslista. "]
[null,null,null,"Flik 9.2 Geodetiskt stomnät\n- Flyttat kolumn angående \"garanti för att inga stompunkter raserats eller eller nyetablerats utöver det som ska/har redovisats i flik 9.2 Geodetiskt stomnät\" från fliken Projektuppgifter till denna flik. Även lagt till en text som talar om att det är brottsligt att flytta eller rasera dessa punkter.\n- Bytt aviseringsadress till forvaltningsdata.jarnvag@trafikverket.se"]
[null,null,null,"Flik 10.2 Siter och kabel\nÄndade leveranstidskrav för samtliga Koordinatförteckningar för dukt, kabel och skarvar samt Protokoll från optiska mätningar. Dessa ska nu levereras 10 v före inkoppling."]
[null,null,null,"Flik 12.1 Spårnät\n- Nytt krav: TMALL 0662 BIS - Hållplats, hållställe, övrig plats\n- Tagit bort kravet för filformatet xlsx för Koordinatförteckning spårväxlar, stoppbock/spårslut, vändskiva "]
[null,null,null,"Flik 15.5 Miljö\n- Nytt krav: TMALL 0974 Miljöwebb Landskap - Kulturhistorisk järnvägsmiljö\n- Förtydligat att material- resp. kemikalieförteckning ska levereras som fristående filer, inte som bilagor till överlämnanderapport miljö."]
["21.0","2022-04-15",null,"Allmänt. Tagit bort kolumner med information om aviseringsadresser i samtliga flikar. Detta pga att projekten istället ska läsa i TDOK 2016:0411 för att få aktuella och  tydligare uppgifter.","Maria Davidson, UHjja"]
[null,null,null,"Flik Kontaktuppgifter\nTagit bort uppgifter om aviseringsadresser, då dessa ska utläsas ut TDOK 2016:0411 för att få aktiuell information samt uppgifter om ved ett aviseringsmejl ska innehålla för uppgifter."]
[null,null,null,"Flik Arkivservice - Analog leverans\nNy text i hela fliken. Pga. nu ska det enbart levereras analoga handlingar som saknar CAD-underlag till Arkivservice (tex plastfilm och väv). Det gäller alla teknikområden, nu även signal."]
[null,null,null,"Flik Projektuppgifter\nNya kolumner med tidskrav från leverantör till projekt"]
[null,null,null,"Flik Geografiska modellfiler\nSlopat krav: Modellutsnitt samt modellfil tunnel."]
[null,null,null,"Flik 3D-modell\nNy flik som talar om att UH nu tar emot och lagrar 3D-modeller."]
[null,null,null,"Flik 4.1 Bankropp\n- Ändrat krav för Kalkcementpelare. Underlagsfilen ska nu ha filformat xlsx (tidigare docx, dgn,dwg).\n- Förtydligat kravet för trumma, att dessa ska levereras enligt leveranstidskrav för Övriga byggnadsverk och även registreras i fliken för Övriga byggnadsverk"]
[null,null,null,"Flik 5.1 Brand och nödutrustning\nHar flyttat Brandpost, Nödlägesskylt, Nödlägesskåp, Pumpanläggning brandvatten, Tyfonlarm och vindvisare till flik 15.7 Rangeranläggning"]
[null,null,null,"Flik 6.3 Kontaktledningssystem\nÄndrat krav: Ändrat från Jordningsschema till Jordningsschema/-plan"]
[null,null,null,"Flik 6.5 Lågspänning\nÄndrat krav: TMALL 0615 har bytt namn från Belysning till Belysning - Plattform (1 v efter inkoppling)\nÄndrat krav: Teknikbyggnad/Gemensamma handlingar, Larminstruktion har bytt namn till Driftledningsinstruktion. Ny förklaringstext.\nNytt krav: TMALL 1301 Belysning - Bangård (1 v efter inkoppling)\nNytt krav: Växelvärme; Yttre förbindningsschema (3 mån efter slutbesiktning)\nSlopat krav: Kravet på filformaten ciprj och cit för skåpspecifikationer har utgått. "]
[null,null,null,"Flik 8.1 Signalsystem\n- Nytt krav HMI-program, HMI-utsrift samt PLS-utskrift ska levereras.\n- Nytt krav: TMALL 1322 ELC (3 v efter inkoppling)\n- Nytt krav: TMALL 1321 Utdelsenhet (3 v efter inkoppling)\n- Slopat krav: TMALL 1278 Transmissionsdata EBISAT\n- Slopat krav: Stlv 95: Enligt TRVINFRA 00301 Bilaga 4, paket 7.\n- Slopat krav: Stlv 11: TMALL 1276 Transmissionsdata signalställverk samt TMALL 1277 Transmissionsdata RBC\n(Kraven ovan är slopade från leveransplanen men kvarstår i TDOK 2016:0407 då det är en leverans från leverantör till projekt, men inte från projekt till mottagande förvaltning. Därför hör inte kravet hemma i leveransplanen.)"]
[null,null,null,"Flik 9.1 Banöverbyggnad\nRättat filformat för TMALL 0601-0603 från xlsx till pdf.\nNytt krav: TMALL 1267 Pyramidmatta (3 v efter inkoppling)"]
[null,null,null,"Flik 9.3 Sidoanläggning\nFlyttat TMALL 0573 till flik 15.7 Rangerbangård."]
[null,null,null,"Flik 10.1 Radio och telefoni\nNytt avsnitt/nya krav för tunnelradio."]
[null,null,null,"Flik 10.2 Siter och kabel\nNytt krav för optiska spridningsnät: Kabelstativ/Stativ (Vid färdig bygghandling samt 3 mån efter slutbesiktning)"]
[null,null,null,"Flik 11.1 Trafikinformationsanläggning\nSlopat krav: TMALL 0953 Kommunikationsobjekt"]
[null,null,null,"Flik 15.1 Admin. o funkt. företeelse\nReviderade text för FOMUL: Ändrad från ”Vid större förändring av anläggningen” till ”Vid förändring av spårets läge eller ändring av flera objekt”."]
[null,null,null,"Flik 15.4 Mark\n- Reviderat krav för ”Plan och profil över service- och räddningsvägar”, som även har bytt namn till ”Ritningar över tillträdes-, service och räddningsvägar”.\n- Slopat krav: Miljödom\n- Nytt krav: Driftledningsinstruktion, pumpanläggning"]
[null,null,null,"Flik 15.5 Miljö - Övrigt om miljö\nÄndrat filformat för visningfil till pdf för Underlag för beredskapsplan för vattenskyddsåtgärder. Docx är filformat för underlagsfilen."]
[null,null,null,"Flik 15.7 Rangerbangård\n- Har flyttat hit Brandpost, Nödlägesskylt, Nödlägesskåp, Pumpanläggning brandvatten, Tyfonlarm och vindvisare från flik 5.1 Brand och nödutrustning. (OBS! Några av dessa får nytt namn i punkter nedan)\n- Nytt krav: TMALL 1326 Brandvattenförsörjning (Är en sammanslagning av TMALL 0569 Brandpost och TMALL 0572 Pumpanläggning brandvatten)\n- Nytt krav: TMALL 0337 Gångbana, TMALL 1335 Avhängardäck, TMALL 1336 Tryckluftsanläggning samt TMALL 1334 Bromsprovsanläggning.\n- Nytt namn: TMALL 0570 Nödlägesskylt byter namn till Åtkomlighet och nödlägesinformation\n- Nytt namn: TMALL 0574 Tyfonlarm byter namn till Varningssystem\n- Nytt namn: TMALL 0575 Vindvisare byter namn till Väderobservationsutrustning\n -Flyttat TMALL 0573 Spillplatta till detta kap från 9.3.1 Sidoanläggning\n- Nya krav på dokumentation för Styr- och övervakningssystem, Utrustning för skydd mot olyckor och Väderobservationsutrustning"]
[null,null,null,"Flik 15.10 Underlag till säkerhetsplan, driftplats\nNy flik och nytt krav."]
["22.0","2022-10-14",null,"Flik Projektuppgifter\nNy text för Etapp-/Projektuppgifter: - Vilka ändringar som sker av trafikplats(er) och dess utbredning avseende Trafikplatsnamn och trafikplatssignatur, platstyp, fastställt kilometertal och koordinat för platsmitt.\nAnge också ev. ändring av en trafikplats utbredning med flyttad gräns(er) till annan trafikplats eller linje.","Maria Davidson, UHjjm"]
[null,null,null,"Flik 0 Erfarenhetsdrift\nNy flik"]
[null,null,null,"Flik fd. 5.1 Brand och nödutrustning\nFliken har utgått och TMALL 0588 Service och räddningstunnel har flyttat till flik 5.2 Tunnel och bergsskärning"]
[null,null,null,"Flik 5.1 Bro\n- Förtydligat att data ska vara registrerade och skickade för fastsällelse.\n- Sammanställningsritning har utgått som eget krav och ingår nu i kravet för Ritningar.\n- Redogörelse för konstruktionens förutsättningar och metoder har förtydligats med text om RKFM\n- Ändrat  tidskravet från 2 mån efter slutbesiktning till 3 mån efter slutbesiktning"]
[null,null,null,"Flik 5.2 Tunnel och bergslänt\n- TMALL 0588 Service och räddningstunnel har flyttat hit från fd. kap. 5.1 Brand och nödutrustning.\n-  Förtydligat att dokumentation ska vara registrerade och skickade för fastsällelse.\n- Sammanställningsritning har utgått som eget krav och ingår nu i kravet för Ritningar.\n- Nytt krav: Bärighetsberäkning\n- Sammanställningsritningar har utgått som eget krav och ingår nu i kravet för Ritningar.\n- Redogörelse för konstruktionens förutsättningar och metoder har förtydligats med text om RKFM\n- Konstruktionsberäkningar har bytt namn till Utredningar och beräkningar\n- Nytt krav: Förundersökning\n- Nytt underkapitel med krav på dokumentation för personsäkerhet i tunnlar.\n- Kravet för Geotekniskt PM och Markundersökningsrapport är flyttat och ingår nu i det nya kravet ”Förundersökning”.\n- Ändrat  tidskravet från 2 mån efter slutbesiktning till 3 mån efter slutbesiktning\n- Rättat tidskravet för Personsäkerhet i tunnlar från 3 mån eefter slutbesiktning till 1 mån före ibruktagande, som det står i TDOK 2016:0407"]
[null,null,null,"Flik 5.3 Övriga byggnadsverk \n-  Förtydligat att dokumentation ska vara registrerade och skickade för fastsällelse.\n- Reviderat krav för: Passage/Sidopassage/Överfart: …Trumma som belastas av järnvägstrafik ska ha överfart registrerad.\n- Sammanställningsritning har utgått som eget krav och ingår nu i kravet för Ritningar.\n- Redogörelse för konstruktionens förutsättningar och metoder har förtydligats med text om RKFM\n- Ändrat  tidskravet från 2 mån efter slutbesiktning till 3 mån efter slutbesiktning"]
[null,null,null,"Flik 6.5 Teknikbyggnad\nReviderat krav: Tidigare stod det Driftledningsinstruktion, nu har den fått en ny mall TMALL 1382 Driftinstruktion."]
[null,null,null,"Flik 8.1 Signalsystem\n- Nytt krav: TMALL 1297 Tavla (främst ATC) - ej från Patcy 2 (6 mån före inkoppling)\n- Nytt krav: Programfil (Alex-teknik)\n- Nytt-/förtydligat krav: TRVINFRA 00301, bilaga 4, paket 1 - Pärmarna men allmän information ska levereras till anläggnignen redan vid dagen för inkoppling\n- Ändrat krav: TRVINFRA 00301, bilaga 4, paket 4 har bytt leveranstid från 3 mån efter slutbesiktning till Dagen för inkoppling."]
[null,null,null,"Flik 9.1 Banöverbyggnad\nNytt krav: TMALL 1381 Stoppbock, fällbar (3 v efter inkoppling) (Är utbruten från TMALL 0568 Stoppbock)"]
[null,null,null,"Flik 9.2 Geodetiskt stomnät\nNy text (i en * i fliken) som beskriver den garanti man signerar."]
[null,null,null,"Flik 12.1 Spårnät\nUppgiften om Etapp-/Projektuppgifter ska kvitteras i denna flik (dvs den mörkgrå färgen för den här raden är borttagen)"]
[null,null,null,"Flik 15.1 Admin. o funkt.företeelse \nFOMUL inkl. LÖ spåravstånd: Ingen kvittering i leveransplanen. Uppdaterat med följande text: \"Mätoperatören sköter både registrering och slopning i BIS. Projektet får själv ha kontroll på att detta utförs av mätoperatören.\""]
[null,null,null,"Flik 15.4 Mark\nSlopat krav: Planritning (3 mån efter slutbesiktning)\nFlyttat krav: Driftledningsinstruktion, pumpanläggning är flytta till flik 15.7 Pumpsystem "]
[null,null,null,"Flik 15.5 Miljö\n- Ändrat  tidskravet från 2 mån efter slutbesiktning till 3 mån efter slutbesiktning"]
[null,null,null,"Flik 15.6 Plankorsning\nFliken har uppdaterats i sin helhet."]
[null,null,null,"Flik 15.7 Pumpsystem\nNy flik med nya krav"]
["23.0","2023-05-01",null,"Allmänt: \n- Leveranstiden \"…före möjlig trafikstart\" har bytt namn till \"… före inkoppling\". (Tidskraven återstår, det är bara begreppet som ändrats.)\n- Leveranstiden \"ibruktagande\" har bytt namn till \"… före inkoppling\". (Tidskraven återstår, det är bara begreppet som ändrats.)\n- Alla flikar som har 6 månaders leveranser har fått två nya kolumner \"BIS: Levererat och aviserat ändringar (datum + namn + ärendenr.)\" och \"Godkänt ändring (datum + namn + ärendenr.)\"\n- Uppdaterat texten för kolumnerna \"papperkopior i anläggningen\" till : \nViktigt att dokumentation ute i anläggningen blir uppdaterade med den senaste revideringen.\n\nProjektledaren är ansvarig för att handlingarna blir uppkopierade samt läggs ut i anläggningen.\n\nDet är viktigt att projektet kontaktar berört underhållsdistrikt för att få information om hur många\nexemplar av dokumenten som ska kopieras upp samt var i anläggningen dokumenten ska uppdateras.\n\nDet är av största vikt att detta sker utan dröjsmål så att rätt dokument finns i anläggningen, enligt JvSFS 2007:2, 9§ ”Dokumentationen ska hållas aktuell och vara känd i infrastrukturförvaltarens\norganisation samt vara lätt tillgänglig för berörd personal.”\n\nOBS! Gällande arbetsritningar ska finnas i anläggningen till dess att förvaltningsdata är upprättade och\nutlagda i anläggningen. Ritningarna i anläggningen ska vara enkelsidigt kopierade. ","Maria Davidson, UHjjm"]
[null,null,null,"Flik Definitioner\nSlopat: Ibruktagande och Möjlig trafikstart\nÄndrat: Texten för inkoppling."]
[null,null,null,"Flik Leveranstider\n- Uppdaterat bilden med systemet ABBA-FT samt bytt begreppet till Inkoppling (se kommentart Allmänt ovan)\n- Ny tabell med beskrivning om varför de olika leveranstidskraven finns."]
[null,null,null,"Flik 0 Geografiska modellfiler \nNytt krav:Tele, trafikinformation"]
[null,null,null,"Flik 0 Tågplan \nReviderat krav: Ändrat leveranstidskravet från \"30 november 25-13 månader före inkoppling\" till \"30 september 27-15 månader före inkoppling\"."]
[null,null,null,"Flik 4.1 Bankropp\nNytt krav: Avvattning (nytt område) (3 mån efter slutbesiktning)\nNytt krav: Vattenskydd och dagvattenbehandling (nytt område) (3 mån efter slutbesiktning)"]
[null,null,null,"Flik 5.1 Bro/ Teknisk dokumentation (3 mån efter slutbesiktning)\nFlik 5.2 Tunnel och bergslänt/ Teknisk dokumenation (3 mån efter slutbesiktning)\nFlik 5.3 Övriga byggnadsverk/ Teknisk dokumenation (3 mån efter slutbesiktning)\n- Ändrat kommentarstexten för ”Övriga dokument från en åtgärd”. \n- Slopat krav: Prestandadeklaration, Provningsintyg (Övriga dokument från en åtgärd) Underlag för beredskapsplan och Skyddsanordningar för utsläpp, dagvatten, dagvattendammar etc. (Miljö)\n- Ändrat rubrikerna för kolumnerna Mottagande förvaltning\n- Kompletterat med rad Data och dokumentation enl. TDOK 2016:0407 är komplett. Aktivitet 1-5 enl TDOK 2018:0200 är genomförd.  "]
[null,null,null,"Flik 5.2 Tunnel och bergslänt\nNytt krav: Dokumentation för hantering av avvikelser, tillbud och olyckor (Teknisk dokumentation, 1 mån före inkoppling)\nNytt krav: EG-kontrollintyg (Teknisk dokumentation, 1 mån före inkoppling)\nÄndrat: En del texter i tabellen för ”Personsäkerhet i tunnlar” är aningen ändrad.\nRättat: Leveranstidskraven för ”Personsäkerhet i tunnlar” är rättat från 3 mån efter slutbesiktning till 1 mån före inkoppling"]
[null,null,null,"Flik 5.3 Övriga byggnadsverk\nSlopade krav: Tvärsektion, Detaljritning, Konstruktionsberäkning"]
[null,null,null,"Flik 6.1 Geld inl. RTU:er\nNytt krav: Underhållsinstruktion.\nSlopade krav: Förbindningstabell, Apparatlista, Systembeskrivning."]
[null,null,null,"Flik 6.4 Kraftförsörjningsanläggning\nFliken har bytt namn från Kraftstation till Kraftförsörjningsanläggning"]
[null,null,null,"Flik 6.5 Lågspänning/Teknikbyggnad\nSlopat krav: Bygglovshandling"]
[null,null,null,"Flik 6.6 Matarledningssystem\nHela tabellen är uppdaterad."]
[null,null,null,"Flik 7.2 Tillträdesskydd och brandlarm\n- Fliken har bytt namn från Passagesystem till Tillträdesskydd och brandlarm\n- Nytt krav på Monteringslista för Abloy Cliq-lås (3 mån efter slutbesiktning)"]
[null,null,null,"Flik 8.1 Signalsystem\n- Kompletterat med rader \"Restlista för Signal (ej ATC) och Restlista för Tavla (ej ATC)\" under 3 veckor efter inkoppling.\n- Ändrat krav: SEI_CONFIG, SEI_STATUS_ENUM, SEI_COMMANDS är ersatta med \"Enligt TRVINFRA 00301, bilaga 5, paket 2 (Ställverk 11) (10 v före inkoppling)\n- Nytt krav: Enligt TRVINFRA 00301, bilaga 5, paket 1, 3, 6 (Ställverk 11) (Dagen för inkoppling)\n- Nytt krav: Enligt TRVINFRA 00301, bilaga 5, paket 1, 3, 5 (Ställverk 11) (3 mån efter slutbesiktning)\n- Slopat krav: M95: Paket 4 har utgått."]
[null,null,null,"Flik 9.1 Banöverbyggnad\nKompletterat med rader Restlista för Spårväxel och Restlista för Isolskarv, under 3 veckor efter inkoppling."]
[null,null,null,"Flik 9.2 Geodetiskt stomnät\nSlopade krav: Redogörelse för uppdraget, Punktbeskrivning, Samlad slutredovisning"]
[null,null,null,"Flik 11.1 Trafikinformationsanläggning\nNytt krav: Samtliga tekniska dokument ska levereras vid två tidpunkter. Vid färdig bygghandling… samt vid 3 mån efter slutbesiktning."]
[null,null,null,"Flik 12.1 Övrig BIS-leverans\nFliken har bytt namn från Spårnät till Övrig BIS-leverans"]
[null,null,null,"Flik 15.1 Administrativ och funktionell företeelse\n- Nytt krav: TMALL 1295 ERTMS Hastighetsprofil Normalhuvudspår (6 mån före inkoppling)\n- Nytt krav: TMALL 1296 ERTMS Hastighetsprofil Övriga spår (6 mån före inkoppling)"]
[null,null,null,"Flik 15.4 Mark\n- Slopat Beredskapsplan, Skötselinstruktion skyddsåtgärder för yt- och grundvatten samt Riskanalys för skydd av yt- och grundvatten"]
[null,null,null,"Flik 15.5 Miljö\n- Ändat texten i rubrikkolumn (J och K) från \"För granskning av UHtam\" till \"För granskning av miljökompentens på UH\" resp. \"Godkänd av UHtam\" till \"Godkänd av miljökompetens på UH\".\n- Slopat krav: Underlag för beredskapsplan för vattenskyddsåtgärder samt TMALL 0731 Förteckning Skyddsåtgärder yt- och grundvatten järnväg (Teknisk dokumentation, övrigt om miljö)"]
[null,null,null,"Flik 15.8 Rangerbangård\nSlopat krav: Driftinstruktion  (3 mån efter slutbesiktning)"]
["24.0","2023-11-01",null,"Allmänt\n- Fixat till texter som försvunnit och celler som mist sin logik.\n- Kraftstationer har bytt namn till Kraftförsörjningsanläggning genom hela dokumentet.","Maria Davidson, UHjjm"]
[null,null,null,"Flik Kontaktuppgifter\nReviderad mejladress för Tågplan: trafikplanering.anlaggningsforandringar@trafikverket.se"]
[null,null,null,"Flik Definitioner\nUppdaterad text för begreppet Inkoppling."]
[null,null,null,"Flik Projektuppgifter\nNytt krav: Uppgift om länk till AKJ"]
[null,null,null,"Flik 0 Geografiska modellfiler\n- Tagit bort det förvaltande systemet GAD, då alla modellfiler (undantaget Signal) nu lagars i ProjectWise\n- Reviderat leveransytan till ProjectWise/Förvaltning Järnväg/Förvaltningsdata Leveranser/ _Anläggningsmodeller/Bandel"]
[null,null,null,"Flik 0 Tågplan\n- TMALL 0480 ska inte längre levereras via mejl, utan lagras i projektets leveransyta."]
[null,null,null,"Flik 5.1 Bro, 5.2, Tunnel och bergskärning, 5.3 Övriga byggandsverk\n- Slopat krav: Bärighet (Data för lagring i databas). \n- Reviderad text för Bärighet\nDetta p.g.a. ändrade arbetssätt för att registrera och skicka uppgifter för bärighet i BaTMan. Detta beskrivs nu i TDOK 2023:0079."]
[null,null,null,"Flik 6.4 Kraftförsörjningsanläggning\nSlopat krav: Frånskiljarstation"]
[null,null,null,"Flik 6.5 Lågspänningssystem\nBelysning\n- Reviderat krav: Skåpspecifikation\n- Nytt krav: Kabelberäkning\nDistributionsnät mindre än 1000V\n- Reviderat krav: Skåpspecifikation\n- Nytt krav: Kabelberäkning\nVäxelvärme\n- Reviderat krav: Skåpspecifikation"]
[null,null,null,"Flik 8.1 Signalsystem\nReviderat krav: Leveranser av programfiler ska nu levereras direkt till Ebba, via funktionen \"delleveranser\" i systemet (inte som tidigare, via ProjectWise). (Gäller tiden Dagen för inkoppling samt 1 v efter inkoppling.)"]
[null,null,null,"Flik 11.1 Trafikinformationsanläggning\nSlopat krav: Foto på stativ (trafikinformationsutrustning) (Vid färdig bygghandling)\nReviderat krav: \n - Kravet på modellfiler är rättat. Dessa ska levereras 3 mån efter slutbesiktning inte vid färdig bygghandling.\n - TMALL 0851 har bytt namn från Högtalare-PC till Utropsdator\n - Kraven \"Vid färdig bygghandling, senast 6 månader före inkoppling\" behöver inte längre signeras av mottagande förvaltning.  "]
[null,null,null,"Flik 15.4 Mark\nNytt krav: Sidotrumma (längs med järnväg)"]
[null,null,null,"Flik 15.5 Miljö\n- Ny rad för information om \"Myndighetsbeslut enligt miljölagstiftningen…\"\n- Databas borttaget då krav på databas redan finns under Övrigt om miljö/ Data för lagring i databas\n- Reviderat krav: Kraven för data till MiljöWebb Landskap har tidigare beskrivits i TMALL:ar, dessa är nu utbytta till nya TDOK.\n- Nytt krav: Grod- och kräldjurskonatruktion och Stenmur, till Miljöwebb Landskap"]
["Version","Datum","Flik","Ändring","Gäller ändringen bara nya projekt, eller även pågående?","Namn"]
["25.0","2024-05-01","Flik Anvisningar","Ny text om : Undantag från hantering av filnamn och länk till levererad fil","Information","Uppdragsansvarig Indatakoordinering Karin Gilén, UHjji"]
[null,null,"Flik Leveranstider","Vid färdig bygghandling, senast 6 månader före inkoppling \nNy text: (OBS! Missvisande tidskrav för Trafikinformation!) Just nu är tidskravet som det är, det kommer att ses över till kommande revideringar. Trafikinformation behöver få information om anläggningen INNAN BYGGSTART. Detta för att hinna kontrollera om anläggningen är projekterad på rätt sätt INNAN byggstart. (Tyvärr händer det att man projekterat på fel sätt och det har lett till fördyringar i projektet.)","Gäller samtliga projekt, både befintliga och nya. ","Informationsförvaltare Trafikinformation Daniel Asovic, UHjef"]
[null,null,"Flik Arkivservice - Analog leverans","Förändrad rutin för kassering av slopade handlingar. ","Gäller samtliga projekt, både befintliga och nya. ","Sara Mattsson, UHjjm"]
[null,null,"Flik 4.1 Bankropp","Nya krav: Trumma (Krav på dokumentation för trumma har tidigare legat under ”Övriga byggnadsverk, men då kraven har varit svåra att förstå så har det nu förtydligats i denna flik.)","Nya projekt ska leverera enligt de nya kraven, befintliga projekt bör.","Terence Mcgarvey UHjba"]
[null,null,"Flik 4.1 Bankropp","Nytt krav: Dammanläggning","Nya projekt ska leverera enligt de nya kraven, befintliga projekt bör.","Ewa Lind, UHjba"]
[null,null,"Flik 4.1 Bankropp","Nytt krav: Området har bytt namn fån Vattenskydd och dagvattenbehandling till Vattenskyddsanläggning, samt reviderade krav.","Nya projekt ska leverera enligt de nya kraven, befintliga projekt bör.","Ewa Lind, UHjba"]
[null,null,"Flik 4.1 Bankropp","Nytt krav: Avvattning: Skötselbeskrivning","Nya projekt ska leverera enligt de nya kraven, befintliga projekt bör.","Informationsförvaltare miljö, Anna Henriksson, UHv"]
[null,null,"Flik 5.1 Bro","Reviderat krav: Ny text för ”Övriga dokument från en åtgärd”.","Nya projekt ska leverera enligt de nya kraven, befintliga projekt bör.","Fredrik Olsson, UHvätb"]
[null,null,"Flik 5.1 Bro","Slopat krav: Myndighetsbeslut enligt miljölagstiftning. Dokumenten lagras i Ebba och återfinns under kapitlet Miljö.","Slopat krav","Fredrik Olsson, UHvätb"]
[null,null,"Flik 5.1 Bro","Slopat krav: Materialförteckning (miljö). Materialförteckningen lagras nu bara under kapitlet Miljö","Slopat krav","Fredrik Olsson, UHvätb"]
[null,null,"Flik 5.1 Bro","Slopat krav: Kemikalieförteckning (miljö). Kemikalieförteckningen lagras nu bara under kapitlet Miljö","Slopat krav","Fredrik Olsson, UHvätb"]
[null,null,"Flik 5.2 Tunnel och bergslänt","Reviderat krav: Ny text för ”Övriga dokument från en åtgärd”.","Nya projekt ska leverera enligt de nya kraven, befintliga projekt bör.","Fredrik Olsson, UHvätb"]
[null,null,"Flik 5.2 Tunnel och bergslänt","Slopat krav: Myndighetsbeslut enligt miljölagstiftning. Dokumenten lagras i Ebba och återfinns under kapitlet Miljö.","Slopat krav","Fredrik Olsson, UHvätb"]
[null,null,"Flik 5.2 Tunnel och bergslänt","Slopat krav: Materialförteckning (miljö). Materialförteckningen lagras nu bara under kapitlet Miljö","Slopat krav","Fredrik Olsson, UHvätb"]
[null,null,"Flik 5.2 Tunnel och bergslänt","Slopat krav: Kemikalieförteckning (miljö). Kemikalieförteckningen lagras nu bara under kapitlet Miljö","Slopat krav","Fredrik Olsson, UHvätb"]
[null,null,"Flik 5.3 Övriga byggnadsverk","Reviderat krav: Ny text för ”Övriga dokument från en åtgärd”.","Nya projekt ska leverera enligt de nya kraven, befintliga projekt bör.","Fredrik Olsson, UHvätb"]
[null,null,"Flik 5.3 Övriga byggnadsverk","Slopat krav: Myndighetsbeslut enligt miljölagstiftning. Dokumenten lagras i Ebba och återfinns under kapitlet Miljö.","Slopat krav","Fredrik Olsson, UHvätb"]
[null,null,"Flik 5.3 Övriga byggnadsverk","Slopat krav: Materialförteckning (miljö). Materialförteckningen lagras nu bara under kapitlet Miljö","Slopat krav","Fredrik Olsson, UHvätb"]
[null,null,"Flik 5.3 Övriga byggnadsverk","Slopat krav: Kemikalieförteckning (miljö). Kemikalieförteckningen lagras nu bara under kapitlet Miljö","Slopat krav","Fredrik Olsson, UHvätb"]
[null,null,"Flik 6.1 GELD inklusive RTU","Ny hantering: Projektet ska skicka en avisering till geld.systemförvaltning@trafikverket.se för granskning av framtaget material (Nya kolumner I+J)","Gäller alla nya projekt som använder denna versionen av leveransplan där dessa kolumner är införda. Övriga pågående projekt får gärna föra in dessa kolumner i sina befinliga leveransplaner, men det är inget krav.","Magnus Karlsson, Uhttö"]
[null,null,"Flik 6.1 GELD inklusive RTU","Rättning: Ny kolumn för kvittering att papperskopior är placerade i anläggningen","Gäller samtliga projekt, både befintliga och nya. \n\nKravet är inte nytt, utan finns i TDOK 2016:0407. Kolumnen för kvittens har däremot missats i leveransplanen.","Maria Davidson, UHjjm"]
[null,null,"Flik 6.4 Kraftförsörjningsanläggning","Ändrat mejladressen för granskning från miljounderhall@trafikverket.se till jarnvag_anlaggningmiljo@trafikverket.se","Gäller samtliga projekt, både befintliga och nya","Informationsförvaltare miljö, Anna Henriksson, UHv"]
[null,null,"Flik 6.4 Kraftförsörjningsanläggning","Tagit bort kolumnen I \"Kvalitetssäkring av miljökompetens inom projekt\"","Gäller samtliga projekt, både befintliga och nya","Informationsförvaltare miljö, Anna Henriksson, UHv"]
[null,null,"Flik 6.4 Kraftförsörjningsanläggning","Lagt till kolumnerna \"Skickat mail och länk till material för granskning till elkraft@trafikverket.se. För granskning av elkompetens på UH\" samt \"Godkänt av elkompetens på UH\"","Gäller samtliga projekt, både befintliga och nya","UHjee, UHteh"]
[null,null,"Flik 6.5 Lågspänning","Reviderat avsnittet om Teknikbyggnad. Nu kallas området Elanläggning - Teknikbyggnad. Delars som för själva bygganden är flyttat från fliken. Tabellen är reviderad.","Nya projekt ska leverera enligt de nya kraven, befintliga projekt bör.","Informationsförvaltare John Granberg, UHjel"]
[null,null,"Flik 6.6 Matarledningssystem","Nytt krav: Kontrollprogram (miljö)","Nya projekt ska leverera enligt de nya kraven, befintliga projekt bör.","Informationsförvaltare miljö, Anna Henriksson, UHv"]
[null,null,"Flik 7.1 Resenärsstation","Fliken har bytt namn från Fastighetsteknik till Resenärsstation","Information","Annie Andersson , cUHjef"]
[null,null,"Flik 7.1 Resenärsstation","Uppdaterad tabell","Nya projekt ska leverera enligt de nya kraven, befintliga projekt bör.","Informationsförvaltare Magnus Sandberg, UHjef"]
[null,null,"Flik 7.2 Teknikbyggnad","Ny flik","Information","Sabina Nesimovic, UHjef (genom informations-förvaltaren Jörgen Landström, UHjef) samt Magnus Edfast IKTtaaf"]
[null,null,"Flik 7.2 Teknikbyggnad","Krav om själva byggnaden har flyttat från flik 6.5 Lågspänning till den här fliken. Reviderad tabell","Nya projekt ska leverera enligt de nya kraven, befintliga projekt bör.","Sabina Nesimovic, UHjef (genom informations-förvaltaren Jörgen Landström, UHjef) samt Magnus Edfast IKTtaaf"]
[null,null,"Flik 8.1 Signalsystem","Nytt krav: Besiktningsdokumentationen för signalteknik i form av pappershandlingar (Ska sparas i fem år hos Trafikverkets arkivservice i Mölndal)","Egentligen inget nytt krav, då det finns i TRVINFRA-00301, K161665. Vi har lagt till det i leveransplanen som en del i projektets checklista att detta har blivit levererat. Kravet gäller därför både befintliga och nya projekt.","Teknisk säkerhetsstyrning Mattias Karlsson, IVttm"]
[null,null,"Flik 8.1 Signalsystem","Ändrade krav: Många kolumnerna för rad 60-69 (Listor från ställverk och tågledningssystem) har gråats ut, dvs projekten behöver inte fylla i något här.","Gäller alla nya projekt som använder denna versionen av leveransplan där dessa förändringar är införda. Övriga pågående projekt får gärna föra in dessa förändringar i sina befinliga leveransplaner, men det är inget krav.","Uppdragsansvarig BIS\nSara Lindberg, UHjja"]
[null,null,"Flik 9.1 Banöverbyggnad","Nytt krav för Skrav öppningsbar bro.","Nya projekt ska leverera enligt de nya kraven, befintliga projekt bör.","Informationsförvaltare Sara Nord, UHjbs"]
[null,null,"Flik 9.1 Banöverbyggnad","Tydliggjort tabellen med krav utpekat för respektive objekt.","Information","Informationsförvaltare Sara Nord, UHjbs"]
[null,null,"Flik 9.1 Banöverbyggnad","Nytt krav för +3v Restlista Spårspärr","Nya projekt ska leverera enligt de nya kraven, befintliga projekt bör.","Informationsförvaltare Sara Nord, UHjbs"]
[null,null,"Flik 9.1 Banöverbyggnad","Nytt krav för +3v Restlista Spårkors","Nya projekt ska leverera enligt de nya kraven, befintliga projekt bör.","Informationsförvaltare Sara Nord, UHjbs"]
[null,null,"Flik 9.3 Sidoanläggning","Nytt krav: Kontrollprogram (Miljö)","Nya projekt ska leverera enligt de nya kraven, befintliga projekt bör.","Informationsförvaltare miljö, Anna Henriksson, UHv"]
[null,null,"Flik 10.1 Radio och telefoni","Reviderat krav: Ändrat leveransytan från \"ProjectWise/Förvaltning järnväg/Förvaltningsdata leveranser/_Tele(IKT)_Inleveranser\" till \"Projektets lagringsyta\"","Nya projekt ska leverera enligt de nya kraven, befintliga projekt bör.","Informationsförvaltare telekom, Peter Sjökvist, IKTtsv"]
[null,null,"Flik 10.1 Radio och telefoni","Reviderat krav: Har slopat \"Teknikhus\" och ersatt detta med en text högst upp i fliken som talar om att alla teknikbyggnader ska leveras under flik 7.2 Teknikbyggnad.","Nya projekt ska leverera enligt de nya kraven, befintliga projekt bör.","Magnus Edfast, IKTtaaf"]
[null,null,"Flik 10.2 Siter och kabelanläggning","Reviderat krav: Ändrat leveransytan från \"ProjectWise/Förvaltning järnväg/Förvaltningsdata leveranser/_Tele(IKT)_Inleveranser\" till \"Projektets lagringsyta\"","Nya projekt ska leverera enligt de nya kraven, befintliga projekt bör.","Informationsförvaltare telekom, Peter Sjökvist, IKTtsv"]
[null,null,"Flik 11.1 Trafikinformation","Situationsplan för dynamisk trafikinformationsutrustning samt statiska skyltar ska leveras som dgn, eftersom det är filformatet som gäller för Trafikverkets modellfiler.","Gäller samtliga projekt, både befintliga och nya","Ett fel som upptäckts av kravskrivare för TDOK 2019:0215, Kristina Eliasson, UHjjm"]
[null,null,"Flik 11.1 Trafikinformation","Förtydligat leveranstidskravet Vid färdig bygghandling, senast 6 månader före inkoppling med följande text: \"Just nu är tidskravet missvisande, det kommer att ses över till kommande revideringar. \nTrafikinformation behöver få information om anläggningen INNAN BYGGSTART. Detta för att hinna kontrollera om anläggningen är projekterad på rätt sätt INNAN byggstart. (Tyvärr händer det att man projekterat på fel sätt och det har lett till fördyringar i projektet.)\"","Information","Informationsförvaltare Daniel Asovic, Uhjef"]
[null,null,"Flik 14.1 Fordonsövervakade detektorer","Slopat krav: Kravet på modellfil för situationsplan är borttaget. ","Slopat krav","Informationsförvaltare Roger Byström, UHjes"]
[null,null,"Flik 15.4 Mark","Ändrat krav: Tidigare \"Uppföljning, kontrollprogram\", nu Kontrollprogram (Miljö)","Nya projekt ska leverera enligt de nya kraven, befintliga projekt bör.","Informationsförvaltare miljö, Anna Henriksson, UHv"]
[null,null,"Flik 15.5 Miljö","Ändrat mejladressen för granskning från miljounderhall@trafikverket.se till jarnvag_anlaggningmiljo@trafikverket.se","Gäller samtliga projekt, både befintliga och nya","Informationsförvaltare miljö, Anna Henriksson, UHv"]
[null,null,"Flik 15.5 Miljö","Tagit bort kolumnen I \"Kvalitetssäkring av miljökompetens inom projekt\"","Gäller samtliga projekt, både befintliga och nya","Informationsförvaltare miljö, Anna Henriksson, UHv"]
[null,null,"Flik 15.7 Pumpsystem","Nytt krav för 1 v efter inkoppling: TMALL 0659 Teknikbyggnad.","Egentligen inget nytt krav, men det kan ha uppfattats som otydligt att även pumpstationer ska levereras in till BIS, i mallen för Teknikbyggnad. Kravet gäller därför både befintliga och nya projekt.","Informationsförvaltare John Granberg, UHjel"]

{"sheet":"Ändra inte!","index":51,"n_rows":13,"n_cols":1,"rows_kept":13,"cut":false,"hidden":true,"merged":[]}
[]
[]
[]
[]
["Ny"]
["Uppdaterad"]
["Slopad"]
["Oförändrad"]
[]
[]
["Ja"]
["Nej"]
["?"]